Workbook

Sheet INDEX (hidden)
A1: INDEX | B1: Required updates (if not specifically stated, no input required)
A2: Model Specs
A3: 1. Information Sheet | B3: update
A4: 2. Current Tariff Schedule
A5: 3. Continuity Schedule
A6: 4. Billing Det. for Def-Var | B6: column T - Account 1568 balances by rate class
A7: 5. Allocating Def-Var Balances
A8: 6. GA Calculation | B8: columns E & G - 2016 Class A data
A9: 6A. GA Allocation_Class A | B9: Table "Allocation of GA Balances to Former Class B Customers" - Class A data
A10: 7. Calculation of Def-Var RR | B10: update recovery period, if different from the default "12"
A11: 8. STS-Tax Change
A12: 9. Shared Tax - RR
A13: 10. RTSR - Current Rates
A14: 11. RTSR-UTRs & Sub-Tx | B14: Update wholesale rates, if required
A15: 12. RTSR-Historic Wholesale
A16: 13. RTSR-Current Wholesale
A17: 14. RTSR-Forecast Wholesale
A18: 15. RTSR-Rates to Forecast | B18: Need to adjust TN/TC Emb. Distributor rate class
A19: 16. Rev2Cost-GDPIPI
A20: 17. Regulatory Charges
A21: 18. Additional Rates | B21: Input additional rates with a full description: ICM, LRAMVA, DVAs, CBR, etc.
A22: 19. Final Tariff Schedule
A23: CBR 1580 Sub-Account
A24: Horizon Utilities Rate Zone
A25: Final Tariff Schedule | B25: Input all new rate riders
B26: columns G & I - 2016 kW for Class A

Sheet Model Specs (hidden)
A1: Back to Index | K1: Lists:
B2: Model Specifications
K3: Yes
B4: Utility | C4: Alectra - Horizon Utilites | K4: No
B6: Applying for Rates Effective | C6: 2018-01-01 | K6: kWh
K7: kW
K8: kVA
B9: Line Loss Factor | C9: 1.0379
K10: Alectra - PowerStream
K11: Alectra - Enersource
K12: Alectra - Horizon Utilites
K13: Alectra - Hydro One Brampton
C14: Rate Classes (select from the List)
B15: =IFERROR(VLOOKUP(C15,$K$16:$L$30,2,FALSE),"") -> RES | C15: RESIDENTIAL SERVICE CLASSIFICATION
B16: =IFERROR(VLOOKUP(C16,$K$16:$L$30,2,FALSE),"") -> GSL | C16: GENERAL SERVICE LESS THAN 50 kW SERVICE CLASSIFICATION | K16: RESIDENTIAL SERVICE CLASSIFICATION | L16: RES
B17: GSG | C17: GENERAL SERVICE 50 to 4,999 kW SERVICE CLASSIFICATION | K17: GENERAL SERVICE LESS THAN 50 kW SERVICE CLASSIFICATION | L17: GSL
B18: LU | C18: LARGE USE SERVICE CLASSIFICATION | K18: GENERAL SERVICE 50 to 499 kW SERVICE CLASSIFICATION | L18: GS50_499
B19: USL | C19: UNMETERED SCATTERED LOAD SERVICE CLASSIFICATION | K19: GENERAL SERVICE 50 to 699 KW SERVICE CLASSIFICATION | L19: GS50_699
B20: SEN | C20: SENTINEL LIGHTING SERVICE CLASSIFICATION | K20: GENERAL SERVICE 500 to 4,999 kW SERVICE CLASSIFICATION | L20: GS500
B21: SL | C21: STREET LIGHTING SERVICE CLASSIFICATION | K21: GENERAL SERVICE 700 to 4,999 KW SERVICE CLASSIFICATION | L21: GS700
K22: LARGE USE SERVICE CLASSIFICATION | L22: LU
K23: UNMETERED SCATTERED LOAD SERVICE CLASSIFICATION | L23: USL
K24: STREET LIGHTING SERVICE CLASSIFICATION | L24: SL
K25: STANDBY POWER SERVICE CLASSIFICATION | L25: SB
K26: SENTINEL LIGHTING SERVICE CLASSIFICATION | L26: SEN
K27: EMBEDDED DISTRIBUTOR SERVICE CLASSIFICATION | L27: EMB
K28: DISTRIBUTED GENERATION [DGEN] SERVICE CLASSIFICATION | L28: DG
K29: ENERGY FROM WASTE SERVICE CLASSIFICATION | L29: WST
K30: GENERAL SERVICE 50 to 4,999 kW SERVICE CLASSIFICATION | L30: GSG
B34: Have one or more Class A customers | C34: Yes

Sheet 1. Information Sheet (hidden)
A1: Back to Index | V1: a
B2: INCENTIVE REGULATION MODEL FOR 2018 FILERS
N12: Version | O12: 1
F14: Utility Name | G14: Alectra - Horizon Utilites
F16: Service Territory
F18: Assigned EB Number | G18: EB-2017-0024
F20: Name of Contact and Title | G20: Indy J. Butany-DeSouza, Vice-President, Regulatory Affairs
F22: Phone Number | G22: 905-821-5727
F24: Email Address | G24: indy.butany@alectrautilities.com
F26: We are applying for rates effective | G26: 2018-01-01
F28: Rate-Setting Method | G28: Price Cap IR
B30: Please indicate in which Rate Year the Group 1 accounts were last cleared1 | G30: 2017
B32: Please indicate the last Cost of Service Re-Basing Year | G32: 2015
C35: Notes
D37: Pale gray cells represent input cells.
D39: Pale blue cells represent drop-down lists.
D41: White cells contain fixed values, automatically generated values or formulae.
B44: Note: 1. Rate year of application

Sheet 2. Current Tariff Schedule (hidden)
A1: Back to Index
B2: INCENTIVE REGULATION MODEL FOR 2018 FILERS
B11: ='Model Specs'!C4 -> Alectra - Horizon Utilites
B12: TARIFF OF RATES AND CHARGES
B13: Effective Date January 1, 2017
B14: Implementation Date January 1, 2017
B16: This schedule supersedes and replaces all previously
B17: approved schedules of Rates, Charges and Loss Factors
B18: EB-2016-0080

Sheet 3. Continuity Schedule (hidden)
A1: Back to Index | B1: Back to Index | CK1: FALSE
C2: INCENTIVE REGULATION MODEL FOR 2018 FILERS | CK2: FALSE
CK3: FALSE
CK4: FALSE
CK5: FALSE
CK6: FALSE
CK7: FALSE
CK8: FALSE
CK9: FALSE
CK10: TRUE
CK11: TRUE
C12: Please complete the following continuity schedule for the following Deferral/Variance Accounts. Enter information into green cells only. Column CE shoudl match the latest 2.1.7 RRR filing. When inputting balances in the continuity schedule, Account 1580 RSVA - Wholesale Market Service Charge is to exclude any amounts relating to CBR. The CBR amounts are to be entered separately in the Class A and Class B 1580 sub-accounts. Only Class B amounts are to be disposed. Class A amounts are not to be disposed. If you have received approval to dispose of balances from prior years, the starting point for entries in the schedule below will be the balance sheet date as per your general ledger for which you received approval. For example, if in the 2016 EDR process (CoS or IRM) you received approval for the December 31, 2014 balances, the starting point for your entries below should be the 2013 year. This will allow for the correct starting point for the 2014 opening balance columns for both principal and interest. Please refer to the footnotes for further instructions.
E16: 2010 | O16: 2011 | Y16: 2012 | AI16: 2013 | AS16: 2014 | BC16: 2015 | BM16: 2016 | BW16: 2017 | CA16: Projected Interest on Dec-31-16 Balances | CE16: 2.1.7 RRR
C17: Account Descriptions | D17: Account Number | E17: Opening Principal Amounts as of Jan 1, 2010 | F17: Transactions2 Debit / (Credit) during 2010 | G17: OEB-Approved Disposition during 2010 | H17: Principal Adjustments1 during 2010 | I17: Closing Principal Balance as of Dec 31, 2010 | J17: Opening Interest Amounts as of Jan 1, 2010 | K17: Interest Jan 1 to Dec 31, 2010 | L17: OEB-Approved Disposition during 2010 | M17: Interest Adjustments1 during 2010 | N17: Closing Interest Amounts as of Dec 31, 2010 | O17: Opening Principal Amounts as of Jan 1, 2011 | P17: Transactions2 Debit / (Credit) during 2011 | Q17: OEB-Approved Disposition during 2011 | R17: Principal Adjustments1 during 2011 | S17: Closing Principal Balance as of Dec 31, 2011 | T17: Opening Interest Amounts as of Jan 1, 2011 | U17: Interest Jan 1 to Dec 31, 2011 | V17: OEB-Approved Disposition during 2011 | W17: Interest Adjustments1 during 2011 | X17: Closing Interest Amounts as of Dec 31, 2011 | Y17: Opening Principal Amounts as of Jan 1, 2012 | Z17: Transactions2 Debit / (Credit) during 2012 | AA17: OEB-Approved Disposition during 2012 | AB17: Principal Adjustments1 during 2012 | AC17: Closing Principal Balance as of Dec 31, 2012 | AD17: Opening Interest Amounts as of Jan 1, 2012 | AE17: Interest Jan 1 to Dec 31, 2012 | AF17: OEB-Approved Disposition during 2012 | AG17: Interest Adjustments1 during 2012 | AH17: Closing Interest Amounts as of Dec 31, 2012 | AI17: Opening Principal Amounts as of Jan 1, 2013 | AJ17: Transactions2 Debit / (Credit) during 2013 | AK17: OEB-Approved Disposition during 2013 | AL17: Principal Adjustments1 during 2013 | AM17: Closing Principal Balance as of Dec 31, 2013 | AN17: Opening Interest Amounts as of Jan 1, 2013 | AO17: Interest Jan 1 to Dec 31, 2013 | AP17: OEB-Approved Disposition during 2013 | AQ17: Interest Adjustments1 during 2013 | AR17: Closing Interest Amounts as of Dec 31, 2013 | AS17: Opening Principal Amounts as of Jan 1, 2014 | AT17: Transactions2 Debit / (Credit) during 2014 | AU17: OEB-Approved Disposition during 2014 | AV17: Principal Adjustments1 during 2014 | AW17: Closing Principal Balance as of Dec 31, 2014 | AX17: Opening Interest Amounts as of Jan 1, 2014 | AY17: Interest Jan 1 to Dec 31. 2014 | AZ17: OEB-Approved Disposition during 2014 | BA17: Interest Adjustments1 during 2014 | BB17: Closing Interest Amounts as of Dec 31, 2014 | BC17: Opening Principal Amounts as of Jan 1, 2015 | BD17: Transactions2 Debit / (Credit) during 2015 | BE17: OEB-Approved Disposition during 2015 | BF17: Principal Adjustments1 during 2015 | BG17: Closing Principal Balance as of Dec 31, 15 | BH17: Opening Interest Amounts as of Jan 1, 15 | BI17: Interest Jan 1 to Dec 31, 15 | BJ17: OEB-Approved Disposition during 2015 | BK17: Interest Adjustments1 during 2015 | BL17: Closing Interest Amounts as of Dec 31, 15 | BM17: Opening Principal Amounts as of Jan 1, 2016 | BN17: Transactions2 Debit / (Credit) during 2016 | BO17: OEB-Approved Disposition during 2016 | BP17: Principal Adjustments1 during 2016 | BQ17: Closing Principal Balance as of Dec 31, 16 | BR17: Opening Interest Amounts as of Jan 1, 16 | BS17: Interest Jan 1 to Dec 31, 16 | BT17: OEB-Approved Disposition during 2016 | BU17: Interest Adjustments1 during 2016 | BV17: Closing Interest Amounts as of Dec 31, 16 | BW17: Principal Disposition during 2017 - instructed by OEB | BX17: Interest Disposition during 2017 - instructed by OEB | BY17: Closing Principal Balances as of Dec 31, 2017 Adjusted for Dispositions during 2017 | BZ17: Closing Interest Balances as of Dec 31, 16 Adjusted for Disposition in 2017 | CA17: Projected Interest from Jan 1, 2016 to December 31, 2016 on Dec 31 -16 balance adjusted for disposition during 2017 3 | CB17: Projected Interest from January 1, 2018 to April 30, 2018 on Dec 31 -16 balance adjusted for disposition during 2017 3 | CC17: Total Interest | CD17: Total Claim | CE17: As of Dec 31-16 | CF17: Variance RRR vs. 2016 Balance (Principal + Interest)
CD19: Claim before Forecasted Transactions
C20: Group 1 Accounts
C21: LV Variance Account | D21: 1550 | I21: =E21+F21-G21+H21 -> 0 | N21: =J21+K21-L21+M21 -> 0 | O21: =I21 -> 0 | S21: =O21+P21-Q21+SUM(R21:R21) -> 0 | T21: =N21 -> 0 | X21: =T21+U21-V21+W21 -> 0 | Y21: =S21 -> 0 | AC21: =Y21+Z21-AA21+SUM(AB21:AB21) -> 0 | AD21: =X21 -> 0 | AH21: =AD21+AE21-AF21+AG21 -> 0 | AI21: =AC21 -> 0 | AM21: =AI21+AJ21-AK21+SUM(AL21:AL21) -> 0 | AN21: =AH21 -> 0 | AR21: =AN21+AO21-AP21+AQ21 -> 0 | AS21: =AM21 -> 0 | AW21: =AS21+AT21-AU21+SUM(AV21:AV21) -> 0 | AX21: =AR21 -> 0 | BB21: =AX21+AY21-AZ21+BA21 -> 0 | BC21: =AW21 -> 0 | BG21: =BC21+BD21-BE21+SUM(BF21:BF21) -> 0 | BH21: =BB21 -> 0 | BL21: =BH21+BI21-BJ21+BK21 -> 0 | BM21: =BG21 -> 0 | BQ21: =BM21+BN21-BO21+SUM(BP21:BP21) -> 0 | BR21: =BL21 -> 0 | BV21: =BR21+BS21-BT21+BU21 -> 0 | BY21: =BQ21-BW21 -> 0 | BZ21: =BV21-BX21 -> 0 | CA21: =+BY21*1.1% -> 0 | CC21: =BZ21+CA21+CB21 -> 0 | CD21: =SUM(BY21:CB21) -> 0 | CF21: =CE21-SUM(BQ21,BV21) -> 0
C22: Smart Metering Entity Charge Variance Account | D22: 1551 | I22: =E22+F22-G22+H22 -> 0 | N22: =J22+K22-L22+M22 -> 0 | O22: =I22 -> 0 | S22: 0 | T22: 0 | X22: =T22+U22-V22+W22 -> 0 | Y22: 0 | AC22: =Y22+Z22-AA22+SUM(AB22:AB22) -> 0 | AD22: =X22 -> 0 | AH22: =AD22+AE22-AF22+AG22 -> 0 | AI22: 0 | AM22: 0 | AN22: 0 | AR22: =AN22+AO22-AP22+AQ22 -> 0 | AS22: 0 | AW22: 0 | AX22: 0 | BB22: =AX22+AY22-AZ22+BA22 -> 0 | BC22: 0 | BG22: 0 | BH22: 0 | BL22: =BH22+BI22-BJ22+BK22 -> 0 | BM22: =BG22 -> 0 | BQ22: =BM22+BN22-BO22+SUM(BP22:BP22) -> 0 | BR22: 0 | BV22: =BR22+BS22-BT22+BU22 -> 0 | BY22: =BQ22-BW22 -> 0 | BZ22: =BV22-BX22 -> 0 | CA22: =+BY22*1.1% -> 0 | CC22: =BZ22+CA22+CB22 -> 0 | CD22: =SUM(BY22:CB22) -> 0 | CF22: =CE22-SUM(BQ22,BV22) -> 0
C23: RSVA - Wholesale Market Service Charge | D23: 1580 | I23: =E23+F23-G23+H23 -> 0 | N23: =J23+K23-L23+M23 -> 0 | O23: =I23 -> 0 | S23: =O23+P23-Q23+SUM(R23:R23) -> 0 | T23: 0 | X23: =T23+U23-V23+W23 -> 0 | Y23: 0 | AC23: =Y23+Z23-AA23+SUM(AB23:AB23) -> 0 | AD23: 0 | AH23: =AD23+AE23-AF23+AG23 -> 0 | AI23: 0 | AM23: 0 | AN23: 0 | AR23: =AN23+AO23-AP23+AQ23 -> 0 | AS23: 0 | AW23: 0 | AX23: 0 | BB23: =AX23+AY23-AZ23+BA23 -> 0 | BC23: 0 | BG23: 0 | BH23: 0 | BL23: =BH23+BI23-BJ23+BK23 -> 0 | BM23: 0 | BQ23: =BM23+BN23-BO23+SUM(BP23:BP23) -> 0 | BR23: 0 | BV23: =BR23+BS23-BT23+BU23 -> 0 | BY23: 0 | BZ23: 0 | CA23: 0 | CC23: 0 | CD23: =SUM(BY23:CB23) -> 0 | CF23: =CE23-SUM(BQ23,BV23) -> 0
C24: Variance WMS – Sub-account CBR Class A | D24: 1580 | I24: 0 | N24: 0 | O24: 0 | S24: 0 | T24: 0 | X24: 0 | Y24: 0 | AC24: 0 | AD24: 0 | AH24: 0 | AI24: 0 | AM24: 0 | AN24: 0 | AR24: 0 | AS24: 0 | AW24: 0 | AX24: 0 | BB24: 0 | BC24: 0 | BG24: =BC24+BD24-BE24+SUM(BF24:BF24) -> 0 | BH24: 0 | BL24: 0 | BM24: 0 | BQ24: =BM24+BN24-BO24+SUM(BP24:BP24) -> 0 | BR24: 0 | BV24: 0 | BY24: 0 | BZ24: 0 | CA24: 0 | CC24: 0 | CD24: 0 | CF24: =CE24-SUM(BQ24,BV24) -> 0
C25: Variance WMS – Sub-account CBR Class B | D25: 1580 | I25: 0 | N25: 0 | O25: 0 | S25: 0 | T25: 0 | X25: 0 | Y25: 0 | AC25: 0 | AD25: 0 | AH25: 0 | AI25: 0 | AM25: 0 | AN25: 0 | AR25: 0 | AS25: 0 | AW25: 0 | AX25: 0 | BB25: 0 | BC25: 0 | BG25: 0 | BH25: 0 | BL25: 0 | BM25: 0 | BQ25: =BM25+BN25-BO25+SUM(BP25:BP25) -> 0 | BR25: 0 | BV25: 0 | BY25: 0 | BZ25: 0 | CA25: 0 | CC25: 0 | CD25: 0 | CF25: =CE25-SUM(BQ25,BV25) -> 0
C26: RSVA - Retail Transmission Network Charge | D26: 1584 | I26: 0 | N26: 0 | O26: =I26 -> 0 | S26: 0 | T26: 0 | X26: =T26+U26-V26+W26 -> 0 | Y26: 0 | AC26: 0 | AD26: 0 | AH26: =AD26+AE26-AF26+AG26 -> 0 | AI26: 0 | AM26: 0 | AN26: 0 | AR26: =AN26+AO26-AP26+AQ26 -> 0 | AS26: 0 | AW26: 0 | AX26: 0 | BB26: =AX26+AY26-AZ26+BA26 -> 0 | BC26: 0 | BG26: 0 | BH26: 0 | BL26: =BH26+BI26-BJ26+BK26 -> 0 | BM26: 0 | BQ26: 0 | BR26: 0 | BV26: =BR26+BS26-BT26+BU26 -> 0 | BY26: 0 | BZ26: 0 | CA26: 0 | CC26: 0 | CD26: 0 | CF26: =CE26-SUM(BQ26,BV26) -> 0
C27: RSVA - Retail Transmission Connection Charge | D27: 1586 | I27: 0 | N27: 0 | O27: 0 | S27: 0 | T27: 0 | X27: 0 | Y27: 0 | AC27: 0 | AD27: 0 | AH27: 0 | AI27: 0 | AM27: 0 | AN27: 0 | AR27: 0 | AS27: 0 | AW27: 0 | AX27: 0 | BB27: 0 | BC27: 0 | BG27: 0 | BH27: 0 | BL27: 0 | BM27: 0 | BQ27: 0 | BR27: 0 | BV27: 0 | BY27: 0 | BZ27: 0 | CA27: 0 | CC27: 0 | CD27: 0 | CF27: 0
C28: RSVA - Power | D28: 1588 | I28: 0 | N28: 0 | O28: 0 | S28: 0 | T28: 0 | X28: 0 | Y28: 0 | AC28: 0 | AD28: 0 | AH28: 0 | AI28: 0 | AM28: 0 | AN28: 0 | AR28: 0 | AS28: 0 | AW28: 0 | AX28: 0 | BB28: 0 | BC28: 0 | BG28: 0 | BH28: 0 | BL28: 0 | BM28: 0 | BQ28: 0 | BR28: 0 | BV28: 0 | BY28: 0 | BZ28: 0 | CA28: 0 | CC28: 0 | CD28: 0 | CF28: 0
C29: RSVA - Global Adjustment | D29: 1589 | I29: 0 | N29: 0 | O29: 0 | S29: 0 | T29: 0 | X29: 0 | Y29: 0 | AC29: 0 | AD29: 0 | AH29: 0 | AI29: 0 | AM29: 0 | AN29: 0 | AR29: 0 | AS29: 0 | AW29: 0 | AX29: 0 | BB29: 0 | BC29: 0 | BG29: 0 | BH29: 0 | BL29: 0 | BM29: 0 | BQ29: 0 | BR29: 0 | BV29: 0 | BY29: 0 | BZ29: 0 | CA29: 0 | CC29: 0 | CD29: 0 | CF29: 0
C30: Disposition and Recovery/Refund of Regulatory Balances (2009)4 | D30: 1595 | I30: 0 | N30: 0 | O30: 0 | S30: 0 | T30: 0 | X30: 0 | Y30: 0 | AC30: 0 | AD30: 0 | AH30: 0 | AI30: 0 | AM30: 0 | AN30: 0 | AR30: 0 | AS30: 0 | AW30: 0 | AX30: 0 | BB30: 0 | BC30: 0 | BG30: 0 | BH30: 0 | BL30: 0 | BM30: 0 | BQ30: 0 | BR30: 0 | BV30: 0 | BY30: 0 | BZ30: 0 | CA30: 0 | CC30: 0 | CD30: 0 | CF30: 0
C31: Disposition and Recovery/Refund of Regulatory Balances (2010)4 | D31: 1595 | I31: 0 | N31: 0 | O31: 0 | S31: 0 | T31: 0 | X31: 0 | Y31: 0 | AC31: 0 | AD31: 0 | AH31: 0 | AI31: 0 | AM31: 0 | AN31: 0 | AR31: 0 | AS31: 0 | AW31: 0 | AX31: 0 | BB31: 0 | BC31: 0 | BG31: 0 | BH31: 0 | BL31: 0 | BM31: 0 | BQ31: 0 | BR31: 0 | BV31: 0 | BY31: 0 | BZ31: 0 | CA31: 0 | CC31: 0 | CD31: 0 | CF31: 0
C32: Disposition and Recovery/Refund of Regulatory Balances (2011)4 | D32: 1595 | I32: 0 | N32: 0 | O32: 0 | S32: =O32+P32-Q32+SUM(R32:R32) -> 0 | T32: 0 | X32: 0 | Y32: 0 | AC32: 0 | AD32: 0 | AH32: 0 | AI32: 0 | AM32: 0 | AN32: 0 | AR32: 0 | AS32: 0 | AW32: 0 | AX32: 0 | BB32: 0 | BC32: 0 | BG32: 0 | BH32: 0 | BL32: 0 | BM32: 0 | BQ32: 0 | BR32: 0 | BV32: 0 | BY32: 0 | BZ32: 0 | CA32: 0 | CC32: 0 | CD32: 0 | CF32: 0
C33: Disposition and Recovery/Refund of Regulatory Balances (2012)4 | D33: 1595 | I33: 0 | N33: 0 | O33: 0 | S33: 0 | T33: 0 | X33: 0 | Y33: 0 | AC33: 0 | AD33: 0 | AH33: 0 | AI33: 0 | AM33: 0 | AN33: 0 | AR33: 0 | AS33: 0 | AW33: 0 | AX33: 0 | BB33: 0 | BC33: 0 | BG33: 0 | BH33: 0 | BL33: 0 | BM33: 0 | BQ33: 0 | BR33: 0 | BV33: 0 | BY33: 0 | BZ33: 0 | CA33: 0 | CC33: 0 | CD33: 0 | CF33: 0
C34: Disposition and Recovery/Refund of Regulatory Balances (2013)4 | D34: 1595 | I34: 0 | N34: 0 | O34: 0 | S34: 0 | T34: 0 | X34: 0 | Y34: 0 | AC34: 0 | AD34: 0 | AH34: 0 | AI34: 0 | AM34: 0 | AN34: 0 | AR34: 0 | AS34: 0 | AW34: 0 | AX34: 0 | BB34: 0 | BC34: 0 | BG34: 0 | BH34: 0 | BL34: 0 | BM34: 0 | BQ34: 0 | BR34: 0 | BV34: 0 | BY34: 0 | BZ34: 0 | CA34: 0 | CC34: 0 | CD34: 0 | CF34: 0
C35: Disposition and Recovery/Refund of Regulatory Balances (2014)4 | D35: 1595 | I35: 0 | N35: 0 | O35: 0 | S35: 0 | T35: 0 | X35: 0 | Y35: 0 | AC35: 0 | AD35: 0 | AH35: 0 | AI35: 0 | AM35: 0 | AN35: 0 | AR35: 0 | AS35: 0 | AW35: 0 | AX35: 0 | BB35: 0 | BC35: 0 | BG35: =BC35+BD35-BE35+SUM(BF35:BF35) -> 0 | BH35: 0 | BL35: 0 | BM35: 0 | BQ35: =BM35+BN35-BO35+SUM(BP35:BP35) -> 0 | BR35: =BL35 -> 0 | BV35: 0 | BY35: 0 | BZ35: 0 | CA35: =+BY35*1.1% -> 0 | CC35: =BZ35+CA35+CB35 -> 0 | CD35: =SUM(BY35:CB35) -> 0 | CF35: 0
C36: Disposition and Recovery/Refund of Regulatory Balances (2015)4 | D36: 1595 | I36: 0 | N36: 0 | O36: 0 | S36: 0 | T36: 0 | X36: 0 | Y36: 0 | AC36: 0 | AD36: 0 | AH36: 0 | AI36: 0 | AM36: 0 | AN36: 0 | AR36: 0 | AS36: 0 | AW36: 0 | AX36: 0 | BB36: 0 | BC36: 0 | BG36: 0 | BH36: 0 | BL36: 0 | BM36: 0 | BQ36: 0 | BR36: 0 | BV36: 0 | BY36: 0 | BZ36: 0 | CA36: =+BY36*1.1% -> 0 | CC36: 0 | CD36: 0 | CF36: 0
C37: Disposition and Recovery/Refund of Regulatory Balances (2016)4 Not to be disposed of unless rate rider has expired and balance has been audited | D37: 1595 | I37: 0 | N37: 0 | O37: 0 | S37: 0 | T37: 0 | X37: 0 | Y37: 0 | AC37: 0 | AD37: 0 | AH37: 0 | AI37: 0 | AM37: 0 | AN37: 0 | AR37: 0 | AS37: 0 | AW37: 0 | AX37: 0 | BB37: 0 | BC37: 0 | BG37: 0 | BH37: 0 | BL37: 0 | BM37: 0 | BQ37: 0 | BR37: 0 | BV37: 0 | BY37: 0 | BZ37: 0 | CA37: =+BY37*1.1% -> 0 | CC37: 0 | CD37: 0 | CF37: 0
C40: =C29 -> RSVA - Global Adjustment | D40: 1589 | E40: =E29 -> 0 | F40: 0 | G40: 0 | H40: 0 | I40: 0 | J40: 0 | K40: 0 | L40: 0 | M40: 0 | N40: 0 | O40: 0 | P40: 0 | Q40: 0 | R40: 0 | S40: 0 | T40: 0 | U40: 0 | V40: 0 | W40: 0 | X40: 0 | Y40: 0 | Z40: 0 | AA40: 0 | AB40: 0 | AC40: 0 | AD40: 0 | AE40: 0 | AF40: 0 | AG40: 0 | AH40: 0 | AI40: 0 | AJ40: 0 | AK40: 0 | AL40: 0 | AM40: 0 | AN40: 0 | AO40: 0 | AP40: 0 | AQ40: 0 | AR40: 0 | AS40: 0 | AT40: 0 | AU40: 0 | AV40: 0 | AW40: 0 | AX40: 0 | AY40: 0 | AZ40: 0 | BA40: 0 | BB40: 0 | BC40: 0 | BD40: 0 | BE40: 0 | BF40: 0 | BG40: 0 | BH40: 0 | BI40: 0 | BJ40: 0 | BK40: 0 | BL40: 0 | BM40: 0 | BN40: 0 | BO40: 0 | BP40: 0 | BQ40: =BQ29 -> 0 | BR40: 0 | BS40: 0 | BT40: 0 | BU40: 0 | BV40: 0 | BW40: 0 | BX40: 0 | BY40: 0 | BZ40: 0 | CA40: =CA29 -> 0 | CB40: =CB29 -> 0 | CC40: =CC29 -> 0 | CD40: =CD29 -> 0 | CE40: =CE29 -> 0 | CF40: =CE40-SUM(BQ40,BV40) -> 0
C41: Total Group 1 Balance excluding Account 1589 - Global Adjustment | E41: =SUM(E21:E37)-E29 -> 0 | F41: =SUM(F21:F37)-F29 -> 0 | G41: 0 | H41: 0 | I41: 0 | J41: 0 | K41: 0 | L41: 0 | M41: 0 | N41: 0 | O41: 0 | P41: =SUM(P21:P38)-P29 -> 0 | Q41: =SUM(Q21:Q38)-Q29 -> 0 | R41: 0 | S41: 0 | T41: 0 | U41: 0 | V41: 0 | W41: 0 | X41: 0 | Y41: 0 | Z41: 0 | AA41: 0 | AB41: 0 | AC41: 0 | AD41: 0 | AE41: 0 | AF41: 0 | AG41: 0 | AH41: 0 | AI41: 0 | AJ41: 0 | AK41: 0 | AL41: 0 | AM41: 0 | AN41: 0 | AO41: 0 | AP41: 0 | AQ41: 0 | AR41: 0 | AS41: 0 | AT41: 0 | AU41: 0 | AV41: 0 | AW41: 0 | AX41: 0 | AY41: 0 | AZ41: 0 | BA41: 0 | BB41: 0 | BC41: 0 | BD41: 0 | BE41: 0 | BF41: 0 | BG41: 0 | BH41: 0 | BI41: 0 | BJ41: 0 | BK41: 0 | BL41: 0 | BM41: 0 | BN41: 0 | BO41: 0 | BP41: 0 | BQ41: 0 | BR41: 0 | BS41: 0 | BT41: 0 | BU41: 0 | BV41: =SUM(BV21:BV38)-BV29 -> 0 | BW41: 0 | BX41: 0 | BY41: 0 | BZ41: 0 | CA41: 0 | CB41: =SUM(CB21:CB37)-CB29 -> 0 | CC41: =SUM(CC21:CC38)-CC29 -> 0 | CD41: =SUM(CD21:CD38)-CD29 -> 0 | CE41: =SUM(CE21:CE38)-CE29-CE24-CE25 -> 0 | CF41: =CE41-SUM(BQ41,BV41) -> 0
C42: Total Group 1 Balance | E42: =SUM(E40,E41) -> 0 | F42: =SUM(F40,F41) -> 0 | G42: 0 | H42: 0 | I42: 0 | J42: 0 | K42: 0 | L42: 0 | M42: 0 | N42: 0 | O42: 0 | P42: =SUM(P40,P41) -> 0 | Q42: =SUM(Q40,Q41) -> 0 | R42: 0 | S42: 0 | T42: 0 | U42: 0 | V42: 0 | W42: 0 | X42: 0 | Y42: 0 | Z42: 0 | AA42: 0 | AB42: 0 | AC42: 0 | AD42: 0 | AE42: 0 | AF42: 0 | AG42: 0 | AH42: 0 | AI42: 0 | AJ42: 0 | AK42: 0 | AL42: 0 | AM42: 0 | AN42: 0 | AO42: 0 | AP42: 0 | AQ42: 0 | AR42: 0 | AS42: 0 | AT42: 0 | AU42: 0 | AV42: 0 | AW42: 0 | AX42: 0 | AY42: 0 | AZ42: 0 | BA42: 0 | BB42: 0 | BC42: 0 | BD42: 0 | BE42: 0 | BF42: 0 | BG42: 0 | BH42: 0 | BI42: 0 | BJ42: 0 | BK42: 0 | BL42: 0 | BM42: 0 | BN42: 0 | BO42: 0 | BP42: 0 | BQ42: 0 | BR42: 0 | BS42: 0 | BT42: 0 | BU42: 0 | BV42: 0 | BW42: 0 | BX42: 0 | BY42: 0 | BZ42: 0 | CA42: 0 | CB42: 0 | CC42: 0 | CD42: =SUM(CD40,CD41) -> 0 | CE42: =SUM(CE40,CE41) -> 0 | CF42: =CE42-SUM(BQ42,BV42) -> 0
A44: 29 | C44: LRAM Variance Account (only input amounts if applying for disposition of this account) | D44: 1568 | S44: =O44+P44-Q44+SUM(R44:R44) -> 0 | X44: =T44+U44-V44+W44 -> 0 | Y44: =S44 -> 0 | AC44: =Y44+Z44-AA44+SUM(AB44:AB44) -> 0 | AD44: =X44 -> 0 | AH44: =AD44+AE44-AF44+AG44 -> 0 | AI44: =AC44 -> 0 | AM44: =AI44+AJ44-AK44+SUM(AL44:AL44) -> 0 | AN44: =AH44 -> 0 | AR44: =AN44+AO44-AP44+AQ44 -> 0 | AS44: =AM44 -> 0 | AW44: =AS44+AT44-AU44+SUM(AV44:AV44) -> 0 | AX44: =AR44 -> 0 | BB44: =AX44+AY44-AZ44+BA44 -> 0 | BC44: =AW44 -> 0 | BE44: 0 | BG44: =BC44+BD44-BE44+SUM(BF44:BF44) -> 0 | BH44: =BB44 -> 0 | BL44: =BH44+BI44-BJ44+BK44 -> 0 | BM44: =BG44 -> 0 | BQ44: =BM44+BN44-BO44+SUM(BP44:BP44) -> 0 | BR44: =BL44 -> 0 | BV44: =BR44+BS44-BT44+BU44 -> 0 | BY44: =BQ44-BW44 -> 0 | BZ44: =BV44-BX44 -> 0 | CA44: =+BY44*1.1% -> 0 | CC44: =BZ44+CA44+CB44 -> 0 | CD44: =SUM(BU44:CB44) -> 0 | CF44: =CE44-SUM(BQ44,BV44) -> 0
C46: Total including Account 1568 | E46: =SUM(E42,E44) -> 0 | F46: =SUM(F42,F44) -> 0 | G46: 0 | H46: 0 | I46: 0 | J46: 0 | K46: 0 | L46: 0 | M46: 0 | N46: 0 | O46: 0 | P46: 0 | Q46: 0 | R46: 0 | S46: 0 | T46: 0 | U46: 0 | V46: 0 | W46: 0 | X46: 0 | Y46: 0 | Z46: 0 | AA46: 0 | AB46: 0 | AC46: 0 | AD46: 0 | AE46: 0 | AF46: 0 | AG46: 0 | AH46: 0 | AI46: 0 | AJ46: 0 | AK46: 0 | AL46: 0 | AM46: 0 | AN46: 0 | AO46: 0 | AP46: 0 | AQ46: 0 | AR46: 0 | AS46: 0 | AT46: 0 | AU46: 0 | AV46: 0 | AW46: 0 | AX46: 0 | AY46: 0 | AZ46: 0 | BA46: 0 | BB46: 0 | BC46: 0 | BD46: 0 | BE46: 0 | BF46: 0 | BG46: 0 | BH46: 0 | BI46: 0 | BJ46: 0 | BK46: 0 | BL46: 0 | BM46: 0 | BN46: 0 | BO46: 0 | BP46: 0 | BQ46: 0 | BR46: 0 | BS46: 0 | BT46: 0 | BU46: 0 | BV46: 0 | BW46: 0 | BX46: 0 | BY46: 0 | BZ46: 0 | CA46: 0 | CB46: =SUM(CB42,CB44) -> 0 | CC46: =SUM(CC42,CC44) -> 0 | CD46: =SUM(CD42,CD44) -> 0 | CE46: =SUM(CE42,CE44) -> 0 | CF46: =SUM(CF42,CF44) -> 0
C49: For all OEB-Approved dispositions, please ensure that the disposition amount has the same sign (e.g: debit balances are to have a positive figure and credit balance are to have a negative figure) as per the related OEB decision.
B52: 1 | C52: Please provide explanations for the nature of the adjustments. If the adjustment relates to previously OEB-Approved disposed balances, please provide amounts for adjustments and include supporting documentations.
B53: 2 | C53: For RSVA accounts only, report the net variance to the account during the year. For all other accounts, record the transactions during the year.
B54: 3 | C54: If the LDC’s rate year begins on January 1, 2017, the projected interest is recorded from January 1, 2016 to December 31, 2016 on the December 31, 2015 balances adjusted for the disposed balances approved by the OEB in the 2016 rate decision. If the LDC’s rate year begins on May 1, 2017, the projected interest is recorded from January 1, 2016 to April 30, 2017 on the December 31, 2015 balances adjusted for the disposed interest balances approved by the OEB in the 2016 rate decision.
B55: 4 | C55: Include Account 1595 as part of Group 1 accounts (lines 30-36) for review and disposition if the recovery (or refund) period has been completed. If the recovery (or refund) period has not been completed, do not include the respective balance in Account 1595 for disposition at this time.

Sheet 4. Billing Det. for Def-Var (hidden)
A1: Back to Index | K1: Yes | T1: =IF(D18="YES", "YES", "NO") -> NO
B2: INCENTIVE REGULATION MODEL FOR 2018 FILERS
B13: Information from the most recent RRR (2016 for 2018 IRM)
L14: Approved Recoveries (class allocation %)
D15: Total Metered kWh | E15: Total Metered kW | F15: Metered kWh for Non-RPP Customers | G15: Metered kW for Non-RPP Customers | H15: Metered kWh for Wholesale Market Participants (WMP) | I15: Metered kW for Wholesale Market Participants (WMP) | J15: Total Metered kWh less WMP consumption (if applicable) | K15: Total Metered kW less WMP consumption (if applicable) | L15: 1595 Recovery Proportion (2009) 1 | M15: 1595 Recovery Proportion (2010) 1 | N15: 1595 Recovery Proportion (2011) 1 | O15: 1595 Recovery Proportion (2012) 1 | P15: 1595 Recovery Proportion (2013) 1 | Q15: 1595 Recovery Proportion (2014) 1 | R15: 1595 Recovery Proportion (2015) 1 | S15: 1595 Recovery Proportion (2016) 1 | T15: 1568 LRAM Variance Account Class Allocation ($ amounts) | U15: Number of Customers for Residential and GS<50 classes3
B16: Rate Class | C16: Unit
B17: ='Model Specs'!C15 -> RESIDENTIAL SERVICE CLASSIFICATION | C17: kWh | J17: =D17-H17 -> 0 | K17: =E17-I17 -> 0
B18: ='Model Specs'!C16 -> GENERAL SERVICE LESS THAN 50 kW SERVICE CLASSIFICATION | C18: kWh | J18: =D18-H18 -> 0 | K18: =E18-I18 -> 0
B19: ='Model Specs'!C17 -> GENERAL SERVICE 50 to 4,999 kW SERVICE CLASSIFICATION | C19: kW | J19: 0 | K19: =E19-I19 -> 0
B20: ='Model Specs'!C18 -> LARGE USE SERVICE CLASSIFICATION | C20: kW | J20: 0 | K20: 0
B21: ='Model Specs'!C19 -> UNMETERED SCATTERED LOAD SERVICE CLASSIFICATION | C21: kW | J21: 0 | K21: 0
B22: ='Model Specs'!C20 -> SENTINEL LIGHTING SERVICE CLASSIFICATION | C22: kW | J22: 0 | K22: 0
B23: ='Model Specs'!C21 -> STREET LIGHTING SERVICE CLASSIFICATION | C23: kWh | J23: 0 | K23: 0
C29: Total | D29: =SUM(D17:D28) -> 0 | E29: =SUM(E17:E28) -> 0 | F29: 0 | G29: 0 | H29: 0 | I29: 0 | J29: 0 | K29: 0 | L29: 0 | M29: 0 | N29: 0 | O29: 0 | P29: 0 | Q29: 0 | R29: 0 | S29: 0 | T29: 0 | U29: 0
B32: Threshold Test | R32: 1568 Account Balance from Continuity Schedule | U32: ='3. Continuity Schedule'!CD44 -> 0
B33: Total Claim (including Account 1568) | D33: ='3. Continuity Schedule'!CD46-'3. Continuity Schedule'!CD38 -> 0 | R33: =IF(U32=T29,"Total Balance of Account 1568 in Column R matches the amount entered on the Continuity Schedule","Total Balance of Account 1568 in Column T DOES NOT MATCH the amount entered on the Continuity Schedule") -> Total Balance of Account 1568 in Column R matches the amount entered on the Continuity Schedule
B34: Total Claim for Threshold Test (All Group 1 Accounts) | D34: ='3. Continuity Schedule'!CD42-'3. Continuity Schedule'!CD38 -> 0
B35: Threshold Test (Total claim per kWh) 2 | D35: =IFERROR(D34/D29,"") -> 
B36: Exceeds Threshold? | D36: =IF(D35="","",IF(OR(D35>0.001,D35<-0.001),"Yes","No")) -> 
B37: ELECT TO DISPOSE of the Group 1 Account Balances? | D37: Yes
B40: As per Section 3.2.5 of the 2017 Filing Requirements for Electricity Distribution Rate Applications, an applicant may elect to dispose of the Group 1 account balances below the threshold.
B41: 1 Residual Account balance to be allocated to rate classes in proportion to the recovery share as established when rate riders were implemented.
B42: 2 The Threshold Test does not include the amount in 1568.
B43: 3 The proportion of customers for the Residential and GS<50 Classes will be used to allocate Account 1551.
B45: Information from the 2015 RRR
D47: Total Metered kWh | E47: Total Metered kW | F47: Metered kWh for Non-RPP Customers | G47: Metered kW for Non-RPP Customers | H47: Metered kWh for Wholesale Market Participants (WMP) | I47: Metered kW for Wholesale Market Participants (WMP) | J47: Total Metered kWh less WMP consumption (if applicable) | K47: Total Metered kW less WMP consumption (if applicable)
B48: Rate Class | C48: Unit
B49: =B17 -> RESIDENTIAL SERVICE CLASSIFICATION | C49: kWh | J49: =D49-H49 -> 0 | K49: =E49-I49 -> 0
B50: =B18 -> GENERAL SERVICE LESS THAN 50 kW SERVICE CLASSIFICATION | C50: kWh | J50: =D50-H50 -> 0 | K50: =E50-I50 -> 0
B51: GENERAL SERVICE 50 to 4,999 kW SERVICE CLASSIFICATION | C51: kW | J51: 0 | K51: =E51-I51 -> 0
B52: LARGE USE SERVICE CLASSIFICATION | C52: kW | J52: 0 | K52: =E52-I52 -> 0
B53: UNMETERED SCATTERED LOAD SERVICE CLASSIFICATION | C53: kWh | J53: 0 | K53: 0
B54: SENTINEL LIGHTING SERVICE CLASSIFICATION | C54: kW | J54: 0 | K54: 0
B55: STREET LIGHTING SERVICE CLASSIFICATION | C55: kW | J55: 0 | K55: 0
B56: 0 | C56: kW | J56: 0 | K56: 0
B57: 0 | C57: kWh | J57: 0 | K57: 0
B58: 0 | C58: kWh | J58: 0 | K58: 0
B59: 0 | C59: kW | J59: 0 | K59: 0
J60: 0 | K60: 0
C61: Total | D61: =SUM(D49:D60) -> 0 | E61: =SUM(E49:E60) -> 0 | F61: 0 | G61: 0 | H61: 0 | I61: 0 | J61: 0 | K61: 0

Sheet 5. Allocating Def-Var Balances (hidden)
A1: Back to Index
B2: INCENTIVE REGULATION MODEL FOR 2018 FILERS
B11: No input required. This workshseet allocates the deferral/variance account balances (Group 1 and 1568) to the appropriate classes as per EDDVAR dated July 31, 2009
B13: Allocation of Group 1 Accounts (including Account 1568)
C14: % of Total kWh | D14: % of Total non-RPP kWh | E14: % of Customer Numbers ** | F14: % of Total kWh adjusted for WMP | I14: allocated based on Total less WMP | N14: allocated based on Total less WMP | O14: 1595_(2009) | P14: 1595_(2010) | Q14: 1595_(2011) | R14: 1595_(2012) | S14: 1595_(2013) | T14: 1595_(2014) | U14: 1595_(2015) | V14: 1595_(2016) | W14: 1595_(2017) | X14: 1568
B15: Rate Class | G15: 1550 | H15: 1551 | I15: 1580 | J15: 1580 (Class A) | K15: 1580 (Class B) | L15: 1584 | M15: 1586 | N15: 1588
B16: ='4. Billing Det. for Def-Var'!B17 -> RESIDENTIAL SERVICE CLASSIFICATION | C16: =IFERROR('4. Billing Det. for Def-Var'!D17/'4. Billing Det. for Def-Var'!D$29,"") ->  | D16: =IFERROR('4. Billing Det. for Def-Var'!F17/'4. Billing Det. for Def-Var'!F$29,"") ->  | E16: =IFERROR('4. Billing Det. for Def-Var'!U17/'4. Billing Det. for Def-Var'!U$29,"") ->  | F16: =IFERROR('4. Billing Det. for Def-Var'!J17/'4. Billing Det. for Def-Var'!J$29,"") ->  | G16: =IFERROR(G$28*C16,"") ->  | H16: =IFERROR(H$28*E16,"") ->  | I16: =IFERROR(I$28*F16,"") ->  | L16: =IFERROR(L$28*$C16,"") ->  | M16: =IFERROR(M$28*$C16,"") ->  | N16: =IFERROR(N$28*$F16,"") ->  | O16: ='4. Billing Det. for Def-Var'!L17*O$28 -> 0 | P16: ='4. Billing Det. for Def-Var'!M17*P$28 -> 0 | Q16: ='4. Billing Det. for Def-Var'!N17*Q$28 -> 0 | R16: ='4. Billing Det. for Def-Var'!O17*R$28 -> 0 | S16: ='4. Billing Det. for Def-Var'!P17*S$28 -> 0 | T16: ='4. Billing Det. for Def-Var'!Q17*T$28 -> 0 | U16: ='4. Billing Det. for Def-Var'!R17*U$28 -> 0 | V16: ='4. Billing Det. for Def-Var'!S17*V$28 -> 0 | W16: ='4. Billing Det. for Def-Var'!T17*W$28 -> 0 | X16: ='4. Billing Det. for Def-Var'!T17 -> 0
B17: ='4. Billing Det. for Def-Var'!B18 -> GENERAL SERVICE LESS THAN 50 kW SERVICE CLASSIFICATION | C17: =IFERROR('4. Billing Det. for Def-Var'!D18/'4. Billing Det. for Def-Var'!D$29,"") ->  | D17: =IFERROR('4. Billing Det. for Def-Var'!F18/'4. Billing Det. for Def-Var'!F$29,"") ->  | E17: =IFERROR('4. Billing Det. for Def-Var'!U18/'4. Billing Det. for Def-Var'!U$29,"") ->  | F17: =IFERROR('4. Billing Det. for Def-Var'!J18/'4. Billing Det. for Def-Var'!J$29,"") ->  | G17: =IFERROR(G$28*C17,"") ->  | H17: =IFERROR(H$28*E17,"") ->  | I17: =IFERROR(I$28*F17,"") ->  | L17: =IFERROR(L$28*$C17,"") ->  | N17: =IFERROR(N$28*$F17,"") ->  | O17: ='4. Billing Det. for Def-Var'!L18*O$28 -> 0 | P17: ='4. Billing Det. for Def-Var'!M18*P$28 -> 0 | Q17: ='4. Billing Det. for Def-Var'!N18*Q$28 -> 0 | R17: ='4. Billing Det. for Def-Var'!O18*R$28 -> 0 | S17: ='4. Billing Det. for Def-Var'!P18*S$28 -> 0 | T17: ='4. Billing Det. for Def-Var'!Q18*T$28 -> 0 | U17: ='4. Billing Det. for Def-Var'!R18*U$28 -> 0 | V17: ='4. Billing Det. for Def-Var'!S18*V$28 -> 0 | W17: ='4. Billing Det. for Def-Var'!T18*W$28 -> 0 | X17: ='4. Billing Det. for Def-Var'!T18 -> 0
B18: ='4. Billing Det. for Def-Var'!B19 -> GENERAL SERVICE 50 to 4,999 kW SERVICE CLASSIFICATION | C18: =IFERROR('4. Billing Det. for Def-Var'!D19/'4. Billing Det. for Def-Var'!D$29,"") ->  | D18: =IFERROR('4. Billing Det. for Def-Var'!F19/'4. Billing Det. for Def-Var'!F$29,"") ->  | E18: =IFERROR('4. Billing Det. for Def-Var'!U19/'4. Billing Det. for Def-Var'!U$29,"") ->  | F18: =IFERROR('4. Billing Det. for Def-Var'!J19/'4. Billing Det. for Def-Var'!J$29,"") ->  | G18: =IFERROR(G$28*C18,"") ->  | H18: =IFERROR(H$28*E18,"") ->  | I18: =IFERROR(I$28*F18,"") ->  | N18: =IFERROR(N$28*$F18,"") ->  | O18: ='4. Billing Det. for Def-Var'!L19*O$28 -> 0 | P18: ='4. Billing Det. for Def-Var'!M19*P$28 -> 0 | Q18: ='4. Billing Det. for Def-Var'!N19*Q$28 -> 0 | R18: ='4. Billing Det. for Def-Var'!O19*R$28 -> 0 | S18: ='4. Billing Det. for Def-Var'!P19*S$28 -> 0 | T18: ='4. Billing Det. for Def-Var'!Q19*T$28 -> 0 | U18: ='4. Billing Det. for Def-Var'!R19*U$28 -> 0 | V18: ='4. Billing Det. for Def-Var'!S19*V$28 -> 0 | W18: ='4. Billing Det. for Def-Var'!T19*W$28 -> 0 | X18: ='4. Billing Det. for Def-Var'!T19 -> 0
B19: ='4. Billing Det. for Def-Var'!B20 -> LARGE USE SERVICE CLASSIFICATION | C19: =IFERROR('4. Billing Det. for Def-Var'!D20/'4. Billing Det. for Def-Var'!D$29,"") ->  | D19: =IFERROR('4. Billing Det. for Def-Var'!F20/'4. Billing Det. for Def-Var'!F$29,"") ->  | E19: =IFERROR('4. Billing Det. for Def-Var'!U20/'4. Billing Det. for Def-Var'!U$29,"") ->  | F19: =IFERROR('4. Billing Det. for Def-Var'!J20/'4. Billing Det. for Def-Var'!J$29,"") ->  | O19: ='4. Billing Det. for Def-Var'!L20*O$28 -> 0 | P19: ='4. Billing Det. for Def-Var'!M20*P$28 -> 0 | Q19: ='4. Billing Det. for Def-Var'!N20*Q$28 -> 0 | R19: ='4. Billing Det. for Def-Var'!O20*R$28 -> 0 | S19: ='4. Billing Det. for Def-Var'!P20*S$28 -> 0 | T19: ='4. Billing Det. for Def-Var'!Q20*T$28 -> 0 | U19: ='4. Billing Det. for Def-Var'!R20*U$28 -> 0 | V19: ='4. Billing Det. for Def-Var'!S20*V$28 -> 0 | W19: ='4. Billing Det. for Def-Var'!T20*W$28 -> 0 | X19: ='4. Billing Det. for Def-Var'!T20 -> 0
B20: ='4. Billing Det. for Def-Var'!B21 -> UNMETERED SCATTERED LOAD SERVICE CLASSIFICATION | C20: =IFERROR('4. Billing Det. for Def-Var'!D21/'4. Billing Det. for Def-Var'!D$29,"") ->  | D20: =IFERROR('4. Billing Det. for Def-Var'!F21/'4. Billing Det. for Def-Var'!F$29,"") ->  | E20: =IFERROR('4. Billing Det. for Def-Var'!U21/'4. Billing Det. for Def-Var'!U$29,"") ->  | F20: =IFERROR('4. Billing Det. for Def-Var'!J21/'4. Billing Det. for Def-Var'!J$29,"") ->  | O20: ='4. Billing Det. for Def-Var'!L21*O$28 -> 0 | P20: ='4. Billing Det. for Def-Var'!M21*P$28 -> 0 | Q20: ='4. Billing Det. for Def-Var'!N21*Q$28 -> 0 | R20: ='4. Billing Det. for Def-Var'!O21*R$28 -> 0 | S20: ='4. Billing Det. for Def-Var'!P21*S$28 -> 0 | T20: ='4. Billing Det. for Def-Var'!Q21*T$28 -> 0 | U20: ='4. Billing Det. for Def-Var'!R21*U$28 -> 0 | V20: ='4. Billing Det. for Def-Var'!S21*V$28 -> 0 | W20: ='4. Billing Det. for Def-Var'!T21*W$28 -> 0 | X20: ='4. Billing Det. for Def-Var'!T21 -> 0
B21: ='4. Billing Det. for Def-Var'!B22 -> SENTINEL LIGHTING SERVICE CLASSIFICATION | C21: =IFERROR('4. Billing Det. for Def-Var'!D22/'4. Billing Det. for Def-Var'!D$29,"") ->  | D21: =IFERROR('4. Billing Det. for Def-Var'!F22/'4. Billing Det. for Def-Var'!F$29,"") ->  | E21: =IFERROR('4. Billing Det. for Def-Var'!U22/'4. Billing Det. for Def-Var'!U$29,"") ->  | F21: =IFERROR('4. Billing Det. for Def-Var'!J22/'4. Billing Det. for Def-Var'!J$29,"") ->  | O21: ='4. Billing Det. for Def-Var'!L22*O$28 -> 0 | P21: ='4. Billing Det. for Def-Var'!M22*P$28 -> 0 | Q21: ='4. Billing Det. for Def-Var'!N22*Q$28 -> 0 | R21: ='4. Billing Det. for Def-Var'!O22*R$28 -> 0 | S21: ='4. Billing Det. for Def-Var'!P22*S$28 -> 0 | T21: ='4. Billing Det. for Def-Var'!Q22*T$28 -> 0 | U21: ='4. Billing Det. for Def-Var'!R22*U$28 -> 0 | V21: ='4. Billing Det. for Def-Var'!S22*V$28 -> 0 | W21: ='4. Billing Det. for Def-Var'!T22*W$28 -> 0 | X21: ='4. Billing Det. for Def-Var'!T22 -> 0
B22: ='4. Billing Det. for Def-Var'!B23 -> STREET LIGHTING SERVICE CLASSIFICATION | C22: =IFERROR('4. Billing Det. for Def-Var'!D23/'4. Billing Det. for Def-Var'!D$29,"") ->  | D22: =IFERROR('4. Billing Det. for Def-Var'!F23/'4. Billing Det. for Def-Var'!F$29,"") ->  | E22: =IFERROR('4. Billing Det. for Def-Var'!U23/'4. Billing Det. for Def-Var'!U$29,"") ->  | F22: =IFERROR('4. Billing Det. for Def-Var'!J23/'4. Billing Det. for Def-Var'!J$29,"") ->  | O22: ='4. Billing Det. for Def-Var'!L23*O$28 -> 0 | P22: ='4. Billing Det. for Def-Var'!M23*P$28 -> 0 | Q22: ='4. Billing Det. for Def-Var'!N23*Q$28 -> 0 | R22: ='4. Billing Det. for Def-Var'!O23*R$28 -> 0 | S22: ='4. Billing Det. for Def-Var'!P23*S$28 -> 0 | T22: ='4. Billing Det. for Def-Var'!Q23*T$28 -> 0 | U22: ='4. Billing Det. for Def-Var'!R23*U$28 -> 0 | V22: ='4. Billing Det. for Def-Var'!S23*V$28 -> 0 | W22: ='4. Billing Det. for Def-Var'!T23*W$28 -> 0 | X22: ='4. Billing Det. for Def-Var'!T23 -> 0
B23: ='4. Billing Det. for Def-Var'!B24 -> 0 | C23: =IFERROR('4. Billing Det. for Def-Var'!D24/'4. Billing Det. for Def-Var'!D$29,"") ->  | D23: =IFERROR('4. Billing Det. for Def-Var'!F24/'4. Billing Det. for Def-Var'!F$29,"") ->  | E23: =IFERROR('4. Billing Det. for Def-Var'!U24/'4. Billing Det. for Def-Var'!U$29,"") ->  | F23: =IFERROR('4. Billing Det. for Def-Var'!J24/'4. Billing Det. for Def-Var'!J$29,"") ->  | O23: ='4. Billing Det. for Def-Var'!L24*O$28 -> 0 | P23: ='4. Billing Det. for Def-Var'!M24*P$28 -> 0 | Q23: ='4. Billing Det. for Def-Var'!N24*Q$28 -> 0 | R23: ='4. Billing Det. for Def-Var'!O24*R$28 -> 0 | S23: ='4. Billing Det. for Def-Var'!P24*S$28 -> 0 | T23: ='4. Billing Det. for Def-Var'!Q24*T$28 -> 0 | U23: ='4. Billing Det. for Def-Var'!R24*U$28 -> 0 | V23: ='4. Billing Det. for Def-Var'!S24*V$28 -> 0 | W23: ='4. Billing Det. for Def-Var'!T24*W$28 -> 0 | X23: ='4. Billing Det. for Def-Var'!T24 -> 0
B24: ='4. Billing Det. for Def-Var'!B25 -> 0 | C24: =IFERROR('4. Billing Det. for Def-Var'!D25/'4. Billing Det. for Def-Var'!D$29,"") ->  | D24: =IFERROR('4. Billing Det. for Def-Var'!F25/'4. Billing Det. for Def-Var'!F$29,"") ->  | E24: =IFERROR('4. Billing Det. for Def-Var'!U25/'4. Billing Det. for Def-Var'!U$29,"") ->  | F24: =IFERROR('4. Billing Det. for Def-Var'!J25/'4. Billing Det. for Def-Var'!J$29,"") ->  | G24: =IFERROR(G$28*C24,"") ->  | H24: =IFERROR(H$28*E24,"") ->  | I24: =IFERROR(I$28*F24,"") ->  | O24: ='4. Billing Det. for Def-Var'!L25*O$28 -> 0 | P24: ='4. Billing Det. for Def-Var'!M25*P$28 -> 0 | Q24: ='4. Billing Det. for Def-Var'!N25*Q$28 -> 0 | R24: ='4. Billing Det. for Def-Var'!O25*R$28 -> 0 | S24: ='4. Billing Det. for Def-Var'!P25*S$28 -> 0 | T24: ='4. Billing Det. for Def-Var'!Q25*T$28 -> 0 | U24: ='4. Billing Det. for Def-Var'!R25*U$28 -> 0 | V24: ='4. Billing Det. for Def-Var'!S25*V$28 -> 0 | W24: ='4. Billing Det. for Def-Var'!T25*W$28 -> 0 | X24: ='4. Billing Det. for Def-Var'!T25 -> 0
B25: ='4. Billing Det. for Def-Var'!B26 -> 0 | C25: =IFERROR('4. Billing Det. for Def-Var'!D26/'4. Billing Det. for Def-Var'!D$29,"") ->  | D25: =IFERROR('4. Billing Det. for Def-Var'!F26/'4. Billing Det. for Def-Var'!F$29,"") ->  | E25: =IFERROR('4. Billing Det. for Def-Var'!U26/'4. Billing Det. for Def-Var'!U$29,"") ->  | F25: =IFERROR('4. Billing Det. for Def-Var'!J26/'4. Billing Det. for Def-Var'!J$29,"") ->  | O25: ='4. Billing Det. for Def-Var'!L26*O$28 -> 0 | P25: ='4. Billing Det. for Def-Var'!M26*P$28 -> 0 | Q25: ='4. Billing Det. for Def-Var'!N26*Q$28 -> 0 | R25: ='4. Billing Det. for Def-Var'!O26*R$28 -> 0 | S25: ='4. Billing Det. for Def-Var'!P26*S$28 -> 0 | T25: ='4. Billing Det. for Def-Var'!Q26*T$28 -> 0 | U25: ='4. Billing Det. for Def-Var'!R26*U$28 -> 0 | V25: ='4. Billing Det. for Def-Var'!S26*V$28 -> 0 | W25: ='4. Billing Det. for Def-Var'!T26*W$28 -> 0 | X25: ='4. Billing Det. for Def-Var'!T26 -> 0
B26: ='4. Billing Det. for Def-Var'!B27 -> 0 | C26: =IFERROR('4. Billing Det. for Def-Var'!D27/'4. Billing Det. for Def-Var'!D$29,"") ->  | D26: =IFERROR('4. Billing Det. for Def-Var'!F27/'4. Billing Det. for Def-Var'!F$29,"") ->  | E26: =IFERROR('4. Billing Det. for Def-Var'!U27/'4. Billing Det. for Def-Var'!U$29,"") ->  | F26: =IFERROR('4. Billing Det. for Def-Var'!J27/'4. Billing Det. for Def-Var'!J$29,"") ->  | G26: =IFERROR(G$28*C26,"") ->  | H26: =IFERROR(H$28*E26,"") ->  | I26: =IFERROR(I$28*F26,"") ->  | O26: ='4. Billing Det. for Def-Var'!L27*O$28 -> 0 | P26: ='4. Billing Det. for Def-Var'!M27*P$28 -> 0 | Q26: ='4. Billing Det. for Def-Var'!N27*Q$28 -> 0 | R26: ='4. Billing Det. for Def-Var'!O27*R$28 -> 0 | S26: ='4. Billing Det. for Def-Var'!P27*S$28 -> 0 | T26: ='4. Billing Det. for Def-Var'!Q27*T$28 -> 0 | U26: ='4. Billing Det. for Def-Var'!R27*U$28 -> 0 | V26: ='4. Billing Det. for Def-Var'!S27*V$28 -> 0 | W26: ='4. Billing Det. for Def-Var'!T27*W$28 -> 0 | X26: ='4. Billing Det. for Def-Var'!T27 -> 0
C28: =SUM(C16:C27) -> 0 | D28: =SUM(D16:D27) -> 0 | E28: =SUM(E16:E27) -> 0 | F28: =SUM(F16:F27) -> 0 | G28: ='3. Continuity Schedule'!CD21 -> 0 | H28: ='3. Continuity Schedule'!CD22 -> 0 | I28: ='3. Continuity Schedule'!CD23 -> 0 | L28: ='3. Continuity Schedule'!CD26 -> 0 | M28: ='3. Continuity Schedule'!CD27 -> 0 | N28: ='3. Continuity Schedule'!CD28 -> 0 | O28: =TRANSPOSE('3. Continuity Schedule'!CD30:CD36) -> 0 | P28: 0 | Q28: 0 | R28: 0 | S28: 0 | T28: 0 | U28: 0 | V28: 0 | W28: 0 | X28: =SUM(X16:X26) -> 0
G29: =SUM(G16:G27)-G28 -> 0 | H29: =SUM(H16:H27)-H28 -> 0 | I29: 0 | J29: 0 | K29: 0 | L29: 0 | M29: 0 | N29: 0 | O29: 0 | P29: 0 | Q29: 0 | R29: 0 | S29: 0 | T29: 0 | U29: 0 | V29: 0 | X29: 0
B32: ** Used to allocate Account 1551 as this account records the variances arising from the Smart Metering Entity Charges to Residential and GS<50 customers.
B34: TO DO:
B35: Hid columns

Sheet 6. GA Calculation (hidden)
A1: Back to Index
B2: INCENTIVE REGULATION MODEL FOR 2018 FILERS
B13: The purpose of this tab is to calculate the GA rate riders for all current Class B customers of the distributor. Identify the total billed consumption for former Class B customers prior to becoming Class A customers in Column G. Effective January 2017, the billing determinant and all rate riders for the disposition of GA balances will be calculated on an energy basis (kWhs) regardless of the billing determinant used for distribution rates for the particular class (see Chapter 3, Filing Requirements, section 3.2.5.2)
C14: Total Metered Non-RPP consumption minus WMP | E14: Total Metered Class A Consumption in 2016 (partial and/or full year Class A customers)* | G14: Total Metered Consumption for New Class A customer(s) in the period prior to becoming Class A (i.e. Jan. 1 - June 30, 2016) | I14: Metered Consumption for Current Class B Customers (Non-RPP consumption LESS WMP, Class A and new Class A's former Class B consumption if applicable) | K14: % of total kWh | L14: Total GA $ allocated to Current Class B Customers | M14: GA Rate Rider
C15: kWh | D15: kW | E15: kWh | F15: kW | G15: kWh | H15: kW | I15: kWh | J15: kW
B17: ='4. Billing Det. for Def-Var'!B17 -> RESIDENTIAL SERVICE CLASSIFICATION | C17: ='4. Billing Det. for Def-Var'!F17-'4. Billing Det. for Def-Var'!H17 -> 0 | I17: =C17-E17-G17 -> 0 | K17: =IFERROR(I17/I$29,"") ->  | L17: =IFERROR(L$29*K17,"") ->  | M17: =IFERROR(L17/I17,"") ->  | N17: kwh
B18: ='4. Billing Det. for Def-Var'!B18 -> GENERAL SERVICE LESS THAN 50 kW SERVICE CLASSIFICATION | C18: ='4. Billing Det. for Def-Var'!F18-'4. Billing Det. for Def-Var'!H18 -> 0 | I18: =C18-E18-G18 -> 0 | K18: =IFERROR(I18/I$29,"") ->  | L18: =IFERROR(L$29*K18,"") ->  | M18: =IFERROR(L18/I18,"") ->  | N18: kwh
B19: ='4. Billing Det. for Def-Var'!B19 -> GENERAL SERVICE 50 to 4,999 kW SERVICE CLASSIFICATION | C19: ='4. Billing Det. for Def-Var'!F19-'4. Billing Det. for Def-Var'!H19 -> 0 | I19: 0 | M19: =IFERROR(L19/I19,"") ->  | N19: kwh
B20: ='4. Billing Det. for Def-Var'!B20 -> LARGE USE SERVICE CLASSIFICATION | C20: ='4. Billing Det. for Def-Var'!F20-'4. Billing Det. for Def-Var'!H20 -> 0 | I20: 0 | N20: kwh
B21: ='4. Billing Det. for Def-Var'!B21 -> UNMETERED SCATTERED LOAD SERVICE CLASSIFICATION | C21: ='4. Billing Det. for Def-Var'!F21-'4. Billing Det. for Def-Var'!H21 -> 0 | I21: 0 | N21: kwh
B22: ='4. Billing Det. for Def-Var'!B22 -> SENTINEL LIGHTING SERVICE CLASSIFICATION | C22: ='4. Billing Det. for Def-Var'!F22-'4. Billing Det. for Def-Var'!H22 -> 0 | I22: 0 | N22: kwh
B23: ='4. Billing Det. for Def-Var'!B23 -> STREET LIGHTING SERVICE CLASSIFICATION | C23: ='4. Billing Det. for Def-Var'!F23-'4. Billing Det. for Def-Var'!H23 -> 0 | I23: 0 | N23: kwh
B24: ='4. Billing Det. for Def-Var'!B24 -> 0 | C24: ='4. Billing Det. for Def-Var'!F24-'4. Billing Det. for Def-Var'!H24 -> 0 | I24: 0 | N24: kwh
B25: ='4. Billing Det. for Def-Var'!B25 -> 0 | C25: ='4. Billing Det. for Def-Var'!F25-'4. Billing Det. for Def-Var'!H25 -> 0 | I25: 0 | N25: kwh
B26: ='4. Billing Det. for Def-Var'!B26 -> 0 | C26: ='4. Billing Det. for Def-Var'!F26-'4. Billing Det. for Def-Var'!H26 -> 0 | I26: 0 | N26: kwh
B27: ='4. Billing Det. for Def-Var'!B27 -> 0 | C27: ='4. Billing Det. for Def-Var'!F27-'4. Billing Det. for Def-Var'!H27 -> 0
C29: =SUM(C17:C28) -> 0 | D29: =SUM(D17:D28) -> 0 | E29: 0 | F29: 0 | G29: 0 | H29: 0 | I29: 0 | J29: 0 | K29: 0 | L29: ='6A. GA Allocation_Class A'!D27 -> 0
B32: *For new Class A customers (who became Class A in 2016), add their consumption only related to July to December period.
B36: 2015 DATA | C36: Total Metered Non-RPP consumption minus WMP | E36: Total Metered Class A Consumption in 2015 (partial and/or full year Class A customers)* | G36: Total Metered Consumption for New Class A customer(s) in the period prior to becoming Class A (i.e. Jan. 1 - June 30, 2015)
C37: kWh | D37: kW | E37: kWh | F37: kW | G37: kWh
B39: =B17 -> RESIDENTIAL SERVICE CLASSIFICATION | C39: ='4. Billing Det. for Def-Var'!F49-'4. Billing Det. for Def-Var'!H49 -> 0
B40: =B18 -> GENERAL SERVICE LESS THAN 50 kW SERVICE CLASSIFICATION | C40: ='4. Billing Det. for Def-Var'!F50-'4. Billing Det. for Def-Var'!H50 -> 0
B41: GENERAL SERVICE 50 to 4,999 kW SERVICE CLASSIFICATION | C41: ='4. Billing Det. for Def-Var'!F51-'4. Billing Det. for Def-Var'!H51 -> 0
B42: LARGE USE SERVICE CLASSIFICATION | C42: ='4. Billing Det. for Def-Var'!F52-'4. Billing Det. for Def-Var'!H52 -> 0
B43: UNMETERED SCATTERED LOAD SERVICE CLASSIFICATION | C43: ='4. Billing Det. for Def-Var'!F53-'4. Billing Det. for Def-Var'!H53 -> 0
B44: SENTINEL LIGHTING SERVICE CLASSIFICATION | C44: ='4. Billing Det. for Def-Var'!F54-'4. Billing Det. for Def-Var'!H54 -> 0
B45: STREET LIGHTING SERVICE CLASSIFICATION | C45: ='4. Billing Det. for Def-Var'!F55-'4. Billing Det. for Def-Var'!H55 -> 0
B46: 0 | C46: ='4. Billing Det. for Def-Var'!F56-'4. Billing Det. for Def-Var'!H56 -> 0
B47: 0 | C47: ='4. Billing Det. for Def-Var'!F57-'4. Billing Det. for Def-Var'!H57 -> 0
B48: 0 | C48: ='4. Billing Det. for Def-Var'!F58-'4. Billing Det. for Def-Var'!H58 -> 0
B49: 0 | C49: ='4. Billing Det. for Def-Var'!F59-'4. Billing Det. for Def-Var'!H59 -> 0
C51: =SUM(C39:C50) -> 0 | D51: =SUM(D39:D50) -> 0 | E51: 0 | F51: 0 | G51: 0

Sheet 6A. GA Allocation_Class A (hidden)
A1: Back to Index
B2: INCENTIVE REGULATION MODEL FOR 2018 FILERS
B12: This tab allocates the GA balance to former Class B customers who contributed to the current GA balance but are now Class A customers. The tables below calculate specific amounts for each customer who made the change. Consistent with both decisions for 2016 rates and EDDVAR, distributors are generally expected to settle the amount through 12 equal adjustments to bills. A one-time settlement is acceptable if the affected customer has expressed a clear preference for this approach. (see Filing Requirements section 3.2.5.2)
B14: Year of Group 1 Account Balance Last Disposed | C14: 2015 | D14: (e.g. If in the 2017 EDR process, you received approval to dispose the GA variance account balance as of December 31, 2014, please enter 2014 in cell C16.)
B16: Allocation of total Non-RPP consumption (kWh) between Class B and New Class A (Former Class B) customers
D17: Total | E17: 2016 | F17: 2015 | G17: 2014 | H17: 2013 | I17: 2012
B18: Total Class B Consumption for Years Since Last Disposition (Non-RPP consumption LESS WMP and Class A) | C18: A | D18: =SUM(E18:I18) -> 0 | E18: ='6. GA Calculation'!C29-'6. GA Calculation'!E29 -> 0
B19: New Class A Customer(s)' Former Class B Consumption | C19: B | D19: =SUM(E19:I19) -> 0 | E19: =E43 -> 0 | F19: =F43 -> 0 | G19: =G43 -> 0 | H19: =H43 -> 0 | I19: =I43 -> 0
B20: Portion of Consumption of Former Class B Customers | C20: C=B/A | D20: =IFERROR(+D19/D18,0) -> 0
B23: Allocation of Total GA Balance $
B25: Total GA Balance | C25: D | D25: ='3. Continuity Schedule'!CD29 -> 0
B26: New Class A Customer(s)' Former Class B Portion of GA Balance | C26: E=C*D | D26: =+D20*D25 -> 0
B27: GA Balance to be disposed to Current Class B Customers | C27: F=D-E | D27: =+D25-D26 -> 0 | O27: s
B29: Allocation of GA Balances to Former Class B Customers
B30: # of Former Class B customer(s)
B31: Customer | D31: Total Metered kWh Consumption for each new Class A customer for the period prior to becoming Class A | E31: Metered kWh Consumption for each new Class A customer for the period prior to becoming Class A in 2016 | F31: Metered kWh Consumption for each new Class A customer for the period prior to becoming Class A in 2015 | G31: Metered kWh Consumption for each new Class A customer for the period prior to becoming Class A in 2014 | H31: Metered kWh Consumption for each new Class A customer for the period prior to becoming Class A in 2013 | I31: Metered kWh Consumption for each new Class A customer for the period prior to becoming Class A in 2012 | J31: % of kWh | K31: Customer specific GA allocation for the period prior to becoming Class A | L31: Monthly Equal Payments
B32: Customer 1 | D32: =SUM(E32:I32) -> 0 | J32: =IFERROR(+D32/$D$43,0) -> 0 | K32: =+J32*$D$26 -> 0 | L32: =+K32/12 -> 0
B33: Customer 2 | D33: 0 | J33: 0 | K33: =+J33*$D$26 -> 0 | L33: =+K33/12 -> 0
B34: Customer 3 | D34: 0 | J34: 0 | K34: 0 | L34: 0
B35: Customer 4 | D35: 0 | J35: 0 | K35: 0 | L35: 0
B36: Customer 5 | D36: 0 | J36: 0 | K36: 0 | L36: 0
B37: Customer 6 | D37: 0 | J37: 0 | K37: 0 | L37: 0
B38: Customer 7 | D38: 0 | J38: 0 | K38: 0 | L38: 0
B39: Customer 8 | D39: 0 | J39: 0 | K39: =+J39*$D$26 -> 0 | L39: =+K39/12 -> 0
B40: Customer 9 | D40: 0 | J40: 0 | K40: 0 | L40: 0
B41: Customer 10 | D41: 0 | J41: 0 | K41: 0 | L41: 0
B42: Customer 11 | D42: 0 | J42: 0 | K42: 0 | L42: 0
B43: Total | D43: =SUM(D32:D42) -> 0 | E43: =SUM(E32:E42) -> 0 | F43: =SUM(F32:F42) -> 0 | G43: =SUM(G32:G38) -> 0 | H43: 0 | I43: 0 | J43: =SUM(J32:J42) -> 0 | K43: =SUM(K32:K42) -> 0

Sheet 7. Calculation of Def-Var RR (hidden)
A1: Back to Index
B2: INCENTIVE REGULATION MODEL FOR 2018 FILERS
B11: Input required at cell D13 only. This workshseet calculates rate riders related to the Deferral/Variance Account Disposition (if applicable) and rate riders for Account 1568. Rate Riders will not be generated for the microFIT class.
B12: Default Rate Rider Recovery Period (in months) | D12: 12
B13: Proposed Rate Rider Recovery Period (in months) | D13: 12 | E13: =IF(D13>0, "Rate Rider Recovery to be used below", "If no rate rider recovery period is proposed then the default recovery period of 12 months will be used") -> Rate Rider Recovery to be used below
D15: Total Metered kWh | E15: Metered kW or kVA | F15: Total Metered kWh less WMP consumption | G15: Total Metered kW less WMP consumption | H15: Allocation of Group 1 Account Balances to All Classes 2 | I15: Allocation of Group 1 Account Balances to Non-WMP Classes Only (if Applicable) 2 | J15: Deferral/Variance Account Rate Rider 2 | K15: Deferral/Variance Account Rate Rider for Non-WMP (if applicable) 2 | L15: Account 1568 Rate Rider
B16: Rate Class | C16: Unit | M16: Revenue Reconciliation: | O16: Revenue Reconcilation 1
B17: ='4. Billing Det. for Def-Var'!B17 -> RESIDENTIAL SERVICE CLASSIFICATION | C17: ='4. Billing Det. for Def-Var'!C17 -> kWh | D17: ='4. Billing Det. for Def-Var'!D17 -> 0 | E17: ='4. Billing Det. for Def-Var'!E17 -> 0 | F17: ='4. Billing Det. for Def-Var'!J17 -> 0 | G17: ='4. Billing Det. for Def-Var'!K17 -> 0 | H17: =SUM('5. Allocating Def-Var Balances'!G16:V16)-I17 -> 0 | J17: =IF(ISERROR(H17/D17),0,IF(OR(ISBLANK(D$13), OR(D$13=0, D$13="")), H17/D17/(D$12/12), H17/D17/(D$13/12))) -> 0 | K17: =IF(ISERROR(I17/F17),0,IF(OR(ISBLANK(D$13), OR(D$13=0, D$13="")), I17/F17/(D$12/12), I17/F17/(D$13/12))) -> 0 | L17: =IF(ISERROR('4. Billing Det. for Def-Var'!T17/D17), 0, IF(OR(ISBLANK(D$13), OR(D$13=0, D$13="")), ('4. Billing Det. for Def-Var'!T17/D17)/(D$12/12), ('4. Billing Det. for Def-Var'!T17/D17)/(D$13/12))) -> 0 | M17: =J17*D17 -> 0 | N17: =K17*F17 -> 0
B18: ='4. Billing Det. for Def-Var'!B18 -> GENERAL SERVICE LESS THAN 50 kW SERVICE CLASSIFICATION | C18: ='4. Billing Det. for Def-Var'!C18 -> kWh | D18: ='4. Billing Det. for Def-Var'!D18 -> 0 | E18: ='4. Billing Det. for Def-Var'!E18 -> 0 | F18: ='4. Billing Det. for Def-Var'!J18 -> 0 | G18: ='4. Billing Det. for Def-Var'!K18 -> 0 | H18: =SUM('5. Allocating Def-Var Balances'!G17:V17)-I18 -> 0 | J18: =IF(ISERROR(H18/D18),0,IF(OR(ISBLANK(D$13), OR(D$13=0, D$13="")), H18/D18/(D$12/12), H18/D18/(D$13/12))) -> 0 | K18: =IF(ISERROR(I18/F18),0,IF(OR(ISBLANK(D$13), OR(D$13=0, D$13="")), I18/F18/(D$12/12), I18/F18/(D$13/12))) -> 0 | L18: =IF(ISERROR('4. Billing Det. for Def-Var'!T18/D18), 0, IF(OR(ISBLANK(D$13), OR(D$13=0, D$13="")), ('4. Billing Det. for Def-Var'!T18/D18)/(D$12/12), ('4. Billing Det. for Def-Var'!T18/D18)/(D$13/12))) -> 0 | M18: =J18*D18 -> 0 | N18: =K18*F18 -> 0
B19: ='4. Billing Det. for Def-Var'!B19 -> GENERAL SERVICE 50 to 4,999 kW SERVICE CLASSIFICATION | C19: ='4. Billing Det. for Def-Var'!C19 -> kW | D19: ='4. Billing Det. for Def-Var'!D19 -> 0 | E19: ='4. Billing Det. for Def-Var'!E19 -> 0 | F19: ='4. Billing Det. for Def-Var'!J19 -> 0 | G19: ='4. Billing Det. for Def-Var'!K19 -> 0 | H19: =SUM('5. Allocating Def-Var Balances'!G18:V18)-I19 ->  | I19: ='5. Allocating Def-Var Balances'!I18+'5. Allocating Def-Var Balances'!N18 ->  | J19: =IF(ISERROR(H19/E19),0,IF(OR(ISBLANK(D$13), OR(D$13=0, D$13="")), H19/E19/(D$12/12), H19/E19/(D$13/12))) -> 0 | K19: =IF(ISERROR(I19/G19),0,IF(OR(ISBLANK(D$13), OR(D$13=0, D$13="")), I19/G19/(D$12/12), I19/G19/(D$13/12))) -> 0 | L19: =IF(ISERROR('4. Billing Det. for Def-Var'!T19/D19), 0, IF(OR(ISBLANK(D13), OR(D13=0, D13="")), ('4. Billing Det. for Def-Var'!T19/D19)/(D12/12), ('4. Billing Det. for Def-Var'!T19/D19)/(D13/12))) -> 0 | M19: =J19*E19 -> 0 | N19: =K19*G19 -> 0
B20: ='4. Billing Det. for Def-Var'!B20 -> LARGE USE SERVICE CLASSIFICATION | C20: ='4. Billing Det. for Def-Var'!C20 -> kW | D20: ='4. Billing Det. for Def-Var'!D20 -> 0 | E20: ='4. Billing Det. for Def-Var'!E20 -> 0 | F20: ='4. Billing Det. for Def-Var'!J20 -> 0 | G20: ='4. Billing Det. for Def-Var'!K20 -> 0 | H20: =SUM('5. Allocating Def-Var Balances'!G19:V19)-I20 ->  | I20: ='5. Allocating Def-Var Balances'!I19+'5. Allocating Def-Var Balances'!N19 ->  | J20: =IF(ISERROR(H20/E20),0,IF(OR(ISBLANK(D$13), OR(D$13=0, D$13="")), H20/E20/(D$12/12), H20/E20/(D$13/12))) -> 0 | K20: =IF(ISERROR(I20/G20),0,IF(OR(ISBLANK(D$13), OR(D$13=0, D$13="")), I20/G20/(D$12/12), I20/G20/(D$13/12))) -> 0 | L20: =IF(ISERROR('4. Billing Det. for Def-Var'!T20/D20), 0, IF(OR(ISBLANK(D14), OR(D14=0, D14="")), ('4. Billing Det. for Def-Var'!T20/D20)/(D13/12), ('4. Billing Det. for Def-Var'!T20/D20)/(D14/12))) -> 0 | M20: =J20*E20 -> 0 | N20: =K20*G20 -> 0
B21: ='4. Billing Det. for Def-Var'!B21 -> UNMETERED SCATTERED LOAD SERVICE CLASSIFICATION | C21: ='4. Billing Det. for Def-Var'!C21 -> kW | D21: ='4. Billing Det. for Def-Var'!D21 -> 0 | E21: ='4. Billing Det. for Def-Var'!E21 -> 0 | F21: ='4. Billing Det. for Def-Var'!J21 -> 0 | G21: ='4. Billing Det. for Def-Var'!K21 -> 0 | H21: =SUM('5. Allocating Def-Var Balances'!G20:V20)-I21 -> 0 | J21: =IF(ISERROR(H21/E21),0,IF(OR(ISBLANK(D$13), OR(D$13=0, D$13="")), H21/E21/(D$12/12), H21/E21/(D$13/12))) -> 0 | K21: =IF(ISERROR(I21/G21),0,IF(OR(ISBLANK(D$13), OR(D$13=0, D$13="")), I21/G21/(D$12/12), I21/G21/(D$13/12))) -> 0 | L21: =IF(ISERROR('4. Billing Det. for Def-Var'!T21/D21), 0, IF(OR(ISBLANK(D$13), OR(D$13=0, D$13="")), ('4. Billing Det. for Def-Var'!T21/D21)/(D$12/12), ('4. Billing Det. for Def-Var'!T21/D21)/(D$13/12))) -> 0 | M21: =J21*E21 -> 0 | N21: =K21*G21 -> 0
B22: ='4. Billing Det. for Def-Var'!B22 -> SENTINEL LIGHTING SERVICE CLASSIFICATION | C22: ='4. Billing Det. for Def-Var'!C22 -> kW | D22: ='4. Billing Det. for Def-Var'!D22 -> 0 | E22: ='4. Billing Det. for Def-Var'!E22 -> 0 | F22: ='4. Billing Det. for Def-Var'!J22 -> 0 | G22: ='4. Billing Det. for Def-Var'!K22 -> 0 | H22: =SUM('5. Allocating Def-Var Balances'!G21:V21)-I22 -> 0 | J22: =IF(ISERROR(H22/E22),0,IF(OR(ISBLANK(D$13), OR(D$13=0, D$13="")), H22/E22/(D$12/12), H22/E22/(D$13/12))) -> 0 | K22: 0 | L22: =IF(ISERROR('4. Billing Det. for Def-Var'!T22/D22), 0, IF(OR(ISBLANK(D18), OR(D18=0, D18="")), ('4. Billing Det. for Def-Var'!T22/D22)/(D17/12), ('4. Billing Det. for Def-Var'!T22/D22)/(D18/12))) -> 0 | M22: =J22*E22 -> 0 | N22: =K22*G22 -> 0
B23: ='4. Billing Det. for Def-Var'!B23 -> STREET LIGHTING SERVICE CLASSIFICATION | C23: ='4. Billing Det. for Def-Var'!C23 -> kWh | D23: ='4. Billing Det. for Def-Var'!D23 -> 0 | E23: ='4. Billing Det. for Def-Var'!E23 -> 0 | F23: ='4. Billing Det. for Def-Var'!J23 -> 0 | G23: ='4. Billing Det. for Def-Var'!K23 -> 0 | H23: =SUM('5. Allocating Def-Var Balances'!G22:V22)-I23 -> 0 | J23: =IF(ISERROR(H23/D23),0,IF(OR(ISBLANK(D$13), OR(D$13=0, D$13="")), H23/D23/(D$12/12), H23/D23/(D$13/12))) -> 0 | K23: =IF(ISERROR(I23/F23),0,IF(OR(ISBLANK(D$13), OR(D$13=0, D$13="")), I23/F23/(D$12/12), I23/F23/(D$13/12))) -> 0 | L23: =IF(ISERROR('4. Billing Det. for Def-Var'!T23/D23), 0, IF(OR(ISBLANK(D17), OR(D17=0, D17="")), ('4. Billing Det. for Def-Var'!T23/D23)/(D16/12), ('4. Billing Det. for Def-Var'!T23/D23)/(D17/12))) -> 0 | M23: =J23*D23 -> 0 | N23: =K23*F23 -> 0
B24: ='4. Billing Det. for Def-Var'!B24 -> 0 | C24: ='4. Billing Det. for Def-Var'!C24 -> 0 | D24: ='4. Billing Det. for Def-Var'!D24 -> 0 | E24: ='4. Billing Det. for Def-Var'!E24 -> 0 | F24: ='4. Billing Det. for Def-Var'!J24 -> 0 | G24: ='4. Billing Det. for Def-Var'!K24 -> 0 | H24: =SUM('5. Allocating Def-Var Balances'!G23:V23)-I24 -> 0 | J24: =IF(ISERROR(H24/E24),0,IF(OR(ISBLANK(D$13), OR(D$13=0, D$13="")), H24/E24/(D$12/12), H24/E24/(D$13/12))) -> 0 | K24: =IF(ISERROR(I24/G24),0,IF(OR(ISBLANK(D$13), OR(D$13=0, D$13="")), I24/G24/(D$12/12), I24/G24/(D$13/12))) -> 0 | L24: =IF(ISERROR('4. Billing Det. for Def-Var'!T24/D24), 0, IF(OR(ISBLANK(D18), OR(D18=0, D18="")), ('4. Billing Det. for Def-Var'!T24/D24)/(D17/12), ('4. Billing Det. for Def-Var'!T24/D24)/(D18/12))) -> 0 | M24: =J24*E24 -> 0 | N24: =K24*G24 -> 0
B25: ='4. Billing Det. for Def-Var'!B25 -> 0 | C25: ='4. Billing Det. for Def-Var'!C25 -> 0 | D25: ='4. Billing Det. for Def-Var'!D25 -> 0 | E25: ='4. Billing Det. for Def-Var'!E25 -> 0 | F25: ='4. Billing Det. for Def-Var'!J25 -> 0 | G25: ='4. Billing Det. for Def-Var'!K25 -> 0 | H25: =SUM('5. Allocating Def-Var Balances'!G24:V24)-I25 -> 0 | J25: =IF(ISERROR(H25/E25),0,IF(OR(ISBLANK(D$13), OR(D$13=0, D$13="")), H25/E25/(D$12/12), H25/E25/(D$13/12))) -> 0 | K25: 0 | L25: =IF(ISERROR('4. Billing Det. for Def-Var'!T25/D25), 0, IF(OR(ISBLANK(D19), OR(D19=0, D19="")), ('4. Billing Det. for Def-Var'!T25/D25)/(D18/12), ('4. Billing Det. for Def-Var'!T25/D25)/(D19/12))) -> 0 | M25: =J25*E25 -> 0 | N25: =K25*G25 -> 0
B26: ='4. Billing Det. for Def-Var'!B26 -> 0 | C26: ='4. Billing Det. for Def-Var'!C26 -> 0 | D26: ='4. Billing Det. for Def-Var'!D26 -> 0 | E26: ='4. Billing Det. for Def-Var'!E26 -> 0 | F26: ='4. Billing Det. for Def-Var'!J26 -> 0 | G26: ='4. Billing Det. for Def-Var'!K26 -> 0 | H26: =SUM('5. Allocating Def-Var Balances'!G25:V25)-I26 -> 0 | J26: 0 | K26: 0 | L26: =IF(ISERROR('4. Billing Det. for Def-Var'!T26/D26), 0, IF(OR(ISBLANK(D20), OR(D20=0, D20="")), ('4. Billing Det. for Def-Var'!T26/D26)/(D19/12), ('4. Billing Det. for Def-Var'!T26/D26)/(D20/12))) -> 0 | M26: 0 | N26: 0
B27: ='4. Billing Det. for Def-Var'!B27 -> 0 | C27: ='4. Billing Det. for Def-Var'!C27 -> 0 | D27: ='4. Billing Det. for Def-Var'!D27 -> 0 | E27: ='4. Billing Det. for Def-Var'!E27 -> 0 | F27: ='4. Billing Det. for Def-Var'!J27 -> 0 | G27: ='4. Billing Det. for Def-Var'!K27 -> 0 | H27: =SUM('5. Allocating Def-Var Balances'!G26:V26)-I27 -> 0 | J27: 0 | K27: 0 | L27: =IF(ISERROR('4. Billing Det. for Def-Var'!T27/D27), 0, IF(OR(ISBLANK(D21), OR(D21=0, D21="")), ('4. Billing Det. for Def-Var'!T27/D27)/(D20/12), ('4. Billing Det. for Def-Var'!T27/D27)/(D21/12))) -> 0 | M27: =SUM(M17:M26) -> 0 | N27: =SUM(N17:N26) -> 0 | O27: =SUM(M27:N27) -> 0
O28: =O27-'3. Continuity Schedule'!CD41+'CBR 1580 Sub-Account'!O33 -> 
B30: 1 When calculating the revenue reconciliation for distributors with Class A customers, the balances of sub-account 1580-CBR Class A and B will not be taken into consideration since the rate riders, if any, are calculated outside of the model.
B31: 2 Only for rate classes with WMP customers are the Deferral/Variance Account Rate Riders for Non-WMP (column H and J) calculated separately. For all rate classes without WMP customers, balances in account 1580 and 1588 are included in column H and disposed through a combined Deferral/Variance Account and Rate Rider.

Sheet 8. STS-Tax Change (hidden)
A1: Back to Index | U1: Tax Rates | V1: Effective
B2: INCENTIVE REGULATION MODEL FOR 2018 FILERS | U2: Federal & Provincial | V2: 2016-01-01
U3: As of June 20, 2012
U5: Federal income tax | V5: 0.38
U6: General corporate rate | V6: -0.1
U7: Federal tax abatement | V7: =SUM(V5:V6) -> 0.28
U8: Adjusted federal rate | V8: -0.13
U9: Rate reduction | V9: =V7+V8 -> 0.15
U10: Ontario income tax | V10: 0.115
U12: Combined federal and Ontario | V12: =V9+V10 -> 0.265
B13: Summary - Sharing of Tax Change Forecast Amounts
U14: Federal & Ontario Small Business
B15: ="For the " & '1. Information Sheet'!G32 & " year, enter any Tax Credits from the Cost of Service Tax Calculation (Positive #)" -> For the 2015 year, enter any Tax Credits from the Cost of Service Tax Calculation (Positive #) | U15: Federal small business threshold | V15: 500000
U16: Ontario Small Business Threshold | V16: 500000
B18: 1. Tax Related Amounts Forecast from Capital Tax Rate Changes | M18: ='1. Information Sheet'!G32 -> 2015 | O18: 2018 | U18: Federal small business rate | V18: 0.105
B19: Taxable Capital (if you are not claiming capital tax, please enter your OEB-Approved Rate Base) | O19: =M19 -> 0
U20: Ontario small business rate | V20: 0.045
B21: Deduction from taxable capital up to $15,000,000 | O21: =M21 -> 0
B23: Net Taxable Capital | M23: =M19-M21 -> 0 | O23: =O19-O21 -> 0
B25: Rate | O25: 0 | U25: Ontario Tax Rate (Maximum 11.5%)
U26: Federal tax rate (Maximum 15%)
B27: Ontario Capital Tax (Deductible, not grossed-up) | M27: =IF(M23>0, M23*M25, 0)*181/365 -> 0 | O27: 0 | U27: Combined tax rate (Maximum 26.5%)
B29: 2. Tax Related Amounts Forecast from lncome Tax Rate Changes
B30: Regulatory Taxable Income | O30: =M30 -> 0
B32: Corporate Tax Rate | M32: 0.265 | O32: =IF(ratebase>15000000, 26.5%, IF(ratebase<10000000, 15%, 15%+11.5%*((ratebase-10000000)/5000000))) -> 0.15
B34: Tax Impact | M34: =M30*M32-M15 -> 0 | O34: =O30*O32-M15 -> 0
B36: Grossed-up Tax Amount | M36: =M34/(1-M32) -> 0 | O36: =O34/(1-O32) -> 0
B38: Tax Related Amounts Forecast from Capital Tax Rate Changes | M38: =M27 -> 0 | O38: =O27 -> 0
B40: Tax Related Amounts Forecast from lncome Tax Rate Changes | M40: =M36 -> 0 | O40: =O36 -> 0
B42: Total Tax Related Amounts | M42: =SUM(M40,M38) -> 0 | O42: =SUM(O40,O38) -> 0
B44: Incremental Tax Savings | O44: =O42-M42 -> 0
B46: Sharing of Tax Amount (50%) | O46: =0.5*O44 -> 0

Sheet 9. Shared Tax - RR (hidden)
A1: Back to Index
B2: INCENTIVE REGULATION MODEL FOR 2018 FILERS
B12: Calculation of Rebased Revenue Requirement and Allocation of Tax Sharing Amount. Enter data from the last OEB-Approved Cost of Service application in columns D through I.
B13: As per Chapter 3 Filing Requirements, shared tax rate riders are based on a 1 year disposition.
B15: Rate Class | D15: Re-based Billed Customers or Connections | E15: Re-based Billed kWh | F15: Re-based Billed kW | G15: Re-based Service Charge | H15: Re-based Distribution Volumetric Rate kWh | I15: Re-based Distribution Volumetric Rate kW | J15: Service Charge Revenue | K15: Distribution Volumetric Rate Revenue kWh | L15: Distribution Volumetric Rate Revenue kW | M15: Revenue Requirement from Rates | N15: Service Charge % Revenue | O15: Distribution Volumetric Rate % Revenue kWh | P15: Distribution Volumetric Rate % Revenue kW | Q15: Total % Revenue
D16: A | E16: B | F16: C | G16: D | H16: E | I16: F | J16: G = A * D *12 | K16: H = B * E | L16: I = C * F | M16: J = G + H + I | N16: K = G / J | O16: L = H / J | P16: M = I / J | Q16: N = J / R
B17: ='4. Billing Det. for Def-Var'!B17 -> RESIDENTIAL SERVICE CLASSIFICATION | C17: ='4. Billing Det. for Def-Var'!C17 -> kWh | J17: =G17*D17*12 -> 0 | K17: =E17*H17 -> 0 | L17: =F17*I17 -> 0 | M17: =J17+K17+L17 -> 0 | N17: =IF(ISERROR(J17/M17),0,J17/M17) -> 0 | O17: =IF(ISERROR(K17/M17),0,K17/M17) -> 0 | P17: =IF(ISERROR(L17/M17),0,L17/M17) -> 0 | Q17: =IF(ISERROR(M17/M$30),0,M17/M$30) -> 0
B18: ='4. Billing Det. for Def-Var'!B18 -> GENERAL SERVICE LESS THAN 50 kW SERVICE CLASSIFICATION | C18: ='4. Billing Det. for Def-Var'!C18 -> kWh | J18: 0 | K18: 0 | L18: 0 | M18: 0 | N18: =IF(ISERROR(J18/M18),0,J18/M18) -> 0 | O18: =IF(ISERROR(K18/M18),0,K18/M18) -> 0 | P18: =IF(ISERROR(L18/M18),0,L18/M18) -> 0 | Q18: =IF(ISERROR(M18/M$30),0,M18/M$30) -> 0
B19: ='4. Billing Det. for Def-Var'!B19 -> GENERAL SERVICE 50 to 4,999 kW SERVICE CLASSIFICATION | C19: ='4. Billing Det. for Def-Var'!C19 -> kW | J19: 0 | K19: 0 | L19: 0 | M19: 0 | N19: 0 | O19: 0 | P19: =IF(ISERROR(L19/M19),0,L19/M19) -> 0 | Q19: 0
B20: ='4. Billing Det. for Def-Var'!B20 -> LARGE USE SERVICE CLASSIFICATION | C20: ='4. Billing Det. for Def-Var'!C20 -> kW | J20: 0 | K20: 0 | L20: 0 | M20: 0 | N20: 0 | O20: 0 | P20: 0 | Q20: 0
B21: ='4. Billing Det. for Def-Var'!B21 -> UNMETERED SCATTERED LOAD SERVICE CLASSIFICATION | C21: ='4. Billing Det. for Def-Var'!C21 -> kW | J21: 0 | K21: 0 | L21: 0 | M21: 0 | N21: 0 | O21: 0 | P21: 0 | Q21: 0
B22: ='4. Billing Det. for Def-Var'!B22 -> SENTINEL LIGHTING SERVICE CLASSIFICATION | C22: ='4. Billing Det. for Def-Var'!C22 -> kW | J22: 0 | K22: 0 | L22: 0 | M22: 0 | N22: 0 | O22: 0 | P22: 0 | Q22: 0
B23: ='4. Billing Det. for Def-Var'!B23 -> STREET LIGHTING SERVICE CLASSIFICATION | C23: ='4. Billing Det. for Def-Var'!C23 -> kWh | J23: 0 | K23: 0 | L23: 0 | M23: 0 | N23: 0 | O23: 0 | P23: 0 | Q23: 0
B24: ='4. Billing Det. for Def-Var'!B24 -> 0 | C24: ='4. Billing Det. for Def-Var'!C24 -> 0 | J24: 0 | K24: 0 | L24: 0 | M24: 0 | N24: 0 | O24: 0 | P24: 0 | Q24: 0
B25: ='4. Billing Det. for Def-Var'!B25 -> 0 | C25: ='4. Billing Det. for Def-Var'!C25 -> 0 | J25: 0 | K25: 0 | L25: 0 | M25: 0 | N25: 0 | O25: 0 | P25: 0 | Q25: 0
B26: ='4. Billing Det. for Def-Var'!B26 -> 0 | C26: ='4. Billing Det. for Def-Var'!C26 -> 0 | J26: =G26*D26*12 -> 0 | K26: =E26*H26 -> 0 | L26: =F26*I26 -> 0 | M26: =J26+K26+L26 -> 0 | N26: =IF(ISERROR(J26/M26),0,J26/M26) -> 0 | O26: =IF(ISERROR(K26/M26),0,K26/M26) -> 0 | P26: =IF(ISERROR(L26/M26),0,L26/M26) -> 0 | Q26: 0
B27: ='4. Billing Det. for Def-Var'!B27 -> 0 | C27: ='4. Billing Det. for Def-Var'!C27 -> 0 | J27: 0 | K27: 0 | L27: 0 | M27: 0 | N27: 0 | O27: 0 | P27: 0 | Q27: 0
J28: 0 | K28: 0 | L28: 0 | M28: 0 | N28: 0 | O28: 0 | P28: 0 | Q28: 0
J29: 0 | K29: 0 | L29: 0 | M29: 0 | N29: 0 | O29: 0 | P29: 0 | Q29: 0
B30: Total | D30: =SUM(D17:D29) -> 0 | E30: =SUM(E17:E29) -> 0 | F30: 0 | J30: =SUM(J17:J29) -> 0 | K30: =SUM(K17:K29) -> 0 | L30: 0 | M30: 0 | Q30: =SUM(Q17:Q29) -> 0
B33: Rate Class | D33: Total kWh (most recent RRR filing) | E33: Total kW (most recent RRR filing) | F33: Allocation of Tax Savings by Rate Class | G33: Distribution Rate Rider
B34: =B17 -> RESIDENTIAL SERVICE CLASSIFICATION | C34: kWh | D34: ='4. Billing Det. for Def-Var'!D17 -> 0 | E34: ='4. Billing Det. for Def-Var'!E17 -> 0 | F34: =F$48*Q17 -> 0 | G34: =ROUND(F34/'4. Billing Det. for Def-Var'!U17,2) ->  | H34: $/Customer | I34: If the allocated tax sharing amount does not produce a rate rider in one or more rate class (except for the Standby rate class), a distributor is required to transfer the entire OEB-approved tax sharing amount into account 1595 for disposition at a later date (see Filing Requirements, Appendix B)
B35: GENERAL SERVICE LESS THAN 50 kW SERVICE CLASSIFICATION | C35: kWh | D35: ='4. Billing Det. for Def-Var'!D18 -> 0 | E35: ='4. Billing Det. for Def-Var'!E18 -> 0 | F35: 0 | G35: =IFERROR(ROUND(IF(E35<>0,F35/E35,F35/D35),4),"") ->  | H35: $/kWh
B36: GENERAL SERVICE 50 to 4,999 kW SERVICE CLASSIFICATION | C36: kW | D36: ='4. Billing Det. for Def-Var'!D19 -> 0 | E36: ='4. Billing Det. for Def-Var'!E19 -> 0 | F36: 0 | G36: =IFERROR(ROUND(IF(E36<>0,F36/E36,F36/D36),4),"") ->  | H36: $/kW
B37: LARGE USE SERVICE CLASSIFICATION | C37: kW | D37: ='4. Billing Det. for Def-Var'!D20 -> 0 | E37: ='4. Billing Det. for Def-Var'!E20 -> 0 | F37: 0 | H37: $/kW
B38: UNMETERED SCATTERED LOAD SERVICE CLASSIFICATION | C38: kW | D38: ='4. Billing Det. for Def-Var'!D21 -> 0 | E38: ='4. Billing Det. for Def-Var'!E21 -> 0 | F38: 0 | H38: $/kWh
B39: SENTINEL LIGHTING SERVICE CLASSIFICATION | C39: kW | D39: ='4. Billing Det. for Def-Var'!D22 -> 0 | E39: ='4. Billing Det. for Def-Var'!E22 -> 0 | F39: 0 | H39: $/kWh
B40: STREET LIGHTING SERVICE CLASSIFICATION | C40: kWh | D40: ='4. Billing Det. for Def-Var'!D23 -> 0 | E40: ='4. Billing Det. for Def-Var'!E23 -> 0 | F40: 0 | H40: $/kW
B41: 0 | C41: 0 | D41: ='4. Billing Det. for Def-Var'!D24 -> 0 | E41: ='4. Billing Det. for Def-Var'!E24 -> 0 | F41: 0 | H41: $/kW
B42: 0 | C42: 0 | D42: ='4. Billing Det. for Def-Var'!D25 -> 0 | E42: ='4. Billing Det. for Def-Var'!E25 -> 0 | F42: 0 | H42: $/kWh
B43: 0 | C43: 0 | D43: ='4. Billing Det. for Def-Var'!D26 -> 0 | E43: ='4. Billing Det. for Def-Var'!E26 -> 0 | F43: =F$48*Q30 -> 0 | H43: $/kWh
B44: 0 | C44: 0 | D44: ='4. Billing Det. for Def-Var'!D27 -> 0 | E44: ='4. Billing Det. for Def-Var'!E27 -> 0 | F44: =F$48*Q31 -> 0 | H44: $/kW
F45: 0 | G45: =IFERROR(ROUND(IF(E45<>"",F45/E45,F45/D45),4),"") -> 
F46: 0
D48: =SUM(D34:D47) -> 0 | E48: =SUM(E34:E47) -> 0 | F48: =ROUND('8. STS-Tax Change'!O46,2) -> 0

Sheet 10. RTSR - Current Rates (hidden)
A1: Back to Index | B1: Back to Index | BA1: 1
B2: INCENTIVE REGULATION MODEL FOR 2018 FILERS
B13: Columns F and G must match the data from the most recent RRR filing. Rates have been imported from Tab 2. As well, the Loss Factor has been imported from "Model Specs" tab. If the data needs to be modified, please make the necessary adjustments and note the changes in your manager's summary.
B15: Rate Class | C15: Rate Description | D15: Unit | E15: Rate | F15: Non-Loss Adjusted Metered kWh | G15: Non-Loss Adjusted Metered kW | H15: Applicable Loss Factor | I15: Loss Adjusted Billed kWh
A16: R_TN | B16: ='Model Specs'!C15 -> RESIDENTIAL SERVICE CLASSIFICATION | C16: Retail Transmission Rate – Network Service Rate | D16: $/kWh | E16: =VLOOKUP(A16,RATES,4,FALSE) ->  | F16: ='4. Billing Det. for Def-Var'!D17 -> 0 | G16: 0 | H16: =LLF -> 1.0379 | I16: =F16*H16 -> 0
A17: R_TC | B17: =B16 -> RESIDENTIAL SERVICE CLASSIFICATION | C17: Retail Transmission Rate – Line and Transformation Connection Service Rate | D17: $/kWh | F17: =F16 -> 0 | G17: 0 | H17: 1.0379 | I17: =F17*H17 -> 0
A18: GSL_TN | B18: ='Model Specs'!C16 -> GENERAL SERVICE LESS THAN 50 kW SERVICE CLASSIFICATION | C18: Retail Transmission Rate – Network Service Rate | D18: $/kWh | F18: ='4. Billing Det. for Def-Var'!D18 -> 0 | G18: 0 | H18: 1.0379 | I18: 0
A19: GSL_TC | B19: =B18 -> GENERAL SERVICE LESS THAN 50 kW SERVICE CLASSIFICATION | C19: Retail Transmission Rate – Line and Transformation Connection Service Rate | D19: $/kWh | F19: =F18 -> 0 | G19: 0 | H19: 1.0379 | I19: 0
A20: GSG_TN | B20: ='Model Specs'!C17 -> GENERAL SERVICE 50 to 4,999 kW SERVICE CLASSIFICATION | C20: Retail Transmission Rate – Network Service Rate | D20: $/kW | F20: ='4. Billing Det. for Def-Var'!D19 -> 0 | G20: ='4. Billing Det. for Def-Var'!E19 -> 0 | H20: 1.0379 | I20: 0
A21: GSG_TC | B21: =B20 -> GENERAL SERVICE 50 to 4,999 kW SERVICE CLASSIFICATION | C21: Retail Transmission Rate – Line and Transformation Connection Service Rate | D21: $/kW | F21: =F20 -> 0 | G21: =G20 -> 0 | H21: 1.0379 | I21: 0
A22: LU_TN | B22: ='Model Specs'!C18 -> LARGE USE SERVICE CLASSIFICATION | C22: Retail Transmission Rate – Network Service Rate | D22: $/kW | F22: ='4. Billing Det. for Def-Var'!D20 -> 0 | G22: ='4. Billing Det. for Def-Var'!E20 -> 0 | H22: 1.0379 | I22: 0
A23: LU_TC | B23: =B22 -> LARGE USE SERVICE CLASSIFICATION | C23: Retail Transmission Rate – Line and Transformation Connection Service Rate | D23: $/kW | F23: =F22 -> 0 | G23: =G22 -> 0 | H23: 1.0379 | I23: 0
A24: USL_TN | B24: ='Model Specs'!C19 -> UNMETERED SCATTERED LOAD SERVICE CLASSIFICATION | C24: Retail Transmission Rate – Network Service Rate | D24: $/kW | F24: ='4. Billing Det. for Def-Var'!D21 -> 0 | G24: ='4. Billing Det. for Def-Var'!E21 -> 0 | H24: 1.0379 | I24: 0
A25: USL_TC | B25: =B24 -> UNMETERED SCATTERED LOAD SERVICE CLASSIFICATION | C25: Retail Transmission Rate – Line and Transformation Connection Service Rate | D25: $/kW | F25: =F24 -> 0 | G25: =G24 -> 0 | H25: 1.0379 | I25: 0
A26: SEN_TN | B26: ='Model Specs'!C20 -> SENTINEL LIGHTING SERVICE CLASSIFICATION | C26: Retail Transmission Rate – Network Service Rate | D26: $/kWh | F26: ='4. Billing Det. for Def-Var'!D23 -> 0 | G26: ='4. Billing Det. for Def-Var'!E23 -> 0 | H26: 1.0379 | I26: 0
A27: SEN_TC | B27: =B26 -> SENTINEL LIGHTING SERVICE CLASSIFICATION | C27: Retail Transmission Rate – Line and Transformation Connection Service Rate | D27: $/kWh | F27: =F26 -> 0 | G27: =G26 -> 0 | H27: 1.0379 | I27: 0
A28: SL_TN | B28: ='Model Specs'!C21 -> STREET LIGHTING SERVICE CLASSIFICATION | C28: Retail Transmission Rate – Network Service Rate | D28: $/kWh | E28: =VLOOKUP(A28,RATES,4,FALSE) ->  | F28: =F27 -> 0 | G28: =G27 -> 0 | H28: 1.0379 | I28: =F28*H28 -> 0
A29: SL_TC | B29: =B28 -> STREET LIGHTING SERVICE CLASSIFICATION | C29: Retail Transmission Rate – Line and Transformation Connection Service Rate | D29: $/kWh | F29: 0 | G29: 0 | H29: 1.0379 | I29: 0

Sheet 11. RTSR-UTRs & Sub-Tx (hidden)
A1: Back to Index
B2: INCENTIVE REGULATION MODEL FOR 2018 FILERS
B12: Uniform Transmission Rates | C12: Unit | E12: 2016 | G12: 2017 | I12: 2018
B14: Rate Description | E14: Rate | G14: Rate | I14: Rate
B16: Network Service Rate | C16: kW | E16: 3.66 | G16: 3.66 | I16: =G16 -> 3.66
B18: Line Connection Service Rate | C18: kW | E18: 0.87 | G18: 0.87 | I18: =G18 -> 0.87
B20: Transformation Connection Service Rate | C20: kW | E20: 2.02 | G20: 2.02 | I20: =G20 -> 2.02
B23: Hydro One Sub-Transmission Rates | C23: Unit | E23: 2016 | G23: 2017 | I23: 2018
E24: Feb - Dec 2016 | G24: Jan - Dec 2017
B27: Rate Description | E27: Rate | G27: Rate | I27: Rate
B29: Network Service Rate | C29: kW | E29: 3.3396 | G29: 3.1942 | I29: =G29 -> 3.1942
B31: Line Connection Service Rate | C31: kW | E31: 0.7791 | G31: 0.771 | I31: =G31 -> 0.771
B33: Transformation Connection Service Rate | C33: kW | E33: 1.7713 | G33: 1.7493 | I33: =G33 -> 1.7493
B35: Both Line and Transformation Connection Service Rate | C35: kW | E35: 2.5504 | G35: =SUM(G33,G31) -> 2.5203 | I35: =G35 -> 2.5203
B38: If needed, add extra host here. (I) | C38: Unit | E38: 2016 | G38: 2017 | I38: 2018
B42: Rate Description | E42: Rate | G42: Rate | I42: Rate
B44: Network Service Rate | C44: kW
B46: Line Connection Service Rate | C46: kW
B48: Transformation Connection Service Rate | C48: kW
B50: Both Line and Transformation Connection Service Rate | C50: kW | E50: =E48+E46 -> 0 | G50: =G48+G46 -> 0 | I50: =I48+I46 -> 0
B53: If needed, add extra host here. (II) | C53: Unit | E53: 2016 | G53: 2017 | I53: 2018
B57: Rate Description | E57: Rate | G57: Rate | I57: Rate
B59: Network Service Rate | C59: kW
B61: Line Connection Service Rate | C61: kW
B63: Transformation Connection Service Rate | C63: kW
B65: Both Line and Transformation Connection Service Rate | C65: kW | E65: =E63+E61 -> 0 | G65: =G63+G61 -> 0 | I65: =I63+I61 -> 0
E67: Historical 2016 | G67: Current 2017 | I67: Forecast 2018
B68: Low Voltage Switchgear Credit (if applicable, enter as a negative value) | C68: $

Sheet 12. RTSR-Historic Wholesale (hidden)
A1: Back to Index
B2: INCENTIVE REGULATION MODEL FOR 2018 FILERS
B13: In the green shaded cells, enter billing detail for wholesale transmission for the same reporting period as the billing determinants on Tab 10. For Hydro One Sub-transmission Rates, if you are charged a combined Line and Transformer connection rate, please ensure that both the Line Connection and Transformation Connection columns are completed. If any of the Hydro One Sub-transmission rates (column E, I and M) are highlighted in orange, please double check the billing data entered in "Units Billed" and "Amount" columns. The highlighted rates do not match the Hydro One Sub-transmission rates approved for that time period. If data has been entered correctly, please provide explanation for the discrepancy in rates.
B16: IESO | D16: Network | H16: Line Connection | L16: Transformation Connection | P16: Total Line
B17: Month | D17: Units Billed | E17: Rate | F17: Amount | H17: Units Billed | I17: Rate | J17: Amount | L17: Units Billed | M17: Rate | N17: Amount | P17: Amount
B19: January | E19: =IF(D19<>0,F19/D19,0) -> 0 | I19: =IF(H19<>0,J19/H19,0) -> 0 | M19: =IF(L19<>0,N19/L19,0) -> 0 | P19: =J19+N19 -> 0
B20: February | E20: 0 | I20: 0 | M20: 0 | P20: 0
B21: March | E21: 0 | I21: 0 | M21: 0 | P21: 0
B22: April | E22: 0 | I22: 0 | M22: 0 | P22: 0
B23: May | E23: 0 | I23: 0 | M23: 0 | P23: 0
B24: June | E24: 0 | I24: 0 | M24: 0 | P24: 0
B25: July | E25: 0 | I25: 0 | M25: 0 | P25: 0
B26: August | E26: 0 | I26: 0 | M26: 0 | P26: 0
B27: September | E27: 0 | I27: 0 | M27: 0 | P27: 0
B28: October | E28: 0 | I28: 0 | M28: 0 | P28: 0
B29: November | E29: 0 | I29: 0 | M29: 0 | P29: 0
B30: December | E30: 0 | I30: 0 | M30: 0 | P30: 0
B32: Total | D32: =SUM(D19:D30) -> 0 | E32: =IF(D32<>0,F32/D32,0) -> 0 | F32: =SUM(F19:F30) -> 0 | H32: =SUM(H19:H30) -> 0 | I32: =IF(H32<>0,J32/H32,0) -> 0 | J32: =SUM(J19:J30) -> 0 | L32: =SUM(L19:L30) -> 0 | M32: =IF(L32<>0,N32/L32,0) -> 0 | N32: =SUM(N19:N30) -> 0 | P32: =SUM(P19:P30) -> 0
B34: Hydro One | D34: Network | H34: Line Connection | L34: Transformation Connection | P34: Total Line
B36: Month | D36: Units Billed | E36: Rate | F36: Amount | H36: Units Billed | I36: Rate | J36: Amount | L36: Units Billed | M36: Rate | N36: Amount | P36: Amount
B38: January | E38: =IF(D38<>0,F38/D38,0) -> 0 | I38: =IF(H38<>0,J38/H38,0) -> 0 | J38: 9927.48 | M38: =IF(L38<>0,N38/L38,0) -> 0 | P38: =J38+N38 -> 9927.48
B39: February | E39: =IF(D39<>0,F39/D39,0) -> 0 | I39: 0 | J39: 9453.31 | M39: 0 | P39: =J39+N39 -> 9453.31
B40: March | E40: 0 | I40: 0 | J40: 9211.16 | M40: 0 | P40: 9211.16
B41: April | E41: 0 | I41: 0 | J41: 9228.06 | M41: 0 | P41: 9228.06
B42: May | E42: 0 | I42: 0 | J42: 9397.34 | M42: 0 | P42: 9397.34
B43: June | E43: 0 | I43: 0 | J43: 20086.54 | M43: 0 | P43: 20086.54
B44: July | E44: 0 | I44: 0 | J44: 8958.57 | M44: 0 | P44: 8958.57
B45: August | E45: 0 | I45: 0 | J45: 9151.17 | M45: 0 | P45: 9151.17
B46: September | E46: 0 | I46: 0 | J46: 9076.53 | M46: 0 | P46: 9076.53
B47: October | E47: 0 | I47: 0 | J47: 16190.85 | M47: 0 | P47: 16190.85
B48: November | E48: 0 | I48: 0 | J48: 6778.57 | M48: 0 | P48: 6778.57
B49: December | E49: 0 | I49: 0 | J49: 9258.1 | M49: 0 | P49: 9258.1
B51: Total | D51: =SUM(D38:D49) -> 0 | E51: =IF(D51<>0,F51/D51,0) -> 0 | F51: =SUM(F38:F49) -> 0 | H51: =SUM(H38:H49) -> 0 | I51: =IF(H51<>0,J51/H51,0) -> 0 | J51: =SUM(J38:J49) -> 126717.68 | L51: =SUM(L38:L49) -> 0 | M51: =IF(L51<>0,N51/L51,0) -> 0 | N51: =SUM(N38:N49) -> 0 | P51: =SUM(P38:P49) -> 126717.68
B53: Add Extra Host Here (I) | D53: Network | H53: Line Connection | L53: Transformation Connection | P53: Total Line
B54: (if needed)
B55: Month | D55: Units Billed | E55: Rate | F55: Amount | H55: Units Billed | I55: Rate | J55: Amount | L55: Units Billed | M55: Rate | N55: Amount | P55: Amount
B57: January | E57: =IF(D57<>0,F57/D57,0) -> 0 | I57: =IF(H57<>0,J57/H57,0) -> 0 | M57: =IF(L57<>0,N57/L57,0) -> 0 | P57: =J57+N57 -> 0
B58: February | E58: 0 | I58: 0 | M58: 0 | P58: 0
B59: March | E59: 0 | I59: 0 | M59: 0 | P59: 0
B60: April | E60: 0 | I60: 0 | M60: 0 | P60: 0
B61: May | E61: 0 | I61: 0 | M61: 0 | P61: 0
B62: June | E62: 0 | I62: 0 | M62: 0 | P62: 0
B63: July | E63: 0 | I63: 0 | M63: 0 | P63: 0
B64: August | E64: 0 | I64: 0 | M64: 0 | P64: 0
B65: September | E65: 0 | I65: 0 | M65: 0 | P65: 0
B66: October | E66: 0 | I66: 0 | M66: 0 | P66: 0
B67: November | E67: 0 | I67: 0 | M67: 0 | P67: 0
B68: December | E68: 0 | I68: 0 | M68: 0 | P68: 0
B70: Total | D70: =SUM(D57:D68) -> 0 | E70: =IF(D70<>0,F70/D70,0) -> 0 | F70: =SUM(F57:F68) -> 0 | H70: =SUM(H57:H68) -> 0 | I70: =IF(H70<>0,J70/H70,0) -> 0 | J70: =SUM(J57:J68) -> 0 | L70: =SUM(L57:L68) -> 0 | M70: =IF(L70<>0,N70/L70,0) -> 0 | N70: =SUM(N57:N68) -> 0 | P70: =SUM(P57:P68) -> 0
B72: Add Extra Host Here (II) | D72: Network | H72: Line Connection | L72: Transformation Connection | P72: Total Line
B73: (if needed)
B74: Month | D74: Units Billed | E74: Rate | F74: Amount | H74: Units Billed | I74: Rate | J74: Amount | L74: Units Billed | M74: Rate | N74: Amount | P74: Amount
B76: January | E76: =IF(D76<>0,F76/D76,0) -> 0 | I76: =IF(H76<>0,J76/H76,0) -> 0 | M76: =IF(L76<>0,N76/L76,0) -> 0 | P76: =J76+N76 -> 0
B77: February | E77: 0 | I77: 0 | M77: 0 | P77: 0
B78: March | E78: 0 | I78: 0 | M78: 0 | P78: 0
B79: April | E79: 0 | I79: 0 | M79: 0 | P79: 0
B80: May | E80: 0 | I80: 0 | M80: 0 | P80: 0
B81: June | E81: 0 | I81: 0 | M81: 0 | P81: 0
B82: July | E82: 0 | I82: 0 | M82: 0 | P82: 0
B83: August | E83: 0 | I83: 0 | M83: 0 | P83: 0
B84: September | E84: 0 | I84: 0 | M84: 0 | P84: 0
B85: October | E85: 0 | I85: 0 | M85: 0 | P85: 0
B86: November | E86: 0 | I86: 0 | M86: 0 | P86: 0
B87: December | E87: 0 | I87: 0 | M87: 0 | P87: 0
B89: Total | D89: =SUM(D76:D87) -> 0 | E89: =IF(D89<>0,F89/D89,0) -> 0 | F89: =SUM(F76:F87) -> 0 | H89: =SUM(H76:H87) -> 0 | I89: =IF(H89<>0,J89/H89,0) -> 0 | J89: =SUM(J76:J87) -> 0 | L89: =SUM(L76:L87) -> 0 | M89: =IF(L89<>0,N89/L89,0) -> 0 | N89: =SUM(N76:N87) -> 0 | P89: =SUM(P76:P87) -> 0
B91: Total | D91: Network | H91: Line Connection | L91: Transformation Connection | P91: Total Line
B93: Month | D93: Units Billed | E93: Rate | F93: Amount | H93: Units Billed | I93: Rate | J93: Amount | L93: Units Billed | M93: Rate | N93: Amount | P93: Amount
B95: January | D95: =D19+D38+D57+D76 -> 0 | E95: =IF(D95<>0,F95/D95,0) -> 0 | F95: =F19+F38+F57+F76 -> 0 | H95: =H19+H38+H57+H76 -> 0 | I95: =IF(H95<>0,J95/H95,0) -> 0 | J95: =J19+J38+J57+J76 -> 9927.48 | L95: =L19+L38+L57+L76 -> 0 | M95: =IF(L95<>0,N95/L95,0) -> 0 | N95: =N19+N38+N57+N76 -> 0 | P95: =J95+N95 -> 9927.48
B96: February | D96: =D20+D39+D58+D77 -> 0 | E96: 0 | F96: =F20+F39+F58+F77 -> 0 | H96: =H20+H39+H58+H77 -> 0 | I96: 0 | J96: =J20+J39+J58+J77 -> 9453.31 | L96: =L20+L39+L58+L77 -> 0 | M96: 0 | N96: =N20+N39+N58+N77 -> 0 | P96: 9453.31
B97: March | D97: 0 | E97: 0 | F97: 0 | H97: 0 | I97: 0 | J97: 9211.16 | L97: 0 | M97: 0 | N97: 0 | P97: 9211.16
B98: April | D98: 0 | E98: 0 | F98: 0 | H98: 0 | I98: 0 | J98: 9228.06 | L98: 0 | M98: 0 | N98: 0 | P98: 9228.06
B99: May | D99: 0 | E99: 0 | F99: 0 | H99: 0 | I99: 0 | J99: 9397.34 | L99: 0 | M99: 0 | N99: 0 | P99: 9397.34
B100: June | D100: 0 | E100: 0 | F100: 0 | H100: 0 | I100: 0 | J100: 20086.54 | L100: 0 | M100: 0 | N100: 0 | P100: 20086.54
B101: July | D101: 0 | E101: 0 | F101: 0 | H101: 0 | I101: 0 | J101: 8958.57 | L101: 0 | M101: 0 | N101: 0 | P101: 8958.57
B102: August | D102: 0 | E102: 0 | F102: 0 | H102: 0 | I102: 0 | J102: 9151.17 | L102: 0 | M102: 0 | N102: 0 | P102: 9151.17
B103: September | D103: 0 | E103: 0 | F103: 0 | H103: 0 | I103: 0 | J103: 9076.53 | L103: 0 | M103: 0 | N103: 0 | P103: 9076.53
B104: October | D104: 0 | E104: 0 | F104: 0 | H104: 0 | I104: 0 | J104: 16190.85 | L104: 0 | M104: 0 | N104: 0 | P104: 16190.85
B105: November | D105: 0 | E105: 0 | F105: 0 | H105: 0 | I105: 0 | J105: 6778.57 | L105: 0 | M105: 0 | N105: 0 | P105: 6778.57
B106: December | D106: 0 | E106: 0 | F106: 0 | H106: 0 | I106: 0 | J106: 9258.1 | L106: 0 | M106: 0 | N106: 0 | P106: 9258.1
B108: Total | D108: =SUM(D95:D106) -> 0 | E108: =IF(D108<>0,F108/D108,0) -> 0 | F108: =SUM(F95:F106) -> 0 | H108: =SUM(H95:H106) -> 0 | I108: =IF(H108<>0,J108/H108,0) -> 0 | J108: =SUM(J95:J106) -> 126717.68 | L108: =SUM(L95:L106) -> 0 | M108: =IF(L108<>0,N108/L108,0) -> 0 | N108: =SUM(N95:N106) -> 0 | P108: =SUM(P95:P106) -> 126717.68
N110: Low Voltage Switchgear Credit (if applicable) | P110: ='11. RTSR-UTRs & Sub-Tx'!E68 -> 0
N112: Total including deduction for Low Voltage Switchgear Credit | P112: =P108+P110 -> 126717.68

Sheet 13. RTSR-Current Wholesale (hidden)
A1: Back to Index
B2: INCENTIVE REGULATION MODEL FOR 2018 FILERS
B13: The purpose of this sheet is to calculate the expected billing when current 2017 Uniform Transmission Rates are applied against historical 2016 transmission units.
B16: IESO | D16: Network | H16: Line Connection | L16: Transformation Connection | P16: Total Line
B18: Month | D18: Units Billed | E18: Rate | F18: Amount | H18: Units Billed | I18: Rate | J18: Amount | L18: Units Billed | M18: Rate | N18: Amount | P18: Amount
B20: January | D20: ='12. RTSR-Historic Wholesale'!D19 -> 0 | E20: ='11. RTSR-UTRs & Sub-Tx'!G16 -> 3.66 | F20: =D20*E20 -> 0 | H20: ='12. RTSR-Historic Wholesale'!H19 -> 0 | I20: ='11. RTSR-UTRs & Sub-Tx'!G18 -> 0.87 | J20: =H20*I20 -> 0 | L20: ='12. RTSR-Historic Wholesale'!L19 -> 0 | M20: ='11. RTSR-UTRs & Sub-Tx'!G20 -> 2.02 | N20: =L20*M20 -> 0 | P20: =J20+N20 -> 0
B21: February | D21: ='12. RTSR-Historic Wholesale'!D20 -> 0 | E21: =E20 -> 3.66 | F21: =D21*E21 -> 0 | H21: ='12. RTSR-Historic Wholesale'!H20 -> 0 | I21: =I20 -> 0.87 | J21: =H21*I21 -> 0 | L21: ='12. RTSR-Historic Wholesale'!L20 -> 0 | M21: =M20 -> 2.02 | N21: =L21*M21 -> 0 | P21: 0
B22: March | D22: ='12. RTSR-Historic Wholesale'!D21 -> 0 | E22: =E21 -> 3.66 | F22: 0 | H22: ='12. RTSR-Historic Wholesale'!H21 -> 0 | I22: =I21 -> 0.87 | J22: 0 | L22: ='12. RTSR-Historic Wholesale'!L21 -> 0 | M22: =M21 -> 2.02 | N22: 0 | P22: 0
B23: April | D23: ='12. RTSR-Historic Wholesale'!D22 -> 0 | E23: 3.66 | F23: 0 | H23: ='12. RTSR-Historic Wholesale'!H22 -> 0 | I23: 0.87 | J23: 0 | L23: ='12. RTSR-Historic Wholesale'!L22 -> 0 | M23: 2.02 | N23: 0 | P23: 0
B24: May | D24: ='12. RTSR-Historic Wholesale'!D23 -> 0 | E24: 3.66 | F24: 0 | H24: ='12. RTSR-Historic Wholesale'!H23 -> 0 | I24: 0.87 | J24: 0 | L24: ='12. RTSR-Historic Wholesale'!L23 -> 0 | M24: 2.02 | N24: 0 | P24: 0
B25: June | D25: ='12. RTSR-Historic Wholesale'!D24 -> 0 | E25: 3.66 | F25: 0 | H25: ='12. RTSR-Historic Wholesale'!H24 -> 0 | I25: 0.87 | J25: 0 | L25: ='12. RTSR-Historic Wholesale'!L24 -> 0 | M25: 2.02 | N25: 0 | P25: 0
B26: July | D26: ='12. RTSR-Historic Wholesale'!D25 -> 0 | E26: 3.66 | F26: 0 | H26: ='12. RTSR-Historic Wholesale'!H25 -> 0 | I26: 0.87 | J26: 0 | L26: ='12. RTSR-Historic Wholesale'!L25 -> 0 | M26: 2.02 | N26: 0 | P26: 0
B27: August | D27: ='12. RTSR-Historic Wholesale'!D26 -> 0 | E27: 3.66 | F27: 0 | H27: ='12. RTSR-Historic Wholesale'!H26 -> 0 | I27: 0.87 | J27: 0 | L27: ='12. RTSR-Historic Wholesale'!L26 -> 0 | M27: 2.02 | N27: 0 | P27: 0
B28: September | D28: ='12. RTSR-Historic Wholesale'!D27 -> 0 | E28: 3.66 | F28: 0 | H28: ='12. RTSR-Historic Wholesale'!H27 -> 0 | I28: 0.87 | J28: 0 | L28: ='12. RTSR-Historic Wholesale'!L27 -> 0 | M28: 2.02 | N28: 0 | P28: 0
B29: October | D29: ='12. RTSR-Historic Wholesale'!D28 -> 0 | E29: 3.66 | F29: 0 | H29: ='12. RTSR-Historic Wholesale'!H28 -> 0 | I29: 0.87 | J29: 0 | L29: ='12. RTSR-Historic Wholesale'!L28 -> 0 | M29: 2.02 | N29: 0 | P29: 0
B30: November | D30: ='12. RTSR-Historic Wholesale'!D29 -> 0 | E30: 3.66 | F30: 0 | H30: ='12. RTSR-Historic Wholesale'!H29 -> 0 | I30: 0.87 | J30: 0 | L30: ='12. RTSR-Historic Wholesale'!L29 -> 0 | M30: 2.02 | N30: 0 | P30: 0
B31: December | D31: ='12. RTSR-Historic Wholesale'!D30 -> 0 | E31: 3.66 | F31: 0 | H31: ='12. RTSR-Historic Wholesale'!H30 -> 0 | I31: 0.87 | J31: 0 | L31: ='12. RTSR-Historic Wholesale'!L30 -> 0 | M31: 2.02 | N31: 0 | P31: 0
B33: Total | D33: =SUM(D20:D31) -> 0 | E33: =IF(D33<>0,F33/D33,0) -> 0 | F33: =SUM(F20:F31) -> 0 | H33: =SUM(H20:H31) -> 0 | I33: =IF(H33<>0,J33/H33,0) -> 0 | J33: =SUM(J20:J31) -> 0 | L33: =SUM(L20:L31) -> 0 | M33: =IF(L33<>0,N33/L33,0) -> 0 | N33: =SUM(N20:N31) -> 0 | P33: =SUM(P20:P31) -> 0
B35: Hydro One | D35: Network | H35: Line Connection | L35: Transformation Connection | P35: Total Line
B37: Month | D37: Units Billed | E37: Rate | F37: Amount | H37: Units Billed | I37: Rate | J37: Amount | L37: Units Billed | M37: Rate | N37: Amount | P37: Amount
B39: January | D39: ='12. RTSR-Historic Wholesale'!D38 -> 0 | E39: ='11. RTSR-UTRs & Sub-Tx'!G29 -> 3.1942 | F39: =D39*E39 -> 0 | H39: ='12. RTSR-Historic Wholesale'!H38 -> 0 | I39: ='11. RTSR-UTRs & Sub-Tx'!G31 -> 0.771 | J39: =H39*I39 -> 0 | L39: ='12. RTSR-Historic Wholesale'!L38 -> 0 | M39: ='11. RTSR-UTRs & Sub-Tx'!G33 -> 1.7493 | N39: =L39*M39 -> 0 | P39: =J39+N39 -> 0
B40: February | D40: ='12. RTSR-Historic Wholesale'!D39 -> 0 | E40: =E39 -> 3.1942 | F40: =D40*E40 -> 0 | H40: ='12. RTSR-Historic Wholesale'!H39 -> 0 | I40: =I39 -> 0.771 | J40: =H40*I40 -> 0 | L40: ='12. RTSR-Historic Wholesale'!L39 -> 0 | M40: =M39 -> 1.7493 | N40: =L40*M40 -> 0 | P40: 0
B41: March | D41: ='12. RTSR-Historic Wholesale'!D40 -> 0 | E41: =E40 -> 3.1942 | F41: 0 | H41: ='12. RTSR-Historic Wholesale'!H40 -> 0 | I41: =I40 -> 0.771 | J41: 0 | L41: ='12. RTSR-Historic Wholesale'!L40 -> 0 | M41: =M40 -> 1.7493 | N41: 0 | P41: 0
B42: April | D42: ='12. RTSR-Historic Wholesale'!D41 -> 0 | E42: 3.1942 | F42: 0 | H42: ='12. RTSR-Historic Wholesale'!H41 -> 0 | I42: 0.771 | J42: 0 | L42: ='12. RTSR-Historic Wholesale'!L41 -> 0 | M42: =M41 -> 1.7493 | N42: 0 | P42: 0
B43: May | D43: ='12. RTSR-Historic Wholesale'!D42 -> 0 | E43: 3.1942 | F43: 0 | H43: ='12. RTSR-Historic Wholesale'!H42 -> 0 | I43: 0.771 | J43: 0 | L43: ='12. RTSR-Historic Wholesale'!L42 -> 0 | M43: 1.7493 | N43: 0 | P43: 0
B44: June | D44: ='12. RTSR-Historic Wholesale'!D43 -> 0 | E44: 3.1942 | F44: 0 | H44: ='12. RTSR-Historic Wholesale'!H43 -> 0 | I44: 0.771 | J44: 0 | L44: ='12. RTSR-Historic Wholesale'!L43 -> 0 | M44: 1.7493 | N44: 0 | P44: 0
B45: July | D45: ='12. RTSR-Historic Wholesale'!D44 -> 0 | E45: 3.1942 | F45: 0 | H45: ='12. RTSR-Historic Wholesale'!H44 -> 0 | I45: 0.771 | J45: 0 | L45: ='12. RTSR-Historic Wholesale'!L44 -> 0 | M45: 1.7493 | N45: 0 | P45: 0
B46: August | D46: ='12. RTSR-Historic Wholesale'!D45 -> 0 | E46: 3.1942 | F46: 0 | H46: ='12. RTSR-Historic Wholesale'!H45 -> 0 | I46: 0.771 | J46: 0 | L46: ='12. RTSR-Historic Wholesale'!L45 -> 0 | M46: 1.7493 | N46: 0 | P46: 0
B47: September | D47: ='12. RTSR-Historic Wholesale'!D46 -> 0 | E47: 3.1942 | F47: 0 | H47: ='12. RTSR-Historic Wholesale'!H46 -> 0 | I47: 0.771 | J47: 0 | L47: ='12. RTSR-Historic Wholesale'!L46 -> 0 | M47: 1.7493 | N47: 0 | P47: 0
B48: October | D48: ='12. RTSR-Historic Wholesale'!D47 -> 0 | E48: 3.1942 | F48: 0 | H48: ='12. RTSR-Historic Wholesale'!H47 -> 0 | I48: 0.771 | J48: 0 | L48: ='12. RTSR-Historic Wholesale'!L47 -> 0 | M48: 1.7493 | N48: 0 | P48: 0
B49: November | D49: ='12. RTSR-Historic Wholesale'!D48 -> 0 | E49: 3.1942 | F49: 0 | H49: ='12. RTSR-Historic Wholesale'!H48 -> 0 | I49: 0.771 | J49: 0 | L49: ='12. RTSR-Historic Wholesale'!L48 -> 0 | M49: 1.7493 | N49: 0 | P49: 0
B50: December | D50: ='12. RTSR-Historic Wholesale'!D49 -> 0 | E50: 3.1942 | F50: 0 | H50: ='12. RTSR-Historic Wholesale'!H49 -> 0 | I50: 0.771 | J50: 0 | L50: ='12. RTSR-Historic Wholesale'!L49 -> 0 | M50: 1.7493 | N50: 0 | P50: 0
B52: Total | D52: =SUM(D39:D50) -> 0 | E52: =IF(D52<>0,F52/D52,0) -> 0 | F52: =SUM(F39:F50) -> 0 | H52: =SUM(H39:H50) -> 0 | I52: =IF(H52<>0,J52/H52,0) -> 0 | J52: =SUM(J39:J50) -> 0 | L52: =SUM(L39:L50) -> 0 | M52: =IF(L52<>0,N52/L52,0) -> 0 | N52: =SUM(N39:N50) -> 0 | P52: =SUM(P39:P50) -> 0
B54: Add Extra Host Here (I) | D54: Network | H54: Line Connection | L54: Transformation Connection | P54: Total Line
B56: Month | D56: Units Billed | E56: Rate | F56: Amount | H56: Units Billed | I56: Rate | J56: Amount | L56: Units Billed | M56: Rate | N56: Amount | P56: Amount
B58: January | D58: ='12. RTSR-Historic Wholesale'!D57 -> 0 | E58: ='11. RTSR-UTRs & Sub-Tx'!G44 -> 0 | F58: =D58*E58 -> 0 | H58: ='12. RTSR-Historic Wholesale'!H57 -> 0 | I58: ='11. RTSR-UTRs & Sub-Tx'!G46 -> 0 | J58: =H58*I58 -> 0 | L58: ='12. RTSR-Historic Wholesale'!L57 -> 0 | M58: ='11. RTSR-UTRs & Sub-Tx'!G48 -> 0 | N58: =L58*M58 -> 0 | P58: =J58+N58 -> 0
B59: February | D59: ='12. RTSR-Historic Wholesale'!D58 -> 0 | E59: =E58 -> 0 | F59: =D59*E59 -> 0 | H59: ='12. RTSR-Historic Wholesale'!H58 -> 0 | I59: =I58 -> 0 | J59: =H59*I59 -> 0 | L59: ='12. RTSR-Historic Wholesale'!L58 -> 0 | M59: =M58 -> 0 | N59: =L59*M59 -> 0 | P59: 0
B60: March | D60: ='12. RTSR-Historic Wholesale'!D59 -> 0 | E60: =E59 -> 0 | F60: 0 | H60: ='12. RTSR-Historic Wholesale'!H59 -> 0 | I60: =I59 -> 0 | J60: 0 | L60: ='12. RTSR-Historic Wholesale'!L59 -> 0 | M60: =M59 -> 0 | N60: 0 | P60: 0
B61: April | D61: ='12. RTSR-Historic Wholesale'!D60 -> 0 | E61: 0 | F61: 0 | H61: ='12. RTSR-Historic Wholesale'!H60 -> 0 | I61: 0 | J61: 0 | L61: ='12. RTSR-Historic Wholesale'!L60 -> 0 | M61: 0 | N61: 0 | P61: 0
B62: May | D62: ='12. RTSR-Historic Wholesale'!D61 -> 0 | E62: 0 | F62: 0 | H62: ='12. RTSR-Historic Wholesale'!H61 -> 0 | I62: 0 | J62: 0 | L62: ='12. RTSR-Historic Wholesale'!L61 -> 0 | M62: 0 | N62: 0 | P62: 0
B63: June | D63: ='12. RTSR-Historic Wholesale'!D62 -> 0 | E63: 0 | F63: 0 | H63: ='12. RTSR-Historic Wholesale'!H62 -> 0 | I63: 0 | J63: 0 | L63: ='12. RTSR-Historic Wholesale'!L62 -> 0 | M63: 0 | N63: 0 | P63: 0
B64: July | D64: ='12. RTSR-Historic Wholesale'!D63 -> 0 | E64: 0 | F64: 0 | H64: ='12. RTSR-Historic Wholesale'!H63 -> 0 | I64: 0 | J64: 0 | L64: ='12. RTSR-Historic Wholesale'!L63 -> 0 | M64: 0 | N64: 0 | P64: 0
B65: August | D65: ='12. RTSR-Historic Wholesale'!D64 -> 0 | E65: 0 | F65: 0 | H65: ='12. RTSR-Historic Wholesale'!H64 -> 0 | I65: 0 | J65: 0 | L65: ='12. RTSR-Historic Wholesale'!L64 -> 0 | M65: 0 | N65: 0 | P65: 0
B66: September | D66: ='12. RTSR-Historic Wholesale'!D65 -> 0 | E66: 0 | F66: 0 | H66: ='12. RTSR-Historic Wholesale'!H65 -> 0 | I66: 0 | J66: 0 | L66: ='12. RTSR-Historic Wholesale'!L65 -> 0 | M66: 0 | N66: 0 | P66: 0
B67: October | D67: ='12. RTSR-Historic Wholesale'!D66 -> 0 | E67: 0 | F67: 0 | H67: ='12. RTSR-Historic Wholesale'!H66 -> 0 | I67: 0 | J67: 0 | L67: ='12. RTSR-Historic Wholesale'!L66 -> 0 | M67: 0 | N67: 0 | P67: 0
B68: November | D68: ='12. RTSR-Historic Wholesale'!D67 -> 0 | E68: 0 | F68: 0 | H68: ='12. RTSR-Historic Wholesale'!H67 -> 0 | I68: 0 | J68: 0 | L68: ='12. RTSR-Historic Wholesale'!L67 -> 0 | M68: 0 | N68: 0 | P68: 0
B69: December | D69: ='12. RTSR-Historic Wholesale'!D68 -> 0 | E69: 0 | F69: 0 | H69: ='12. RTSR-Historic Wholesale'!H68 -> 0 | I69: 0 | J69: 0 | L69: ='12. RTSR-Historic Wholesale'!L68 -> 0 | M69: 0 | N69: 0 | P69: 0
B71: Total | D71: =SUM(D58:D69) -> 0 | E71: =IF(D71<>0,F71/D71,0) -> 0 | F71: =SUM(F58:F69) -> 0 | H71: =SUM(H58:H69) -> 0 | I71: =IF(H71<>0,J71/H71,0) -> 0 | J71: =SUM(J58:J69) -> 0 | L71: =SUM(L58:L69) -> 0 | M71: =IF(L71<>0,N71/L71,0) -> 0 | N71: =SUM(N58:N69) -> 0 | P71: =SUM(P58:P69) -> 0
B73: Add Extra Host Here (II) | D73: Network | H73: Line Connection | L73: Transformation Connection | P73: Total Line
B75: Month | D75: Units Billed | E75: Rate | F75: Amount | H75: Units Billed | I75: Rate | J75: Amount | L75: Units Billed | M75: Rate | N75: Amount | P75: Amount
B77: January | D77: ='12. RTSR-Historic Wholesale'!D76 -> 0 | E77: ='11. RTSR-UTRs & Sub-Tx'!G59 -> 0 | F77: =D77*E77 -> 0 | H77: ='12. RTSR-Historic Wholesale'!H76 -> 0 | I77: ='11. RTSR-UTRs & Sub-Tx'!G61 -> 0 | J77: =H77*I77 -> 0 | L77: ='12. RTSR-Historic Wholesale'!L76 -> 0 | M77: ='11. RTSR-UTRs & Sub-Tx'!G63 -> 0 | N77: =L77*M77 -> 0 | P77: =J77+N77 -> 0
B78: February | D78: ='12. RTSR-Historic Wholesale'!D77 -> 0 | E78: =E77 -> 0 | F78: =D78*E78 -> 0 | H78: ='12. RTSR-Historic Wholesale'!H77 -> 0 | I78: =I77 -> 0 | J78: =H78*I78 -> 0 | L78: ='12. RTSR-Historic Wholesale'!L77 -> 0 | M78: =M77 -> 0 | N78: =L78*M78 -> 0 | P78: 0
B79: March | D79: ='12. RTSR-Historic Wholesale'!D78 -> 0 | E79: =E78 -> 0 | F79: 0 | H79: ='12. RTSR-Historic Wholesale'!H78 -> 0 | I79: =I78 -> 0 | J79: 0 | L79: ='12. RTSR-Historic Wholesale'!L78 -> 0 | M79: =M78 -> 0 | N79: 0 | P79: 0
B80: April | D80: ='12. RTSR-Historic Wholesale'!D79 -> 0 | E80: 0 | F80: 0 | H80: ='12. RTSR-Historic Wholesale'!H79 -> 0 | I80: 0 | J80: 0 | L80: ='12. RTSR-Historic Wholesale'!L79 -> 0 | M80: =M79 -> 0 | N80: 0 | P80: 0
B81: May | D81: ='12. RTSR-Historic Wholesale'!D80 -> 0 | E81: 0 | F81: 0 | H81: ='12. RTSR-Historic Wholesale'!H80 -> 0 | I81: 0 | J81: 0 | L81: ='12. RTSR-Historic Wholesale'!L80 -> 0 | M81: 0 | N81: 0 | P81: 0
B82: June | D82: ='12. RTSR-Historic Wholesale'!D81 -> 0 | E82: 0 | F82: 0 | H82: ='12. RTSR-Historic Wholesale'!H81 -> 0 | I82: 0 | J82: 0 | L82: ='12. RTSR-Historic Wholesale'!L81 -> 0 | M82: 0 | N82: 0 | P82: 0
B83: July | D83: ='12. RTSR-Historic Wholesale'!D82 -> 0 | E83: 0 | F83: 0 | H83: ='12. RTSR-Historic Wholesale'!H82 -> 0 | I83: 0 | J83: 0 | L83: ='12. RTSR-Historic Wholesale'!L82 -> 0 | M83: 0 | N83: 0 | P83: 0
B84: August | D84: ='12. RTSR-Historic Wholesale'!D83 -> 0 | E84: 0 | F84: 0 | H84: ='12. RTSR-Historic Wholesale'!H83 -> 0 | I84: 0 | J84: 0 | L84: ='12. RTSR-Historic Wholesale'!L83 -> 0 | M84: 0 | N84: 0 | P84: 0
B85: September | D85: ='12. RTSR-Historic Wholesale'!D84 -> 0 | E85: 0 | F85: 0 | H85: ='12. RTSR-Historic Wholesale'!H84 -> 0 | I85: 0 | J85: 0 | L85: ='12. RTSR-Historic Wholesale'!L84 -> 0 | M85: 0 | N85: 0 | P85: 0
B86: October | D86: ='12. RTSR-Historic Wholesale'!D85 -> 0 | E86: 0 | F86: 0 | H86: ='12. RTSR-Historic Wholesale'!H85 -> 0 | I86: 0 | J86: 0 | L86: ='12. RTSR-Historic Wholesale'!L85 -> 0 | M86: 0 | N86: 0 | P86: 0
B87: November | D87: ='12. RTSR-Historic Wholesale'!D86 -> 0 | E87: 0 | F87: 0 | H87: ='12. RTSR-Historic Wholesale'!H86 -> 0 | I87: 0 | J87: 0 | L87: ='12. RTSR-Historic Wholesale'!L86 -> 0 | M87: 0 | N87: 0 | P87: 0
B88: December | D88: ='12. RTSR-Historic Wholesale'!D87 -> 0 | E88: 0 | F88: 0 | H88: ='12. RTSR-Historic Wholesale'!H87 -> 0 | I88: 0 | J88: 0 | L88: ='12. RTSR-Historic Wholesale'!L87 -> 0 | M88: 0 | N88: 0 | P88: 0
B90: Total | D90: =SUM(D77:D88) -> 0 | E90: =IF(D90<>0,F90/D90,0) -> 0 | F90: =SUM(F77:F88) -> 0 | H90: =SUM(H77:H88) -> 0 | I90: =IF(H90<>0,J90/H90,0) -> 0 | J90: =SUM(J77:J88) -> 0 | L90: =SUM(L77:L88) -> 0 | M90: =IF(L90<>0,N90/L90,0) -> 0 | N90: =SUM(N77:N88) -> 0 | P90: =SUM(P77:P88) -> 0
B92: Total | D92: Network | H92: Line Connection | L92: Transformation Connection | P92: Total Line
B94: Month | D94: Units Billed | E94: Rate | F94: Amount | H94: Units Billed | I94: Rate | J94: Amount | L94: Units Billed | M94: Rate | N94: Amount | P94: Amount
B96: January | D96: =D20+D39+D58+D77 -> 0 | E96: =IF(D96<>0,F96/D96,0) -> 0 | F96: =F20+F39+F58+F77 -> 0 | H96: =H20+H39+H58+H77 -> 0 | I96: =IF(H96<>0,J96/H96,0) -> 0 | J96: =J20+J39+J58+J77 -> 0 | L96: =L20+L39+L58+L77 -> 0 | M96: =IF(L96<>0,N96/L96,0) -> 0 | N96: =N20+N39+N58+N77 -> 0 | P96: =J96+N96 -> 0
B97: February | D97: =D21+D40+D59+D78 -> 0 | E97: 0 | F97: =F21+F40+F59+F78 -> 0 | H97: =H21+H40+H59+H78 -> 0 | I97: 0 | J97: =J21+J40+J59+J78 -> 0 | L97: =L21+L40+L59+L78 -> 0 | M97: 0 | N97: =N21+N40+N59+N78 -> 0 | P97: 0
B98: March | D98: 0 | E98: 0 | F98: 0 | H98: 0 | I98: 0 | J98: 0 | L98: 0 | M98: 0 | N98: 0 | P98: 0
B99: April | D99: 0 | E99: 0 | F99: 0 | H99: 0 | I99: 0 | J99: 0 | L99: 0 | M99: 0 | N99: 0 | P99: 0
B100: May | D100: 0 | E100: 0 | F100: 0 | H100: 0 | I100: 0 | J100: 0 | L100: 0 | M100: 0 | N100: 0 | P100: 0
B101: June | D101: 0 | E101: 0 | F101: 0 | H101: 0 | I101: 0 | J101: 0 | L101: 0 | M101: 0 | N101: 0 | P101: 0
B102: July | D102: 0 | E102: 0 | F102: 0 | H102: 0 | I102: 0 | J102: 0 | L102: 0 | M102: 0 | N102: 0 | P102: 0
B103: August | D103: 0 | E103: 0 | F103: 0 | H103: 0 | I103: 0 | J103: 0 | L103: 0 | M103: 0 | N103: 0 | P103: 0
B104: September | D104: 0 | E104: 0 | F104: 0 | H104: 0 | I104: 0 | J104: 0 | L104: 0 | M104: 0 | N104: 0 | P104: 0
B105: October | D105: 0 | E105: 0 | F105: 0 | H105: 0 | I105: 0 | J105: 0 | L105: 0 | M105: 0 | N105: 0 | P105: 0
B106: November | D106: 0 | E106: 0 | F106: 0 | H106: 0 | I106: 0 | J106: 0 | L106: 0 | M106: 0 | N106: 0 | P106: 0
B107: December | D107: 0 | E107: 0 | F107: 0 | H107: 0 | I107: 0 | J107: 0 | L107: 0 | M107: 0 | N107: 0 | P107: 0
B109: Total | D109: =SUM(D96:D107) -> 0 | E109: =IF(D109<>0,F109/D109,0) -> 0 | F109: =SUM(F96:F107) -> 0 | H109: =SUM(H96:H107) -> 0 | I109: =IF(H109<>0,J109/H109,0) -> 0 | J109: =SUM(J96:J107) -> 0 | L109: =SUM(L96:L107) -> 0 | M109: =IF(L109<>0,N109/L109,0) -> 0 | N109: =SUM(N96:N107) -> 0 | P109: =SUM(P96:P107) -> 0
N111: Low Voltage Switchgear Credit (if applicable) | P111: ='11. RTSR-UTRs & Sub-Tx'!G68 -> 0
N113: Total including deduction for Low Voltage Switchgear Credit | P113: =P109+P111 -> 0

Sheet 14. RTSR-Forecast Wholesale (hidden)
A1: Back to Index
B2: INCENTIVE REGULATION MODEL FOR 2018 FILERS
B13: The purpose of this sheet is to calculate the expected billing when forecasted 2018 Uniform Transmission Rates are applied against historical 2016 transmission units.
B16: IESO | D16: Network | H16: Line Connection | L16: Transformation Connection | P16: Total Line
B18: Month | D18: Units Billed | E18: Rate | F18: Amount | H18: Units Billed | I18: Rate | J18: Amount | L18: Units Billed | M18: Rate | N18: Amount | P18: Amount
B20: January | D20: ='12. RTSR-Historic Wholesale'!D19 -> 0 | E20: ='11. RTSR-UTRs & Sub-Tx'!I16 -> 3.66 | F20: =D20*E20 -> 0 | H20: ='12. RTSR-Historic Wholesale'!H19 -> 0 | I20: ='11. RTSR-UTRs & Sub-Tx'!I18 -> 0.87 | J20: =H20*I20 -> 0 | L20: ='12. RTSR-Historic Wholesale'!L19 -> 0 | M20: ='11. RTSR-UTRs & Sub-Tx'!I20 -> 2.02 | N20: =L20*M20 -> 0 | P20: =J20+N20 -> 0
B21: February | D21: ='12. RTSR-Historic Wholesale'!D20 -> 0 | E21: =E20 -> 3.66 | F21: 0 | H21: ='12. RTSR-Historic Wholesale'!H20 -> 0 | I21: =I20 -> 0.87 | J21: 0 | L21: ='12. RTSR-Historic Wholesale'!L20 -> 0 | M21: =M20 -> 2.02 | N21: 0 | P21: 0
B22: March | D22: ='12. RTSR-Historic Wholesale'!D21 -> 0 | E22: 3.66 | F22: 0 | H22: ='12. RTSR-Historic Wholesale'!H21 -> 0 | I22: 0.87 | J22: 0 | L22: ='12. RTSR-Historic Wholesale'!L21 -> 0 | M22: 2.02 | N22: 0 | P22: 0
B23: April | D23: ='12. RTSR-Historic Wholesale'!D22 -> 0 | E23: 3.66 | F23: 0 | H23: ='12. RTSR-Historic Wholesale'!H22 -> 0 | I23: 0.87 | J23: 0 | L23: ='12. RTSR-Historic Wholesale'!L22 -> 0 | M23: 2.02 | N23: 0 | P23: 0
B24: May | D24: ='12. RTSR-Historic Wholesale'!D23 -> 0 | E24: 3.66 | F24: 0 | H24: ='12. RTSR-Historic Wholesale'!H23 -> 0 | I24: 0.87 | J24: 0 | L24: ='12. RTSR-Historic Wholesale'!L23 -> 0 | M24: 2.02 | N24: 0 | P24: 0
B25: June | D25: ='12. RTSR-Historic Wholesale'!D24 -> 0 | E25: 3.66 | F25: 0 | H25: ='12. RTSR-Historic Wholesale'!H24 -> 0 | I25: 0.87 | J25: 0 | L25: ='12. RTSR-Historic Wholesale'!L24 -> 0 | M25: 2.02 | N25: 0 | P25: 0
B26: July | D26: ='12. RTSR-Historic Wholesale'!D25 -> 0 | E26: 3.66 | F26: 0 | H26: ='12. RTSR-Historic Wholesale'!H25 -> 0 | I26: 0.87 | J26: 0 | L26: ='12. RTSR-Historic Wholesale'!L25 -> 0 | M26: 2.02 | N26: 0 | P26: 0
B27: August | D27: ='12. RTSR-Historic Wholesale'!D26 -> 0 | E27: 3.66 | F27: 0 | H27: ='12. RTSR-Historic Wholesale'!H26 -> 0 | I27: 0.87 | J27: 0 | L27: ='12. RTSR-Historic Wholesale'!L26 -> 0 | M27: 2.02 | N27: 0 | P27: 0
B28: September | D28: ='12. RTSR-Historic Wholesale'!D27 -> 0 | E28: 3.66 | F28: 0 | H28: ='12. RTSR-Historic Wholesale'!H27 -> 0 | I28: 0.87 | J28: 0 | L28: ='12. RTSR-Historic Wholesale'!L27 -> 0 | M28: 2.02 | N28: 0 | P28: 0
B29: October | D29: ='12. RTSR-Historic Wholesale'!D28 -> 0 | E29: 3.66 | F29: 0 | H29: ='12. RTSR-Historic Wholesale'!H28 -> 0 | I29: 0.87 | J29: 0 | L29: ='12. RTSR-Historic Wholesale'!L28 -> 0 | M29: 2.02 | N29: 0 | P29: 0
B30: November | D30: ='12. RTSR-Historic Wholesale'!D29 -> 0 | E30: 3.66 | F30: 0 | H30: ='12. RTSR-Historic Wholesale'!H29 -> 0 | I30: 0.87 | J30: 0 | L30: ='12. RTSR-Historic Wholesale'!L29 -> 0 | M30: 2.02 | N30: 0 | P30: 0
B31: December | D31: ='12. RTSR-Historic Wholesale'!D30 -> 0 | E31: 3.66 | F31: 0 | H31: ='12. RTSR-Historic Wholesale'!H30 -> 0 | I31: 0.87 | J31: 0 | L31: ='12. RTSR-Historic Wholesale'!L30 -> 0 | M31: 2.02 | N31: 0 | P31: 0
B33: Total | D33: =SUM(D20:D31) -> 0 | E33: =IF(D33<>0,F33/D33,0) -> 0 | F33: =SUM(F20:F31) -> 0 | H33: =SUM(H20:H31) -> 0 | I33: =IF(H33<>0,J33/H33,0) -> 0 | J33: =SUM(J20:J31) -> 0 | L33: =SUM(L20:L31) -> 0 | M33: =IF(L33<>0,N33/L33,0) -> 0 | N33: =SUM(N20:N31) -> 0 | P33: =SUM(P20:P31) -> 0
B35: Hydro One | D35: Network | H35: Line Connection | L35: Transformation Connection | P35: Total Line
B37: Month | D37: Units Billed | E37: Rate | F37: Amount | H37: Units Billed | I37: Rate | J37: Amount | L37: Units Billed | M37: Rate | N37: Amount | P37: Amount
B39: January | D39: ='12. RTSR-Historic Wholesale'!D38 -> 0 | E39: ='11. RTSR-UTRs & Sub-Tx'!I29 -> 3.1942 | F39: =D39*E39 -> 0 | H39: ='12. RTSR-Historic Wholesale'!H38 -> 0 | I39: ='11. RTSR-UTRs & Sub-Tx'!I31 -> 0.771 | J39: =H39*I39 -> 0 | L39: ='12. RTSR-Historic Wholesale'!L38 -> 0 | M39: ='11. RTSR-UTRs & Sub-Tx'!I33 -> 1.7493 | N39: =L39*M39 -> 0 | P39: =J39+N39 -> 0
B40: February | D40: ='12. RTSR-Historic Wholesale'!D39 -> 0 | E40: =E39 -> 3.1942 | F40: 0 | H40: ='12. RTSR-Historic Wholesale'!H39 -> 0 | I40: =I39 -> 0.771 | J40: 0 | L40: ='12. RTSR-Historic Wholesale'!L39 -> 0 | M40: =M39 -> 1.7493 | N40: 0 | P40: 0
B41: March | D41: ='12. RTSR-Historic Wholesale'!D40 -> 0 | E41: 3.1942 | F41: 0 | H41: ='12. RTSR-Historic Wholesale'!H40 -> 0 | I41: 0.771 | J41: 0 | L41: ='12. RTSR-Historic Wholesale'!L40 -> 0 | M41: 1.7493 | N41: 0 | P41: 0
B42: April | D42: ='12. RTSR-Historic Wholesale'!D41 -> 0 | E42: 3.1942 | F42: 0 | H42: ='12. RTSR-Historic Wholesale'!H41 -> 0 | I42: 0.771 | J42: 0 | L42: ='12. RTSR-Historic Wholesale'!L41 -> 0 | M42: 1.7493 | N42: 0 | P42: 0
B43: May | D43: ='12. RTSR-Historic Wholesale'!D42 -> 0 | E43: 3.1942 | F43: 0 | H43: ='12. RTSR-Historic Wholesale'!H42 -> 0 | I43: 0.771 | J43: 0 | L43: ='12. RTSR-Historic Wholesale'!L42 -> 0 | M43: 1.7493 | N43: 0 | P43: 0
B44: June | D44: ='12. RTSR-Historic Wholesale'!D43 -> 0 | E44: 3.1942 | F44: 0 | H44: ='12. RTSR-Historic Wholesale'!H43 -> 0 | I44: 0.771 | J44: 0 | L44: ='12. RTSR-Historic Wholesale'!L43 -> 0 | M44: 1.7493 | N44: 0 | P44: 0
B45: July | D45: ='12. RTSR-Historic Wholesale'!D44 -> 0 | E45: 3.1942 | F45: 0 | H45: ='12. RTSR-Historic Wholesale'!H44 -> 0 | I45: 0.771 | J45: 0 | L45: ='12. RTSR-Historic Wholesale'!L44 -> 0 | M45: 1.7493 | N45: 0 | P45: 0
B46: August | D46: ='12. RTSR-Historic Wholesale'!D45 -> 0 | E46: 3.1942 | F46: 0 | H46: ='12. RTSR-Historic Wholesale'!H45 -> 0 | I46: 0.771 | J46: 0 | L46: ='12. RTSR-Historic Wholesale'!L45 -> 0 | M46: 1.7493 | N46: 0 | P46: 0
B47: September | D47: ='12. RTSR-Historic Wholesale'!D46 -> 0 | E47: 3.1942 | F47: 0 | H47: ='12. RTSR-Historic Wholesale'!H46 -> 0 | I47: 0.771 | J47: 0 | L47: ='12. RTSR-Historic Wholesale'!L46 -> 0 | M47: 1.7493 | N47: 0 | P47: 0
B48: October | D48: ='12. RTSR-Historic Wholesale'!D47 -> 0 | E48: 3.1942 | F48: 0 | H48: ='12. RTSR-Historic Wholesale'!H47 -> 0 | I48: 0.771 | J48: 0 | L48: ='12. RTSR-Historic Wholesale'!L47 -> 0 | M48: 1.7493 | N48: 0 | P48: 0
B49: November | D49: ='12. RTSR-Historic Wholesale'!D48 -> 0 | E49: 3.1942 | F49: 0 | H49: ='12. RTSR-Historic Wholesale'!H48 -> 0 | I49: 0.771 | J49: 0 | L49: ='12. RTSR-Historic Wholesale'!L48 -> 0 | M49: 1.7493 | N49: 0 | P49: 0
B50: December | D50: ='12. RTSR-Historic Wholesale'!D49 -> 0 | E50: 3.1942 | F50: 0 | H50: ='12. RTSR-Historic Wholesale'!H49 -> 0 | I50: 0.771 | J50: 0 | L50: ='12. RTSR-Historic Wholesale'!L49 -> 0 | M50: 1.7493 | N50: 0 | P50: 0
B52: Total | D52: =SUM(D39:D50) -> 0 | E52: =IF(D52<>0,F52/D52,0) -> 0 | F52: =SUM(F39:F50) -> 0 | H52: =SUM(H39:H50) -> 0 | I52: =IF(H52<>0,J52/H52,0) -> 0 | J52: =SUM(J39:J50) -> 0 | L52: =SUM(L39:L50) -> 0 | M52: =IF(L52<>0,N52/L52,0) -> 0 | N52: =SUM(N39:N50) -> 0 | P52: =SUM(P39:P50) -> 0
B54: Add Extra Host Here (I) | D54: Network | H54: Line Connection | L54: Transformation Connection | P54: Total Line
B56: Month | D56: Units Billed | E56: Rate | F56: Amount | H56: Units Billed | I56: Rate | J56: Amount | L56: Units Billed | M56: Rate | N56: Amount | P56: Amount
B58: January | D58: ='12. RTSR-Historic Wholesale'!D57 -> 0 | E58: ='11. RTSR-UTRs & Sub-Tx'!I44 -> 0 | F58: =D58*E58 -> 0 | H58: ='12. RTSR-Historic Wholesale'!H57 -> 0 | I58: ='11. RTSR-UTRs & Sub-Tx'!I46 -> 0 | J58: =H58*I58 -> 0 | L58: ='12. RTSR-Historic Wholesale'!L57 -> 0 | M58: ='11. RTSR-UTRs & Sub-Tx'!I48 -> 0 | N58: =L58*M58 -> 0 | P58: =J58+N58 -> 0
B59: February | D59: ='12. RTSR-Historic Wholesale'!D58 -> 0 | E59: =E58 -> 0 | F59: 0 | H59: ='12. RTSR-Historic Wholesale'!H58 -> 0 | I59: =I58 -> 0 | J59: 0 | L59: ='12. RTSR-Historic Wholesale'!L58 -> 0 | M59: =M58 -> 0 | N59: 0 | P59: 0
B60: March | D60: ='12. RTSR-Historic Wholesale'!D59 -> 0 | E60: 0 | F60: 0 | H60: ='12. RTSR-Historic Wholesale'!H59 -> 0 | I60: 0 | J60: 0 | L60: ='12. RTSR-Historic Wholesale'!L59 -> 0 | M60: 0 | N60: 0 | P60: 0
B61: April | D61: ='12. RTSR-Historic Wholesale'!D60 -> 0 | E61: 0 | F61: 0 | H61: ='12. RTSR-Historic Wholesale'!H60 -> 0 | I61: 0 | J61: 0 | L61: ='12. RTSR-Historic Wholesale'!L60 -> 0 | M61: 0 | N61: 0 | P61: 0
B62: May | D62: ='12. RTSR-Historic Wholesale'!D61 -> 0 | E62: 0 | F62: 0 | H62: ='12. RTSR-Historic Wholesale'!H61 -> 0 | I62: 0 | J62: 0 | L62: ='12. RTSR-Historic Wholesale'!L61 -> 0 | M62: 0 | N62: 0 | P62: 0
B63: June | D63: ='12. RTSR-Historic Wholesale'!D62 -> 0 | E63: 0 | F63: 0 | H63: ='12. RTSR-Historic Wholesale'!H62 -> 0 | I63: 0 | J63: 0 | L63: ='12. RTSR-Historic Wholesale'!L62 -> 0 | M63: 0 | N63: 0 | P63: 0
B64: July | D64: ='12. RTSR-Historic Wholesale'!D63 -> 0 | E64: 0 | F64: 0 | H64: ='12. RTSR-Historic Wholesale'!H63 -> 0 | I64: 0 | J64: 0 | L64: ='12. RTSR-Historic Wholesale'!L63 -> 0 | M64: 0 | N64: 0 | P64: 0
B65: August | D65: ='12. RTSR-Historic Wholesale'!D64 -> 0 | E65: 0 | F65: 0 | H65: ='12. RTSR-Historic Wholesale'!H64 -> 0 | I65: 0 | J65: 0 | L65: ='12. RTSR-Historic Wholesale'!L64 -> 0 | M65: 0 | N65: 0 | P65: 0
B66: September | D66: ='12. RTSR-Historic Wholesale'!D65 -> 0 | E66: 0 | F66: 0 | H66: ='12. RTSR-Historic Wholesale'!H65 -> 0 | I66: 0 | J66: 0 | L66: ='12. RTSR-Historic Wholesale'!L65 -> 0 | M66: 0 | N66: 0 | P66: 0
B67: October | D67: ='12. RTSR-Historic Wholesale'!D66 -> 0 | E67: 0 | F67: 0 | H67: ='12. RTSR-Historic Wholesale'!H66 -> 0 | I67: 0 | J67: 0 | L67: ='12. RTSR-Historic Wholesale'!L66 -> 0 | M67: 0 | N67: 0 | P67: 0
B68: November | D68: ='12. RTSR-Historic Wholesale'!D67 -> 0 | E68: 0 | F68: 0 | H68: ='12. RTSR-Historic Wholesale'!H67 -> 0 | I68: 0 | J68: 0 | L68: ='12. RTSR-Historic Wholesale'!L67 -> 0 | M68: 0 | N68: 0 | P68: 0
B69: December | D69: ='12. RTSR-Historic Wholesale'!D68 -> 0 | E69: 0 | F69: 0 | H69: ='12. RTSR-Historic Wholesale'!H68 -> 0 | I69: 0 | J69: 0 | L69: ='12. RTSR-Historic Wholesale'!L68 -> 0 | M69: 0 | N69: 0 | P69: 0
B71: Total | D71: =SUM(D58:D69) -> 0 | E71: =IF(D71<>0,F71/D71,0) -> 0 | F71: =SUM(F58:F69) -> 0 | H71: =SUM(H58:H69) -> 0 | I71: =IF(H71<>0,J71/H71,0) -> 0 | J71: =SUM(J58:J69) -> 0 | L71: =SUM(L58:L69) -> 0 | M71: =IF(L71<>0,N71/L71,0) -> 0 | N71: =SUM(N58:N69) -> 0 | P71: =SUM(P58:P69) -> 0
B73: Add Extra Host Here (II) | D73: Network | H73: Line Connection | L73: Transformation Connection | P73: Total Line
B75: Month | D75: Units Billed | E75: Rate | F75: Amount | H75: Units Billed | I75: Rate | J75: Amount | L75: Units Billed | M75: Rate | N75: Amount | P75: Amount
B77: January | D77: ='12. RTSR-Historic Wholesale'!D76 -> 0 | E77: ='11. RTSR-UTRs & Sub-Tx'!I59 -> 0 | F77: =D77*E77 -> 0 | H77: ='12. RTSR-Historic Wholesale'!H76 -> 0 | I77: ='11. RTSR-UTRs & Sub-Tx'!I61 -> 0 | J77: =H77*I77 -> 0 | L77: ='12. RTSR-Historic Wholesale'!L76 -> 0 | M77: ='11. RTSR-UTRs & Sub-Tx'!I63 -> 0 | N77: =L77*M77 -> 0 | P77: =J77+N77 -> 0
B78: February | D78: ='12. RTSR-Historic Wholesale'!D77 -> 0 | E78: =E77 -> 0 | F78: 0 | H78: ='12. RTSR-Historic Wholesale'!H77 -> 0 | I78: =I77 -> 0 | J78: 0 | L78: ='12. RTSR-Historic Wholesale'!L77 -> 0 | M78: =M77 -> 0 | N78: 0 | P78: 0
B79: March | D79: ='12. RTSR-Historic Wholesale'!D78 -> 0 | E79: 0 | F79: 0 | H79: ='12. RTSR-Historic Wholesale'!H78 -> 0 | I79: 0 | J79: 0 | L79: ='12. RTSR-Historic Wholesale'!L78 -> 0 | M79: 0 | N79: 0 | P79: 0
B80: April | D80: ='12. RTSR-Historic Wholesale'!D79 -> 0 | E80: 0 | F80: 0 | H80: ='12. RTSR-Historic Wholesale'!H79 -> 0 | I80: 0 | J80: 0 | L80: ='12. RTSR-Historic Wholesale'!L79 -> 0 | M80: 0 | N80: 0 | P80: 0
B81: May | D81: ='12. RTSR-Historic Wholesale'!D80 -> 0 | E81: 0 | F81: 0 | H81: ='12. RTSR-Historic Wholesale'!H80 -> 0 | I81: 0 | J81: 0 | L81: ='12. RTSR-Historic Wholesale'!L80 -> 0 | M81: 0 | N81: 0 | P81: 0
B82: June | D82: ='12. RTSR-Historic Wholesale'!D81 -> 0 | E82: 0 | F82: 0 | H82: ='12. RTSR-Historic Wholesale'!H81 -> 0 | I82: 0 | J82: 0 | L82: ='12. RTSR-Historic Wholesale'!L81 -> 0 | M82: 0 | N82: 0 | P82: 0
B83: July | D83: ='12. RTSR-Historic Wholesale'!D82 -> 0 | E83: 0 | F83: 0 | H83: ='12. RTSR-Historic Wholesale'!H82 -> 0 | I83: 0 | J83: 0 | L83: ='12. RTSR-Historic Wholesale'!L82 -> 0 | M83: 0 | N83: 0 | P83: 0
B84: August | D84: ='12. RTSR-Historic Wholesale'!D83 -> 0 | E84: 0 | F84: 0 | H84: ='12. RTSR-Historic Wholesale'!H83 -> 0 | I84: 0 | J84: 0 | L84: ='12. RTSR-Historic Wholesale'!L83 -> 0 | M84: 0 | N84: 0 | P84: 0
B85: September | D85: ='12. RTSR-Historic Wholesale'!D84 -> 0 | E85: 0 | F85: 0 | H85: ='12. RTSR-Historic Wholesale'!H84 -> 0 | I85: 0 | J85: 0 | L85: ='12. RTSR-Historic Wholesale'!L84 -> 0 | M85: 0 | N85: 0 | P85: 0
B86: October | D86: ='12. RTSR-Historic Wholesale'!D85 -> 0 | E86: 0 | F86: 0 | H86: ='12. RTSR-Historic Wholesale'!H85 -> 0 | I86: 0 | J86: 0 | L86: ='12. RTSR-Historic Wholesale'!L85 -> 0 | M86: 0 | N86: 0 | P86: 0
B87: November | D87: ='12. RTSR-Historic Wholesale'!D86 -> 0 | E87: 0 | F87: 0 | H87: ='12. RTSR-Historic Wholesale'!H86 -> 0 | I87: 0 | J87: 0 | L87: ='12. RTSR-Historic Wholesale'!L86 -> 0 | M87: 0 | N87: 0 | P87: 0
B88: December | D88: ='12. RTSR-Historic Wholesale'!D87 -> 0 | E88: 0 | F88: 0 | H88: ='12. RTSR-Historic Wholesale'!H87 -> 0 | I88: 0 | J88: 0 | L88: ='12. RTSR-Historic Wholesale'!L87 -> 0 | M88: 0 | N88: 0 | P88: 0
L89: ='12. RTSR-Historic Wholesale'!L88 -> 0
B90: Total | D90: =SUM(D77:D88) -> 0 | E90: =IF(D90<>0,F90/D90,0) -> 0 | F90: =SUM(F77:F88) -> 0 | H90: =SUM(H77:H88) -> 0 | I90: =IF(H90<>0,J90/H90,0) -> 0 | J90: =SUM(J77:J88) -> 0 | L90: =SUM(L77:L88) -> 0 | M90: =IF(L90<>0,N90/L90,0) -> 0 | N90: =SUM(N77:N88) -> 0 | P90: =SUM(P77:P88) -> 0
B92: Total | D92: Network | H92: Line Connection | L92: Transformation Connection | P92: Total Line
B94: Month | D94: Units Billed | E94: Rate | F94: Amount | H94: Units Billed | I94: Rate | J94: Amount | L94: Units Billed | M94: Rate | N94: Amount | P94: Amount
B96: January | D96: =D20+D39+D58+D77 -> 0 | E96: =IF(D96<>0,F96/D96,0) -> 0 | F96: =F20+F39+F58+F77 -> 0 | H96: =H20+H39+H58+H77 -> 0 | I96: =IF(H96<>0,J96/H96,0) -> 0 | J96: =J20+J39+J58+J77 -> 0 | L96: =L20+L39+L58+L77 -> 0 | M96: =IF(L96<>0,N96/L96,0) -> 0 | N96: =N20+N39+N58+N77 -> 0 | P96: =J96+N96 -> 0
B97: February | D97: =D21+D40+D59+D78 -> 0 | E97: 0 | F97: =F21+F40+F59+F78 -> 0 | H97: =H21+H40+H59+H78 -> 0 | I97: 0 | J97: =J21+J40+J59+J78 -> 0 | L97: =L21+L40+L59+L78 -> 0 | M97: 0 | N97: =N21+N40+N59+N78 -> 0 | P97: 0
B98: March | D98: 0 | E98: 0 | F98: 0 | H98: 0 | I98: 0 | J98: 0 | L98: 0 | M98: 0 | N98: 0 | P98: 0
B99: April | D99: 0 | E99: 0 | F99: 0 | H99: 0 | I99: 0 | J99: 0 | L99: 0 | M99: 0 | N99: 0 | P99: 0
B100: May | D100: 0 | E100: 0 | F100: 0 | H100: 0 | I100: 0 | J100: 0 | L100: 0 | M100: 0 | N100: 0 | P100: 0
B101: June | D101: 0 | E101: 0 | F101: 0 | H101: 0 | I101: 0 | J101: 0 | L101: 0 | M101: 0 | N101: 0 | P101: 0
B102: July | D102: 0 | E102: 0 | F102: 0 | H102: 0 | I102: 0 | J102: 0 | L102: 0 | M102: 0 | N102: 0 | P102: 0
B103: August | D103: 0 | E103: 0 | F103: 0 | H103: 0 | I103: 0 | J103: 0 | L103: 0 | M103: 0 | N103: 0 | P103: 0
B104: September | D104: 0 | E104: 0 | F104: 0 | H104: 0 | I104: 0 | J104: 0 | L104: 0 | M104: 0 | N104: 0 | P104: 0
B105: October | D105: 0 | E105: 0 | F105: 0 | H105: 0 | I105: 0 | J105: 0 | L105: 0 | M105: 0 | N105: 0 | P105: 0
B106: November | D106: 0 | E106: 0 | F106: 0 | H106: 0 | I106: 0 | J106: 0 | L106: 0 | M106: 0 | N106: 0 | P106: 0
B107: December | D107: 0 | E107: 0 | F107: 0 | H107: 0 | I107: 0 | J107: 0 | L107: 0 | M107: 0 | N107: 0 | P107: 0
B109: Total | D109: =SUM(D96:D107) -> 0 | E109: =IF(D109<>0,F109/D109,0) -> 0 | F109: =SUM(F96:F107) -> 0 | H109: =SUM(H96:H107) -> 0 | I109: =IF(H109<>0,J109/H109,0) -> 0 | J109: =SUM(J96:J107) -> 0 | L109: =SUM(L96:L107) -> 0 | M109: =IF(L109<>0,N109/L109,0) -> 0 | N109: =SUM(N96:N107) -> 0 | P109: =SUM(P96:P107) -> 0
N111: Low Voltage Switchgear Credit (if applicable) | P111: ='11. RTSR-UTRs & Sub-Tx'!I68 -> 0
N113: Total including deduction for Low Voltage Switchgear Credit | P113: =P109+P111 -> 0

Sheet 15. RTSR-Rates to Forecast (hidden)
A1: Back to Index | B1: Back to Index
B2: INCENTIVE REGULATION MODEL FOR 2018 FILERS
B13: The purpose of this table is to re-align the current RTS Network Rates to recover current wholesale network costs.
B15: Rate Class | C15: Rate Description | D15: Unit | E15: Current RTSR-Network | F15: Loss Adjusted Billed kWh | G15: Billed kW | H15: Billed Amount | I15: Billed Amount % | J15: Current Wholesale Billing | K15: Adjusted RTSR Network
A17: ='10. RTSR - Current Rates'!A16 -> R_TN | B17: ='4. Billing Det. for Def-Var'!B17 -> RESIDENTIAL SERVICE CLASSIFICATION | C17: =VLOOKUP(A17,RTSR,3,FALSE) -> Retail Transmission Rate – Network Service Rate | D17: =VLOOKUP(A17,RTSR,4,FALSE) -> $/kWh | E17: =VLOOKUP(A17,RATES,4,FALSE) ->  | F17: =VLOOKUP(A17,RTSR,9,FALSE) -> 0 | G17: =VLOOKUP(A17,RTSR,7,FALSE) -> 0 | H17: =IF(ISERROR(E17*F17), 0, ROUND(E17*F17, 2)) -> 0 | I17: =H17/SUM(H$17:H$26) ->  | J17: =I17*total_wholesale_TN ->  | K17: =IF(ISERROR(J17/F17), 0, J17/F17) -> 0
A18: ='10. RTSR - Current Rates'!A18 -> GSL_TN | B18: ='4. Billing Det. for Def-Var'!B18 -> GENERAL SERVICE LESS THAN 50 kW SERVICE CLASSIFICATION | C18: Retail Transmission Rate – Network Service Rate | D18: $/kWh | E18: =VLOOKUP(A18,RATES,4,FALSE) ->  | F18: =VLOOKUP(A18,RTSR,9,FALSE) -> 0 | G18: =VLOOKUP(A18,RTSR,7,FALSE) -> 0 | H18: =IF(ISERROR(E18*F18), 0, ROUND(E18*F18, 2)) -> 0 | I18: =H18/SUM(H$17:H$26) ->  | J18: =I18*total_wholesale_TN ->  | K18: =IF(ISERROR(J18/F18), 0, J18/F18) -> 0
A19: ='10. RTSR - Current Rates'!A20 -> GSG_TN | B19: ='4. Billing Det. for Def-Var'!B19 -> GENERAL SERVICE 50 to 4,999 kW SERVICE CLASSIFICATION | C19: Retail Transmission Rate – Network Service Rate | D19: $/kW | F19: 0 | G19: 0 | H19: =IF(ISERROR(E19*G19), 0, ROUND(E19*G19, 2)) -> 0 | K19: =IF(ISERROR(J19/G19), 0, J19/G19) -> 0
A20: ='10. RTSR - Current Rates'!A22 -> LU_TN | B20: ='4. Billing Det. for Def-Var'!B20 -> LARGE USE SERVICE CLASSIFICATION | C20: Retail Transmission Rate – Network Service Rate | D20: $/kW | F20: 0 | G20: 0 | H20: =IF(ISERROR(E20*G20), 0, ROUND(E20*G20, 2)) -> 0 | K20: =IF(ISERROR(J20/G20), 0, J20/G20) -> 0
A21: ='10. RTSR - Current Rates'!A24 -> USL_TN | B21: ='4. Billing Det. for Def-Var'!B21 -> UNMETERED SCATTERED LOAD SERVICE CLASSIFICATION | C21: Retail Transmission Rate – Network Service Rate | D21: $/kW | F21: 0 | G21: 0 | H21: 0 | K21: 0
A22: ='10. RTSR - Current Rates'!A26 -> SEN_TN | B22: ='4. Billing Det. for Def-Var'!B22 -> SENTINEL LIGHTING SERVICE CLASSIFICATION | C22: Retail Transmission Rate – Network Service Rate | D22: =VLOOKUP(A22,RTSR,4,FALSE) -> $/kWh | E22: =VLOOKUP(A22,RATES,4,FALSE) ->  | F22: =VLOOKUP(A22,RTSR,9,FALSE) -> 0 | G22: =VLOOKUP(A22,RTSR,7,FALSE) -> 0 | H22: =IF(ISERROR(E22*G22), 0, ROUND(E22*G22, 2)) -> 0 | I22: =H22/SUM(H$17:H$26) ->  | J22: =I22*total_wholesale_TN ->  | K22: =IF(ISERROR(J22/G22), 0, J22/G22) -> 0
A23: ='10. RTSR - Current Rates'!A28 -> SL_TN | B23: ='4. Billing Det. for Def-Var'!B23 -> STREET LIGHTING SERVICE CLASSIFICATION | C23: Retail Transmission Rate – Network Service Rate | D23: $/kWh | F23: 0 | G23: 0 | H23: =IF(ISERROR(E23*F23), 0, ROUND(E23*F23, 2)) -> 0 | K23: =IF(ISERROR(J23/F23), 0, J23/F23) -> 0
B27: The purpose of this table is to re-align the current RTS Connection Rates to recover current wholesale connection costs.
B28: Rate Class | C28: Rate Description | D28: Unit | E28: Current RTSR-Connection | F28: Loss Adjusted Billed kWh | G28: Billed kW | H28: Billed Amount | I28: Billed Amount % | J28: Current Wholesale Billing | K28: Adjusted RTSR-Connection
A30: ='10. RTSR - Current Rates'!A17 -> R_TC | B30: =B17 -> RESIDENTIAL SERVICE CLASSIFICATION | C30: =VLOOKUP(A30,RTSR,3,FALSE) -> Retail Transmission Rate – Line and Transformation Connection Service Rate | D30: =VLOOKUP(A30,RTSR,4,FALSE) -> $/kWh | E30: =VLOOKUP(A30,RATES,4,FALSE) ->  | F30: =F17 -> 0 | G30: =G17 -> 0 | H30: =IF(ISERROR(E30*F30), 0, ROUND(E30*F30, 2)) -> 0 | I30: =H30/SUM(H$30:H$39) ->  | J30: =I30*total_wholesale_LinePlus ->  | K30: =IF(ISERROR(J30/F30), 0, J30/F30) -> 0
A31: ='10. RTSR - Current Rates'!A19 -> GSL_TC | B31: =B18 -> GENERAL SERVICE LESS THAN 50 kW SERVICE CLASSIFICATION | C31: Retail Transmission Rate – Line and Transformation Connection Service Rate | D31: $/kWh | F31: =F18 -> 0 | G31: 0 | H31: =IF(ISERROR(E31*F31), 0, ROUND(E31*F31, 2)) -> 0 | I31: =H31/SUM(H$30:H$39) ->  | K31: =IF(ISERROR(J31/F31), 0, J31/F31) -> 0
A32: ='10. RTSR - Current Rates'!A21 -> GSG_TC | B32: GENERAL SERVICE 50 to 4,999 kW SERVICE CLASSIFICATION | C32: Retail Transmission Rate – Line and Transformation Connection Service Rate | D32: $/kW | F32: 0 | G32: 0 | H32: =IF(ISERROR(E32*G32), 0, ROUND(E32*G32, 2)) -> 0 | K32: =IF(ISERROR(J32/G32), 0, J32/G32) -> 0
A33: ='10. RTSR - Current Rates'!A23 -> LU_TC | B33: LARGE USE SERVICE CLASSIFICATION | C33: Retail Transmission Rate – Line and Transformation Connection Service Rate | D33: $/kW | F33: 0 | G33: 0 | H33: =IF(ISERROR(E33*G33), 0, ROUND(E33*G33, 2)) -> 0 | K33: =IF(ISERROR(J33/G33), 0, J33/G33) -> 0
A34: ='10. RTSR - Current Rates'!A25 -> USL_TC | B34: UNMETERED SCATTERED LOAD SERVICE CLASSIFICATION | C34: Retail Transmission Rate – Line and Transformation Connection Service Rate | D34: $/kW | F34: 0 | G34: 0 | H34: 0 | K34: 0
A35: ='10. RTSR - Current Rates'!A27 -> SEN_TC | B35: SENTINEL LIGHTING SERVICE CLASSIFICATION | C35: Retail Transmission Rate – Line and Transformation Connection Service Rate | D35: =VLOOKUP(A35,RTSR,4,FALSE) -> $/kWh | E35: =VLOOKUP(A35,RATES,4,FALSE) ->  | F35: 0 | G35: 0 | H35: =IF(ISERROR(E35*G35), 0, ROUND(E35*G35, 2)) -> 0 | I35: =H35/SUM(H$30:H$39) ->  | J35: =I35*total_wholesale_LinePlus ->  | K35: =IF(ISERROR(J35/G35), 0, J35/G35) -> 0
A36: ='10. RTSR - Current Rates'!A29 -> SL_TC | B36: STREET LIGHTING SERVICE CLASSIFICATION | C36: Retail Transmission Rate – Line and Transformation Connection Service Rate | D36: $/kWh | F36: 0 | G36: 0 | H36: =IF(ISERROR(E36*F36), 0, ROUND(E36*F36, 2)) -> 0 | K36: =IF(ISERROR(J36/F36), 0, J36/F36) -> 0
B40: The purpose of this table is to update the re-aligned RTS Network Rates to recover future wholesale network costs.
B41: Rate Class | C41: Rate Description | D41: Unit | E41: Adjusted RTSR-Network | F41: Loss Adjusted Billed kWh | G41: Billed kW | H41: Billed Amount | I41: Billed Amount % | J41: Current Wholesale Billing | K41: Proposed RTSR-Network
A43: =A17 -> R_TN | B43: =B17 -> RESIDENTIAL SERVICE CLASSIFICATION | C43: =VLOOKUP(A43,RTSR,3,FALSE) -> Retail Transmission Rate – Network Service Rate | D43: =VLOOKUP(A43,RTSR,4,FALSE) -> $/kWh | E43: =K17 -> 0 | F43: =VLOOKUP(A43,RTSR,9,FALSE) -> 0 | G43: =VLOOKUP(A43,RTSR,7,FALSE) -> 0 | H43: =IF(ISERROR(E43*F43), 0, ROUND(E43*F43, 2)) -> 0 | I43: =H43/SUM(H$43:H$52) ->  | J43: =I43*forecast_wholesale_TN ->  | K43: =IF(ISERROR(J43/F43), 0, J43/F43) -> 0
A44: =A18 -> GSL_TN | B44: =B18 -> GENERAL SERVICE LESS THAN 50 kW SERVICE CLASSIFICATION | C44: Retail Transmission Rate – Network Service Rate | D44: $/kWh | E44: =K18 -> 0 | F44: 0 | G44: 0 | H44: =IF(ISERROR(E44*F44), 0, ROUND(E44*F44, 2)) -> 0 | I44: =H44/SUM(H$43:H$52) ->  | K44: =IF(ISERROR(J44/F44), 0, J44/F44) -> 0
A45: GSG_TN | B45: GENERAL SERVICE 50 to 4,999 kW SERVICE CLASSIFICATION | C45: Retail Transmission Rate – Network Service Rate | D45: $/kW | E45: 0 | F45: 0 | G45: 0 | H45: =IF(ISERROR(E45*G45), 0, ROUND(E45*G45, 2)) -> 0 | K45: =IF(ISERROR(J45/G45), 0, J45/G45) -> 0
A46: LU_TN | B46: LARGE USE SERVICE CLASSIFICATION | C46: Retail Transmission Rate – Network Service Rate | D46: $/kW | E46: 0 | F46: 0 | G46: 0 | H46: =IF(ISERROR(E46*G46), 0, ROUND(E46*G46, 2)) -> 0 | K46: =IF(ISERROR(J46/G46), 0, J46/G46) -> 0
A47: USL_TN | B47: UNMETERED SCATTERED LOAD SERVICE CLASSIFICATION | C47: Retail Transmission Rate – Network Service Rate | D47: $/kW | E47: 0 | F47: 0 | G47: 0 | H47: 0 | K47: 0
A48: SEN_TN | B48: SENTINEL LIGHTING SERVICE CLASSIFICATION | C48: Retail Transmission Rate – Network Service Rate | D48: =VLOOKUP(A48,RTSR,4,FALSE) -> $/kWh | E48: =K22 -> 0 | F48: =VLOOKUP(A48,RTSR,9,FALSE) -> 0 | G48: =VLOOKUP(A48,RTSR,7,FALSE) -> 0 | H48: =IF(ISERROR(E48*G48), 0, ROUND(E48*G48, 2)) -> 0 | I48: =H48/SUM(H$43:H$52) ->  | J48: =I48*forecast_wholesale_TN ->  | K48: =IF(ISERROR(J48/G48), 0, J48/G48) -> 0
A49: SL_TN | B49: STREET LIGHTING SERVICE CLASSIFICATION | C49: Retail Transmission Rate – Network Service Rate | D49: $/kWh | E49: 0 | F49: 0 | G49: 0 | H49: =IF(ISERROR(E49*F49), 0, ROUND(E49*F49, 2)) -> 0 | K49: =IF(ISERROR(J49/F49), 0, J49/F49) -> 0
B53: The purpose of this table is to update the re-aligned RTS Connection Rates to recover future wholesale connection costs.
B54: Rate Class | C54: Rate Description | D54: Unit | E54: Adjusted RTSR-Connection | F54: Loss Adjusted Billed kWh | G54: Billed kW | H54: Billed Amount | I54: Billed Amount % | J54: Current Wholesale Billing | K54: Proposed RTSR-Connection
A56: =A30 -> R_TC | B56: =B17 -> RESIDENTIAL SERVICE CLASSIFICATION | C56: =VLOOKUP(A56,RTSR,3,FALSE) -> Retail Transmission Rate – Line and Transformation Connection Service Rate | D56: =VLOOKUP(A56,RTSR,4,FALSE) -> $/kWh | E56: =K30 -> 0 | F56: =VLOOKUP(A56,RTSR,9,FALSE) -> 0 | G56: =VLOOKUP(A56,RTSR,7,FALSE) -> 0 | H56: =IF(ISERROR(E56*F56), 0, ROUND(E56*F56, 2)) -> 0 | I56: =H56/SUM(H$56:H$65) ->  | J56: =I56*forecast_wholesale_LNPlus ->  | K56: =IF(ISERROR(J56/F56), 0, J56/F56) -> 0
A57: =A31 -> GSL_TC | B57: =B18 -> GENERAL SERVICE LESS THAN 50 kW SERVICE CLASSIFICATION | C57: Retail Transmission Rate – Line and Transformation Connection Service Rate | D57: $/kWh | E57: =K31 -> 0 | F57: 0 | G57: 0 | H57: =IF(ISERROR(E57*F57), 0, ROUND(E57*F57, 2)) -> 0 | I57: =H57/SUM(H$56:H$65) ->  | K57: =IF(ISERROR(J57/F57), 0, J57/F57) -> 0
A58: GSG_TC | B58: GENERAL SERVICE 50 to 4,999 kW SERVICE CLASSIFICATION | C58: Retail Transmission Rate – Line and Transformation Connection Service Rate | D58: $/kW | E58: 0 | F58: 0 | G58: 0 | H58: =IF(ISERROR(E58*G58), 0, ROUND(E58*G58, 2)) -> 0 | K58: =IF(ISERROR(J58/G58), 0, J58/G58) -> 0
A59: LU_TC | B59: LARGE USE SERVICE CLASSIFICATION | C59: Retail Transmission Rate – Line and Transformation Connection Service Rate | D59: $/kW | E59: 0 | F59: 0 | G59: 0 | H59: =IF(ISERROR(E59*G59), 0, ROUND(E59*G59, 2)) -> 0 | K59: =IF(ISERROR(J59/G59), 0, J59/G59) -> 0
A60: USL_TC | B60: UNMETERED SCATTERED LOAD SERVICE CLASSIFICATION | C60: Retail Transmission Rate – Line and Transformation Connection Service Rate | D60: $/kW | E60: 0 | F60: 0 | G60: 0 | H60: 0 | K60: 0
A61: SEN_TC | B61: SENTINEL LIGHTING SERVICE CLASSIFICATION | C61: Retail Transmission Rate – Line and Transformation Connection Service Rate | E61: =K35 -> 0 | F61: =VLOOKUP(A61,RTSR,9,FALSE) -> 0 | G61: =VLOOKUP(A61,RTSR,7,FALSE) -> 0 | H61: =IF(ISERROR(E61*G61), 0, ROUND(E61*G61, 2)) -> 0 | I61: =H61/SUM(H$56:H$65) ->  | J61: =I61*forecast_wholesale_LNPlus ->  | K61: =IF(ISERROR(J61/G61), 0, J61/G61) -> 0
A62: SL_TC | B62: STREET LIGHTING SERVICE CLASSIFICATION | C62: Retail Transmission Rate – Line and Transformation Connection Service Rate | D62: $/kWh | E62: 0 | F62: 0 | G62: 0 | H62: =IF(ISERROR(E62*F62), 0, ROUND(E62*F62, 2)) -> 0 | K62: =IF(ISERROR(J62/F62), 0, J62/F62) -> 0

Sheet 16. Rev2Cost-GDPIPI (hidden)
A1: Back to Index | C1: Back to Index | AA1: FALSE | AB1: 0 | AE1: NO
C2: INCENTIVE REGULATION MODEL FOR 2018 FILERS | S2: TRUE
C11: If applicable, please enter any adjustments related to the revenue to cost ratio model into columns C and E. The Price Escalator and Stretch Factor have been set at the 2016 values and will be updated by OEB staff at a later date.
C12: Price Escalator | D12: 0.019 | E12: Productivity Factor | F12: 0 | G12: # of Residential Customers (approved in the last CoS) | H12: 140979 | I12: Effective Year of Residential Rate Design Transition (yyyy) | J12: 2016
C13: Choose Stretch Factor Group | D13: III | E13: Price Cap Index | F13: =D12-F12-D14 -> 0.016 | G13: Billed kWh for Residential Class (approved in the last CoS) | H13: 1308264983 | I13: OEB-approved # of Transition Years | J13: 4
C14: Associated Stretch Factor Value | D14: =IF(D13="I", 0%, IF(D13="II", 0.15%, IF(D13="III", 0.3%, IF(D13="IV", 0.45%, 0.6%)))) -> 0.003 | G14: Rate Design Transition Years Left | H14: 2
C15: Rate Class | D15: Current MFC | E15: MFC Adjustment from R/C Model | F15: Current Volumetric Charge | G15: DVR Adjustment from R/C Model | H15: Price Cap Index to be Applied to MFC and DVR | I15: Proposed MFC | J15: Proposed Volumetric Charge
A17: R_F | B17: R_V | C17: ='4. Billing Det. for Def-Var'!B17 -> RESIDENTIAL SERVICE CLASSIFICATION | D17: =IFERROR(VLOOKUP(A17,RATES,4,FALSE),"") ->  | F17: =IFERROR(VLOOKUP(B17,RATES,4,FALSE),"") ->  | H17: =F$13 -> 0.016 | I17: =J31*(1+F13) -> 0 | J17: =J32*(1+F13) -> 0
A18: GSL_F | B18: GSL_V | C18: ='4. Billing Det. for Def-Var'!B18 -> GENERAL SERVICE LESS THAN 50 kW SERVICE CLASSIFICATION | H18: =F$13 -> 0.016 | I18: =(D18+E18)*(1+F$13) ->  | J18: =(F18+G18)*(1+F$13) -> 
A19: GSG_F | B19: GSG_V | C19: ='4. Billing Det. for Def-Var'!B19 -> GENERAL SERVICE 50 to 4,999 kW SERVICE CLASSIFICATION | H19: 0.016 | I19: =(D19+E19)*(1+F$13) ->  | J19: =(F19+G19)*(1+F$13) -> 
A20: LU_F | B20: LU_V | C20: ='4. Billing Det. for Def-Var'!B20 -> LARGE USE SERVICE CLASSIFICATION | H20: 0.016 | I20: =(D20+E20)*(1+F$13) -> 
A21: USL_F | B21: USL_V | C21: ='4. Billing Det. for Def-Var'!B21 -> UNMETERED SCATTERED LOAD SERVICE CLASSIFICATION | H21: 0.016
A22: SEN_F | B22: SEN_V | C22: ='4. Billing Det. for Def-Var'!B22 -> SENTINEL LIGHTING SERVICE CLASSIFICATION | H22: 0.016 | I22: 0
A23: SL_F | B23: SL_V | C23: ='4. Billing Det. for Def-Var'!B23 -> STREET LIGHTING SERVICE CLASSIFICATION | H23: 0.016
C24: ='4. Billing Det. for Def-Var'!B24 -> 0 | H24: 0.016
C25: ='4. Billing Det. for Def-Var'!B25 -> 0 | H25: 0.016 | J25: 0
C26: ='4. Billing Det. for Def-Var'!B26 -> 0 | H26: 0.016 | J26: 0
C27: ='4. Billing Det. for Def-Var'!B27 -> 0 | H27: 0.016 | J27: 0
C28: microFIT SERVICE CLASSIFICATION | D28: 5.4 | H28: 0.016 | I28: =D28 -> 5.4 | J28: 0
C30: Rate Design Transition | E30: Revenue from Rates | F30: Current F/V Split | G30: Decoupling MFC Split | H30: Incremental Fixed Charge ($/month/year) | I30: New F/V Split | J30: Adjusted Rates1 | K30: Revenue at New F/V Split
C31: Current Residential Fixed Rate (inclusive of R/C adj.) | D31: =D17+E17 ->  | E31: =D31*COS_RES_CUSTOMERS*12 ->  | F31: =IF(ISERROR(E31/E33), 0, E31/E33) -> 0 | G31: =IF(ISERROR((1-F31)/YRS_LEFT), 0, (1-F31)/YRS_LEFT) -> 0.5 | H31: =IF(ISERROR(ROUND(G31*E33/COS_RES_CUSTOMERS/12, 2)), 0, ROUND(G31*E33/COS_RES_CUSTOMERS/12, 2)) -> 0 | I31: =G31+F31 -> 0.5 | J31: =IF(ISERROR(ROUND(I31*E33/COS_RES_CUSTOMERS/12, 2)), 0, ROUND(I31*E33/COS_RES_CUSTOMERS/12, 2)) -> 0 | K31: =ROUND(J31*COS_RES_CUSTOMERS*12, 2) -> 0
C32: Current Residential Variable Rate (inclusive of R/C adj.) | D32: =F17+G17 ->  | E32: =D32*COS_RES_KWH ->  | F32: =IF(ISERROR(E32/E33), 0, E32/E33) -> 0 | I32: =1-I31 -> 0.5 | J32: =IF(ISERROR(ROUND(I32*E33/COS_RES_KWH, 4)), 0, ROUND(I32*E33/COS_RES_KWH, 4)) -> 0 | K32: =ROUND(J32*COS_RES_KWH, 2) -> 0
E33: =SUM(E31+E32) ->  | K33: =SUM(K31+K32) -> 0
C36: =IF((J31-D31)>=4, "The Rate Design Transition has calculated a monthly fixed charge greater than or equal to $4. Please refer to Section 3.2.3 of the Chapter 3 Filing Requirements for mitigation instructions.", "") -> 
C38: 1 These are the residential rates to which the Price Cap Index will be applied to.

Sheet 17. Regulatory Charges (hidden)
A1: Back to Index
B2: INCENTIVE REGULATION MODEL FOR 2018 FILERS
C12: Update the following rates if an OEB Decision has been issued at the time of completing this application
E13: Proposed
C14: Wholesale Market Service Rate | D14: $/kWh | E14: 0.0036
C15: Rural or Remote Electricity Rate Protection Charge (RRRP) | D15: $/kWh | E15: 0.0021
C16: Standard Supply Service - Administrative Charge (if applicable) | D16: $ | E16: 0.25
C17: Ontario Electricity Support Program (OESP) | D17: $/kWh | E17: 0.0011

Sheet 18. Additional Rates (hidden)
A1: Back to Index | AB1: 3
B2: INCENTIVE REGULATION MODEL FOR 2018 FILERS
B11: In the Green Cells below, enter any proposed rate riders that are not already included in this model (e.g.: proposed ICM rate riders). Please note that existing SMIRR and SM Entity Charge do not need to be included below. In column A, the rate rider descriptions must begin with "Rate Rider for". In column B, choose the associated unit from the drop-down menu. In column C, enter the rate. All rate riders with a "$" unit should be rounded to 2 decimal places and all others rounded to 4 decimal places. In column E, enter the expiry date (e.g. April 30, 2018) or description of the expiry date in text (e.g. the effective date of the next cost of service-based rate order). In column G, choose the sub-total as applicable in the bill impact calculation from the drop-down menu
B13: ='4. Billing Det. for Def-Var'!B17 -> RESIDENTIAL SERVICE CLASSIFICATION
B14: Rate Rider for Incremental Capital Module (ICM) | C14: $ | E14: - effective until | F14: 2018-12-31 | H14: A
B15: Rate Rider for Recovery of Lost Revenue Adjustment Mechanism Variance Account (2014-15 balances) | C15: $/kWh | E15: - effective until | F15: 2018-12-31 | H15: A
B16: Rate Rider for Disposition of Capacity Based Recovery Account (2017) - Applicable only for Class B Customers | C16: $/kWh | E16: - effective until | F16: 2018-12-31 | H16: B
E17: - effective until
E18: - effective until
E19: - effective until
E20: - effective until
E21: - effective until
E22: - effective until
E23: - effective until
B26: ='4. Billing Det. for Def-Var'!B18 -> GENERAL SERVICE LESS THAN 50 kW SERVICE CLASSIFICATION
B27: Rate Rider for Incremental Capital Module (ICM) | C27: $ | E27: - effective until | F27: 2018-12-31 | H27: A
B28: Rate Rider for Incremental Capital Module (ICM) | C28: $/kWh | E28: - effective until | F28: 2018-12-31 | H28: A
B29: Rate Rider for Recovery of Lost Revenue Adjustment Mechanism Variance Account (2014-15 balances) | C29: $/kWh | E29: - effective until | F29: 2018-12-31 | H29: A
B30: Rate Rider for Disposition of Capacity Based Recovery Account (2017) - Applicable only for Class B Customers | C30: $/kWh | E30: - effective until | F30: 2018-12-31 | H30: B
E31: - effective until
E32: - effective until
E33: - effective until
E34: - effective until
E35: - effective until
B38: ='4. Billing Det. for Def-Var'!B19 -> GENERAL SERVICE 50 to 4,999 kW SERVICE CLASSIFICATION
B39: Rate Rider for Incremental Capital Module (ICM) | C39: $ | E39: - effective until | F39: 2018-12-31 | H39: A
B40: Rate Rider for Incremental Capital Module (ICM) | C40: $/kW | E40: - effective until | F40: 2018-12-31 | H40: A
B41: Rate Rider for Recovery of Lost Revenue Adjustment Mechanism Variance Account (2014-15 balances) | C41: $/kW | E41: - effective until | F41: 2018-12-31 | H41: A
B42: Rate Rider for Disposition of Capacity Based Recovery Account (2017) - Applicable only for Class B Customers | C42: $/kW | E42: - effective until | F42: 2018-12-31 | H42: B
E43: - effective until
E44: - effective until
E45: - effective until
E46: - effective until
E47: - effective until
B50: ='4. Billing Det. for Def-Var'!B20 -> LARGE USE SERVICE CLASSIFICATION
B51: Rate Rider for Incremental Capital Module (ICM) | C51: $ | E51: - effective until | F51: 2018-12-31 | H51: A
B52: Rate Rider for Incremental Capital Module (ICM) | C52: $/kW | E52: - effective until | F52: 2018-12-31 | H52: A
B53: Rate Rider for Recovery of Lost Revenue Adjustment Mechanism Variance Account (2014-15 balances) | C53: $/kW | E53: - effective until | F53: 2018-12-31 | H53: A
B54: Rate Rider for Disposition of Capacity Based Recovery Account (2017) - Applicable only for Class B Customers | C54: $/kW | E54: - effective until | F54: 2018-12-31 | H54: B
E55: - effective until
E56: - effective until
E57: - effective until
E58: - effective until
E59: - effective until
B62: ='4. Billing Det. for Def-Var'!B21 -> UNMETERED SCATTERED LOAD SERVICE CLASSIFICATION
B63: Rate Rider for Incremental Capital Module (ICM) | C63: $ | E63: - effective until | F63: 2018-12-31 | H63: A
B64: Rate Rider for Incremental Capital Module (ICM) | C64: $/kWh | E64: - effective until | F64: 2018-12-31 | H64: A
B65: Rate Rider for Recovery of Lost Revenue Adjustment Mechanism Variance Account (2014-15 balances) | C65: $/kWh | E65: - effective until | F65: 2018-12-31 | H65: A
B66: Rate Rider for Disposition of Capacity Based Recovery Account (2017) - Applicable only for Class B Customers | C66: $/kWh | E66: - effective until | F66: 2018-12-31 | H66: B
E67: - effective until
E68: - effective until
E69: - effective until
E70: - effective until
E71: - effective until
B74: ='4. Billing Det. for Def-Var'!B23 -> STREET LIGHTING SERVICE CLASSIFICATION
B75: Rate Rider for Incremental Capital Module (ICM) | C75: $ | E75: - effective until | F75: 2018-12-31 | H75: A
B76: Rate Rider for Incremental Capital Module (ICM) | C76: $/kW | E76: - effective until | F76: 2018-12-31 | H76: A
B77: Rate Rider for Recovery of Lost Revenue Adjustment Mechanism Variance Account (2014-15 balances) | C77: $/kW | E77: - effective until | F77: 2018-12-31 | H77: A
B78: Rate Rider for Disposition of Capacity Based Recovery Account (2017) - Applicable only for Class B Customers | C78: $/kW | E78: - effective until | F78: 2018-12-31 | H78: B
E79: - effective until
E80: - effective until
E81: - effective until
E82: - effective until
E83: - effective until
B86: ='4. Billing Det. for Def-Var'!B24 -> 0
B87: Rate Rider for Incremental Capital Module (ICM) | C87: $ | E87: - effective until | F87: 2018-12-31 | H87: A
B88: Rate Rider for Incremental Capital Module (ICM) | C88: $/kW | E88: - effective until | F88: 2018-12-31 | H88: A
B89: Rate Rider for Recovery of Lost Revenue Adjustment Mechanism Variance Account (2014-15 balances) | C89: $/kW | E89: - effective until | F89: 2018-12-31 | H89: A
B90: Rate Rider for Disposition of Capacity Based Recovery Account (2017) - Applicable only for Class B Customers | C90: $/kW | E90: - effective until | F90: 2018-12-31 | H90: B
E91: - effective until
E92: - effective until
E93: - effective until
E94: - effective until
E95: - effective until
B98: ='4. Billing Det. for Def-Var'!B25 -> 0
B99: Rate Rider for Incremental Capital Module (ICM) | C99: $ | E99: - effective until | F99: 2018-12-31 | H99: A
B100: Rate Rider for Incremental Capital Module (ICM) | C100: $/kW | E100: - effective until | F100: 2018-12-31 | H100: A
B101: Rate Rider for Recovery of Lost Revenue Adjustment Mechanism Variance Account (2014-15 balances) | C101: $/kW | E101: - effective until | F101: 2018-12-31 | H101: A
B102: Rate Rider for Disposition of Capacity Based Recovery Account (2017) - Applicable only for Class B Customers | C102: $/kW | E102: - effective until | F102: 2018-12-31 | H102: B
E103: - effective until
E104: - effective until
E105: - effective until
E106: - effective until
E107: - effective until
B110: ='4. Billing Det. for Def-Var'!B26 -> 0
B111: Rate Rider for Incremental Capital Module (ICM) | C111: $ | E111: - effective until | F111: 2018-12-31 | H111: A
B112: Rate Rider for Incremental Capital Module (ICM) | C112: $/kW | E112: - effective until | F112: 2018-12-31 | H112: A
B113: Rate Rider for Recovery of Lost Revenue Adjustment Mechanism Variance Account (2014-15 balances) | C113: $/kW | E113: - effective until | F113: 2018-12-31 | H113: A
B114: Rate Rider for Disposition of Capacity Based Recovery Account (2017) - Applicable only for Class B Customers | C114: $/kW | E114: - effective until | F114: 2018-12-31 | H114: B
E115: - effective until
E116: - effective until
E117: - effective until
E118: - effective until
E119: - effective until
B122: ='4. Billing Det. for Def-Var'!B27 -> 0
B123: Rate Rider for Incremental Capital Module (ICM) | C123: $ | E123: - effective until | F123: 2018-12-31 | H123: A
B124: Rate Rider for Incremental Capital Module (ICM) | C124: $/kW | E124: - effective until | F124: 2018-12-31 | H124: A
B125: Rate Rider for Recovery of Lost Revenue Adjustment Mechanism Variance Account (2014-15 balances) | C125: $/kW | E125: - effective until | F125: 2018-12-31 | H125: A
B126: Rate Rider for Disposition of Capacity Based Recovery Account (2017) - Applicable only for Class B Customers | C126: $/kW | E126: - effective until | F126: 2018-12-31 | H126: B
E127: - effective until
E128: - effective until
E129: - effective until
E130: - effective until
E131: - effective until
B134: MICROFIT SERVICE CLASSIFICATION
E135: - effective until
E136: - effective until
E137: - effective until
E138: - effective until
E139: - effective until
E140: - effective until
E141: - effective until
E142: - effective until
E143: - effective until
E144: - effective until

Sheet 19. Final Tariff Schedule (hidden)
A1: Back to Index
B2: INCENTIVE REGULATION MODEL FOR 2018 FILERS
B11: ='Model Specs'!C4 -> Alectra - Horizon Utilites
B12: TARIFF OF RATES AND CHARGES
B13: Effective Date January 1, 2018
B14: Implementation Date January 1, 2018
B16: This schedule supersedes and replaces all previously
B17: approved schedules of Rates, Charges and Loss Factors
B18: EB-2016-0080
B19: RESIDENTIAL SERVICE CLASSIFICATION
B20: This classification applies to an account where the electricity is supplied exclusively to single-family dwelling units for domestic or household purposes, including seasonal occupancy. This includes, but is not limited to, detached houses, one unit of a semi-detached, duplex, triplex or quadruplex house, with a residential zoning. Separately metered dwellings within a town house complex also qualify as residential customers. Further servicing details are available in the distributor’s Conditions of Service.
B22: APPLICATION
B24: The application of these rates and charges shall be in accordance with the Licence of the Distributor and any Code or Order of the Ontario Energy Board, and amendments thereto as approved by the Ontario Energy Board, which may be applicable to the administration of this schedule.
B26: No rates and charges for the distribution of electricity and charges to meet the costs of any work or service done or furnished for the purpose of the distribution of electricity shall be made except as permitted by this schedule, unless required by the Distributor’s Licence or a Code or Order of the Ontario Energy Ontario Energy Board, and amendments thereto as approved by the Ontario Energy Board, or as specified herein.
B28: Unless specifically noted, this schedule does not contain any charges for the electricity commodity, be it under the Regulated Price Plan, a contract with a retailer or the wholesale market price, as applicable. In addition, the charges in the MONTHLY RATES AND CHARGES - Regulatory Component of this schedule do not apply to a customer that is an embedded wholesale market participant.
B30: It should be noted that this schedule does not list any charges, assessments, or credits that are required by law to be invoiced by a distributor and that are not subject to Ontario Energy Board approval, such as the Debt Retirement Charge, the Global Adjustment and the HST.
B32: MONTHLY RATES AND CHARGES - Delivery Component
A34: R_F
A36: R_V
A37: R_GA16
A38: R_LRVA16
A39: R_DVA16
A40: R_1576
A41: R_CBR16
A42: R_TN
A43: R_TC
B45: MONTHLY RATES AND CHARGES - Regulatory Component
B47: Wholesale Market Service Rate | C47: $/kWh | D47: 0.0036
B48: Rural or Remote Electricity Rate Protection Charge (RRRP) | C48: $/kWh | D48: 0.0013
B49: Ontario Electricity Support Program Charge (OESP) | C49: $/kWh | D49: 0.0011
B50: Standard Supply Service - Administrative Charge (if applicable) | C50: $ | D50: 0.25
B51: ONTARIO ELECTRICITY SUPPORT PROGRAM RECIPIENTS
B52: In addition to the charges specified on page 1 of this tariff of rates and charges, the following credits are to be applied to eligible residential customers.
B54: APPLICATION
B56: The application of the charges are in accordance with the Distribution System Code (Section 9) and subsection 79.2(4) of the Ontario Energy Board Act, 1998.
B57: The application of these charges shall be in accordance with the Licence of the Distributor and any Code or Order of the Ontario Energy Board, and amendments thereto as approved by the Ontario Energy Board, which may be applicable to the administration of this schedule.
B58: In this class: “Aboriginal person” includes a person who is a First Nations person, a Métis person or an Inuit person; “account-holder” means a consumer who has an account with a distributor that falls within a residential-rate classification as specified in a rate order made by the Ontario Energy Board under section 78 of the Act, and who lives at the service address to which the account relates for at least six months in a year; “electricity-intensive medical device” means an oxygen concentrator, a mechanical ventilator, or such other device as may be specified by the Ontario Energy Board; “household” means the account-holder and any other people living at the accountholder’s service address for at least six months in a year, including people other than the account-holder’s spouse, children or other relatives; “household income” means the combined annual after-tax income of all members of a household aged 16 or over;
B60: MONTHLY RATES AND CHARGES
B63: Class A
B64: (a) account-holders with a household income of $28,000 or less living in a household of one or two persons; (b) account-holders with a household income of between $28,001 and $39,000 living in a household of three persons; (c) account-holders with a household income of between $39,001 and $48,000 living in a household of five persons; and (d) account-holders with a household income of between $48,001 and $52,000 living in a household of seven or more persons; but does not include account-holders in Class E. OESP Credit | C64: $ | D64: -30
B66: Class B
B67: (a) account-holders with a household income of $28,000 or less living in a household of three persons; (b) account-holders with a household income of between $28,001 and $39,000 living in a household of four persons; (c) account-holders with a household income of between $39,001 and $48,000 living in a household of six persons; but does not include account-holders in Class F. OESP Credit | C67: $ | D67: -34
B69: Class C
B70: (a) account-holders with a household income of $28,000 or less living in a household of four persons; (b) account-holders with a household income of between $28,001 and $39,000 living in a household of five persons; (c) account-holders with a household income of between $39,001 and $48,000 living in a household of seven or more persons; but does not include account-holders in Class G. OESP Credit | C70: $ | D70: -38
B72: Class D
B73: (a) account-holders with a household income of $28,000 or less living in a household of five persons; and (b) account-holders with a household income of between $28,001 and $39,000 living in a household of six persons; but does not include account-holders in Class H. OESP Credit | C73: $ | D73: -42
B75: Class E
B76: Class E comprises account-holders with a household income and household size described under Class A who also meet any of the following conditions: (a) the dwelling to which the account relates is heated primarily by electricity; (b) the account-holder or any member of the account-holder’s household is an Aboriginal person; or (c) the account-holder or any member of the account-holder’s household regularly uses, for medical purposes, an electricity-intensive medical device at the dwelling to which the account relates. OESP Credit | C76: $ | D76: -45
B78: Class F
B79: (a) account-holders with a household income of $28,000 or less living in a household of six or more persons; (b) account-holders with a household income of between $28,001 and $39,000 living in a household of seven or more persons; or (c) account-holders with a household income and household size described under Class B who also meet any of the following conditions:
B80: i. the dwelling to which the account relates is heated primarily by electricity; ii. the account-holder or any member of the account-holder’s household is an Aboriginal person; or iii. the account-holder or any member of the account-holder’s household regularly uses, for medical purposes, an electricity-intensive medical device at the dwelling to which the account relates
B81: OESP Credit | C81: $ | D81: -50
B83: Class G
B84: Class G comprises account-holders with a household income and household size described under Class C who also meet any of the following conditions: (a) the dwelling to which the account relates is heated primarily by electricity; (b) the account-holder or any member of the account-holder’s household is an Aboriginal person; or (c) the account-holder or any member of the account-holder’s household regularly uses, for medical purposes, an electricity-intensive medical device at the dwelling to which the account relates. OESP Credit | C84: $ | D84: -55
B86: Class H
B87: Class H comprises account-holders with a household income and household size described under Class D who also meet any of the following conditions: (a) the dwelling to which the account relates is heated primarily by electricity; (b) the account-holder or any member of the account-holder’s household is an Aboriginal person ; or (c) the account-holder or any member of the account-holder’s household regularly uses, for medical purposes, an electricity-intensive medical device at the dwelling to which the account relates. OESP Credit | C87: $ | D87: -60
B89: Class I
B90: Class I comprises account-holders with a household income and household size described under paragraphs (a) or (b) of Class F who also meet any of the following conditions: (a) the dwelling to which the account relates is heated primarily by electricity; (b) the account-holder or any member of the account-holder’s household is an Aboriginal person; or (c) the account-holder or any member of the account-holder’s household regularly uses, for medical purposes, an electricity-intensive medical device at the dwelling to which the account relates. OESP Credit | C90: $ | D90: -75
B91: GENERAL SERVICE LESS THAN 50 KW SERVICE CLASSIFICATION
B92: This classification applies to a non residential account whose average monthly maximum demand is less than, or is forecast to be less than, 50 kW. Multi-unit residential establishments such as apartment buildings supplied through one service (bulk metered) shall normally be classified as general service. Where service is provided to combined residential and business, or residential and agricultural, whether seasonal or all-year premises, and the wiring does not provide for separate metering, the service shall normally be classed as general service. Further servicing details are available in the distributor’s Conditions of Service.
B94: APPLICATION
B96: The application of these rates and charges shall be in accordance with the Licence of the Distributor and any Code or Order of the Ontario Energy Board, and amendments thereto as approved by the Ontario Energy Board, which may be applicable to the administration of this schedule.
B98: No rates and charges for the distribution of electricity and charges to meet the costs of any work or service done or furnished for the purpose of the distribution of electricity shall be made except as permitted by this schedule, unless required by the Distributor’s Licence or a Code or Order of the Ontario Energy Board, and amendments thereto as approved by the Ontario Energy Board, or as specified herein.
B100: Unless specifically noted, this schedule does not contain any charges for the electricity commodity, be it under the Regulated Price Plan, a contract with a retailer or the wholesale market price, as applicable. In addition, the charges in the MONTHLY RATES AND CHARGES - Regulatory Component of this schedule do not apply to a customer that is an embedded wholesale market participant.
B102: It should be noted that this schedule does not list any charges, assessments, or credits that are required by law to be invoiced by a distributor and that are not subject to Ontario Energy Board approval, such as the Debt Retirement Charge, the Global Adjustment and the HST.
B104: MONTHLY RATES AND CHARGES - Delivery Component
A106: GSL_F
A108: GSL_V
A109: GSL_GA16
A110: GSL_LRVA16
A111: GSL_DVA16
A112: GSL_1576
A113: GSL_CBR16
A114: GSL_TN
A115: GSL_TC
B117: MONTHLY RATES AND CHARGES - Regulatory Component
B119: Wholesale Market Service Rate | C119: $/kWh | D119: 0.0036
B120: Rural or Remote Electricity Rate Protection Charge (RRRP) | C120: $/kWh | D120: 0.0013
B121: Ontario Electricity Support Program Charge (OESP) | C121: $/kWh | D121: 0.0011
B122: Standard Supply Service - Administrative Charge (if applicable) | C122: $ | D122: 0.25
B123: GENERAL SERVICE 50 TO 699 KW SERVICE CLASSIFICATION
B124: This classification applies to a non residential account whose average monthly maximum demand used for billing purposes is equal to or greater than, or is forecast to be equal to or greater than, 50 kW but less than 700 kW. Further servicing details are available in the distributor’s Conditions of Service.
B126: APPLICATION
B128: The application of these rates and charges shall be in accordance with the Licence of the Distributor and any Code or Order of the Ontario Energy Board, and amendments thereto as approved by the Ontario Energy Board, which may be applicable to the administration of this schedule.
B130: No rates and charges for the distribution of electricity and charges to meet the costs of any work or service done or furnished for the purpose of the distribution of electricity shall be made except as permitted by this schedule, unless required by the Distributor’s Licence or a Code or Order of the Ontario Energy Board, and amendments thereto as approved by the Ontario Energy Board, or as specified herein.
B132: Unless specifically noted, this schedule does not contain any charges for the electricity commodity, be it under the Regulated Price Plan, a contract with a retailer or the wholesale market price, as applicable. In addition, the charges in the MONTHLY RATES AND CHARGES - Regulatory Component of this schedule do not apply to a customer that is an embedded wholesale market participant.
B134: It should be noted that this schedule does not list any charges, assessments, or credits that are required by law to be invoiced by a distributor and that are not subject to Ontario Energy Board approval, such as the Debt Retirement Charge, the Global Adjustment and the HST.
B136: MONTHLY RATES AND CHARGES - Delivery Component
A138: GS50_699_F
A139: GS50_699_V
A140: GS50_699_GA16
A141: GS50_699_LRVA16
A142: GS50_699_DVA16
A143: GS50_699_1576
A144: GS50_699_CBR16
A145: GS50_699_TN
A146: GS50_699_TC
B148: MONTHLY RATES AND CHARGES - Regulatory Component
B150: Wholesale Market Service Rate | C150: $/kWh | D150: 0.0036
B151: Rural or Remote Electricity Rate Protection Charge (RRRP) | C151: $/kWh | D151: 0.0013
B152: Ontario Electricity Support Program Charge (OESP) | C152: $/kWh | D152: 0.0011
B153: Standard Supply Service - Administrative Charge (if applicable) | C153: $ | D153: 0.25
B154: GENERAL SERVICE 700 TO 4,999 KW SERVICE CLASSIFICATION
B155: This classification applies to a non residential account whose average monthly maximum demand used for billing purposes is equal to or greater than, or is forecast to be equal to or greater than, 700 kW but less than 5,000 kW. Further servicing details are available in the distributor’s Conditions of Service.
B157: APPLICATION
B159: The application of these rates and charges shall be in accordance with the Licence of the Distributor and any Code or Order of the Ontario Energy Board, and amendments thereto as approved by the Ontario Energy Board, which may be applicable to the administration of this schedule.
B161: No rates and charges for the distribution of electricity and charges to meet the costs of any work or service done or furnished for the purpose of the distribution of electricity shall be made except as permitted by this schedule, unless required by the Distributor’s Licence or a Code or Order of the Ontario Energy Board, and amendments thereto as approved by the Ontario Energy Board, or as specified herein.
B163: Unless specifically noted, this schedule does not contain any charges for the electricity commodity, be it under the Regulated Price Plan, a contract with a retailer or the wholesale market price, as applicable. In addition, the charges in the MONTHLY RATES AND CHARGES - Regulatory Component of this schedule do not apply to a customer that is an embedded wholesale market participant.
B165: It should be noted that this schedule does not list any charges, assessments, or credits that are required by law to be invoiced by a distributor and that are not subject to Ontario Energy Board approval, such as the Debt Retirement Charge, the Global Adjustment and the HST.
B167: MONTHLY RATES AND CHARGES - Delivery Component
A169: GS700_F
A170: GS700_V
A171: GS700_GA16
A172: GS700_LRVA16
A173: GS700_DVA_nonWMP
A174: GS700_DVA16
A175: GS700_1576
A176: GS700_CBR16
A177: GS700_CBR16_A
A178: GS700_TN
A179: GS700_TC
B181: MONTHLY RATES AND CHARGES - Regulatory Component
B183: Wholesale Market Service Rate | C183: $/kWh | D183: 0.0036
B184: Rural or Remote Electricity Rate Protection Charge (RRRP) | C184: $/kWh | D184: 0.0013
B185: Ontario Electricity Support Program Charge (OESP) | C185: $/kWh | D185: 0.0011
B186: Standard Supply Service - Administrative Charge (if applicable) | C186: $ | D186: 0.25
B187: LARGE USE SERVICE CLASSIFICATION
B188: This classification applies to an account whose average monthly maximum demand over 12 consecutive months used for billing purposes is equal to or greater than 5,000 kW, or is forecast to be equal to or greater than 5,000 kW. Further servicing details are available in the distributor’s Conditions of Service.
B190: APPLICATION
B192: The application of these rates and charges shall be in accordance with the Licence of the Distributor and any Code or Order of the Ontario Energy Board, and amendments thereto as approved by the Ontario Energy Board, which may be applicable to the administration of this schedule.
B194: No rates and charges for the distribution of electricity and charges to meet the costs of any work or service done or furnished for the purpose of the distribution of electricity shall be made except as permitted by this schedule, unless required by the Distributor’s Licence or a Code or Order of the Ontario Energy Board, and amendments thereto as approved by the Ontario Energy Board, or as specified herein.
B196: Unless specifically noted, this schedule does not contain any charges for the electricity commodity, be it under the Regulated Price Plan, a contract with a retailer or the wholesale market price, as applicable. In addition, the charges in the MONTHLY RATES AND CHARGES - Regulatory Component of this schedule do not apply to a customer that is an embedded wholesale market participant.
B198: It should be noted that this schedule does not list any charges, assessments, or credits that are required by law to be invoiced by a distributor and that are not subject to Ontario Energy Board approval, such as the Debt Retirement Charge, the Global Adjustment and the HST.
B200: MONTHLY RATES AND CHARGES - Delivery Component
A202: LU_F
A203: LU_V
A204: LU_GA16
A205: LU_LRVA16
A206: LU_DVA16
A207: LU_1576
A208: LU_CBR16
A209: LU_TN
A210: LU_TC
B212: MONTHLY RATES AND CHARGES - Regulatory Component
B214: Wholesale Market Service Rate | C214: $/kWh | D214: 0.0036
B215: Rural or Remote Electricity Rate Protection Charge (RRRP) | C215: $/kWh | D215: 0.0013
B216: Ontario Electricity Support Program Charge (OESP) | C216: $/kWh | D216: 0.0011
B217: Standard Supply Service - Administrative Charge (if applicable) | C217: $ | D217: 0.25
B218: UNMETERED SCATTERED LOAD SERVICE CLASSIFICATION
B219: This classification applies to an account whose average monthly maximum demand is less than, or is forecast to be less than, 50 kW and the consumption is unmetered. Such connections include cable TV power packs, bus shelters, telephone booths, traffic lights, railway crossings, etc. The level of the consumption will be agreed to by the distributor and the customer, based on detailed manufacturer information/documentation with regard to electrical consumption of the unmetered load or periodic monitoring of actual consumption. Further servicing details are available in the distributor’s Conditions of Service.
B221: APPLICATION
B223: The application of these rates and charges shall be in accordance with the Licence of the Distributor and any Code or Order of the Ontario Energy Board, and amendments thereto as approved by the Ontario Energy Board, which may be applicable to the administration of this schedule.
B225: No rates and charges for the distribution of electricity and charges to meet the costs of any work or service done or furnished for the purpose of the distribution of electricity shall be made except as permitted by this schedule, unless required by the Distributor’s Licence or a Code or Order of the Ontario Energy Board, and amendments thereto as approved by the Ontario Energy Board, or as specified herein.
B227: Unless specifically noted, this schedule does not contain any charges for the electricity commodity, be it under the Regulated Price Plan, a contract with a retailer or the wholesale market price, as applicable. In addition, the charges in the MONTHLY RATES AND CHARGES - Regulatory Component of this schedule do not apply to a customer that is an embedded wholesale market participant.
B229: It should be noted that this schedule does not list any charges, assessments, or credits that are required by law to be invoiced by a distributor and that are not subject to Ontario Energy Board approval, such as the Debt Retirement Charge, the Global Adjustment and the HST.
B231: MONTHLY RATES AND CHARGES - Delivery Component
A233: USL_F
A234: USL_V
A235: USL_GA16
A236: USL_LRVA16
A237: USL_DVA16
A238: USL_1576
A239: USL_CBR16
A240: USL_TN
A241: USL_TC
B243: MONTHLY RATES AND CHARGES - Regulatory Component
B245: Wholesale Market Service Rate | C245: $/kWh | D245: 0.0036
B246: Rural or Remote Electricity Rate Protection Charge (RRRP) | C246: $/kWh | D246: 0.0013
B247: Ontario Electricity Support Program Charge (OESP) | C247: $/kWh | D247: 0.0011
B248: Standard Supply Service - Administrative Charge (if applicable) | C248: $ | D248: 0.25
B249: STREET LIGHTING SERVICE CLASSIFICATION
B250: All service supplied to roadway lighting equipment owned by or operated by the City of Brampton, Regional Municipality of Peel, or the Ministry of Transportation, controlled by photo cells. The consumption for these customers will be based on the calculated connected load times the required lighting times established in the approved OEB street lighting load shape template. Further servicing details are available in the distributor’s Conditions of Service.
B252: APPLICATION
B254: The application of these rates and charges shall be in accordance with the Licence of the Distributor and any Code or Order of the Ontario Energy Board, and amendments thereto as approved by the Ontario Energy Board, which may be applicable to the administration of this schedule.
B256: No rates and charges for the distribution of electricity and charges to meet the costs of any work or service done or furnished for the purpose of the distribution of electricity shall be made except as permitted by this schedule, unless required by the Distributor’s Licence or a Code or Order of the Ontario Energy Board, and amendments thereto as approved by the Ontario Energy Board, or as specified herein.
B258: Unless specifically noted, this schedule does not contain any charges for the electricity commodity, be it under the Regulated Price Plan, a contract with a retailer or the wholesale market price, as applicable. In addition, the charges in the MONTHLY RATES AND CHARGES - Regulatory Component of this schedule do not apply to a customer that is an embedded wholesale market participant.
B260: It should be noted that this schedule does not list any charges, assessments, or credits that are required by law to be invoiced by a distributor and that are not subject to Ontario Energy Board approval, such as the Debt Retirement Charge, the Global Adjustment and the HST.
B262: MONTHLY RATES AND CHARGES - Delivery Component
A264: SL_F
A265: SL_V
A266: SL_GA16
A267: SL_LRVA16
A268: SL_DVA16
A269: SL_1576
A270: SL_CBR16
A271: SL_TN
A272: SL_TC
B274: MONTHLY RATES AND CHARGES - Regulatory Component
B276: Wholesale Market Service Rate | C276: $/kWh | D276: 0.0036
B277: Rural or Remote Electricity Rate Protection Charge (RRRP) | C277: $/kWh | D277: 0.0013
B278: Ontario Electricity Support Program Charge (OESP) | C278: $/kWh | D278: 0.0011
B279: Standard Supply Service - Administrative Charge (if applicable) | C279: $ | D279: 0.25
B280: STANDBY POWER SERVICE CLASSIFICATION
B281: This classification refers to an account that has Load Displacement Generation and requires the distributor to provide back-up service. Further servicing details are available in the distributor’s Conditions of Service.
B283: APPLICATION
B285: The application of these rates and charges shall be in accordance with the Licence of the Distributor and any Code or Order of the Ontario Energy Board, and amendments thereto as approved by the Ontario Energy Board, which may be applicable to the administration of this schedule.
B287: No rates and charges for the distribution of electricity and charges to meet the costs of any work or service done or furnished for the purpose of the distribution of electricity shall be made except as permitted by this schedule, unless required by the Distributor’s Licence or a Code or Order of the Ontario Energy Board, and amendments thereto as approved by the Ontario Energy Board, or as specified herein.
B289: Unless specifically noted, this schedule does not contain any charges for the electricity commodity, be it under the Regulated Price Plan, a contract with a retailer or the wholesale market price, as applicable. In addition, the charges in the MONTHLY RATES AND CHARGES - Regulatory Component of this schedule do not apply to a customer that is an embedded wholesale market participant.
B291: It should be noted that this schedule does not list any charges, assessments, or credits that are required by law to be invoiced by a distributor and that are not subject to Ontario Energy Board approval, such as the Debt Retirement Charge, the Global Adjustment and the HST.
B293: MONTHLY RATES AND CHARGES - Delivery Component - Approved on an Interim Basis
... 123 more rows

Sheet CBR 1580 Sub-Account (hidden)
A1: Back to Index
B2: INCENTIVE REGULATION MODEL FOR 2018 FILERS
B11: Input kW in columns G and I, if applicable
B12: The purpose of this tab is to calculate the GA rate riders for all current Class B customers of the distributor.
B14: Account 1580
B15: Variance WMS – Sub-account CBR Class A | C15: ='3. Continuity Schedule'!CD24 -> 0
B16: Variance WMS – Sub-account CBR Class B | C16: ='3. Continuity Schedule'!CD25 -> 0
B17: Rate Class | C17: Unit | D17: Total Metered kWh | E17: Total Metered kW | F17: Total Metered Class A Consumption in 2016 (partial and/or full year Class A customers)* | H17: Total Metered Consumption for New Class A customer(s) in the period prior to becoming Class A (i.e. Jan 1 - Jun 30, 2016) | J17: Total CBDR for the new Class A customers for the period they were Class B (i.e. Jan 1-Jun 30, 2016) | K17: Total Metered WMP consumption | M17: Metered Consumption for Current Class B Customers (Total consumption LESS WMP, Class A and new Class A's former Class B consumption) | O17: CBR Balance Allocation | P17: CBR Rate Rider
D18: kWh | E18: kW | F18: kWh | G18: kW | H18: kWh | I18: kW | J18: $ | K18: kWh | L18: kW | M18: kWh | N18: kW | O18: =C16-J32 -> 
B19: ='4. Billing Det. for Def-Var'!B17 -> RESIDENTIAL SERVICE CLASSIFICATION | C19: ='4. Billing Det. for Def-Var'!C17 -> kWh | D19: ='4. Billing Det. for Def-Var'!D17 -> 0 | E19: ='4. Billing Det. for Def-Var'!E17 -> 0 | F19: ='6. GA Calculation'!E17 -> 0 | H19: ='6. GA Calculation'!G17 -> 0 | J19: =H19/(D$32-F$32-K$21)*$C$16 ->  | K19: ='4. Billing Det. for Def-Var'!H17 -> 0 | L19: ='4. Billing Det. for Def-Var'!I17 -> 0 | M19: =D19-F19-H19-K19 -> 0 | N19: =E19-G19-I19-L19 -> 0 | O19: =$O$18*(M19/M$32) ->  | P19: =IFERROR(IF(N19=0,O19/M19,O19/N19),"") ->  | R19: =O19-Q19 ->  | S19: does not result in a rdier (move to Account 1595 for dispostion?)
B20: ='4. Billing Det. for Def-Var'!B18 -> GENERAL SERVICE LESS THAN 50 kW SERVICE CLASSIFICATION | C20: ='4. Billing Det. for Def-Var'!C18 -> kWh | D20: ='4. Billing Det. for Def-Var'!D18 -> 0 | E20: ='4. Billing Det. for Def-Var'!E18 -> 0 | F20: ='6. GA Calculation'!E18 -> 0 | H20: ='6. GA Calculation'!G18 -> 0 | J20: =H20/(D$32-F$32-K$21)*$C$16 ->  | K20: ='4. Billing Det. for Def-Var'!H18 -> 0 | L20: ='4. Billing Det. for Def-Var'!I18 -> 0 | M20: =D20-F20-H20-K20 -> 0 | N20: =E20-G20-I20-L20 -> 0 | O20: =$O$18*(M20/M$32) ->  | P20: =IFERROR(IF(N20=0,O20/M20,O20/N20),"") ->  | R20: =O20-Q20 ->  | S20: does not result in a rdier (move to Account 1595 for dispostion?)
B21: ='4. Billing Det. for Def-Var'!B19 -> GENERAL SERVICE 50 to 4,999 kW SERVICE CLASSIFICATION | C21: ='4. Billing Det. for Def-Var'!C19 -> kW | D21: ='4. Billing Det. for Def-Var'!D19 -> 0 | E21: ='4. Billing Det. for Def-Var'!E19 -> 0 | F21: ='6. GA Calculation'!E19 -> 0 | H21: ='6. GA Calculation'!G19 -> 0 | J21: =H21/(D$32-F$32-K$21)*$C$16 ->  | K21: ='4. Billing Det. for Def-Var'!H19 -> 0 | L21: ='4. Billing Det. for Def-Var'!I19 -> 0 | M21: 0 | N21: 0 | P21: =IFERROR(IF(N21=0,O21/M21,O21/N21),"") ->  | Q21: =P21*N21 -> 
B22: ='4. Billing Det. for Def-Var'!B20 -> LARGE USE SERVICE CLASSIFICATION | C22: ='4. Billing Det. for Def-Var'!C20 -> kW | D22: ='4. Billing Det. for Def-Var'!D20 -> 0 | E22: ='4. Billing Det. for Def-Var'!E20 -> 0 | F22: ='6. GA Calculation'!E20 -> 0 | H22: ='6. GA Calculation'!G20 -> 0 | J22: =H22/(D$32-F$32-K$21)*$C$16 ->  | K22: ='4. Billing Det. for Def-Var'!H20 -> 0 | L22: ='4. Billing Det. for Def-Var'!I20 -> 0 | M22: 0 | N22: 0 | Q22: =P22*N22 -> 
B23: ='4. Billing Det. for Def-Var'!B21 -> UNMETERED SCATTERED LOAD SERVICE CLASSIFICATION | C23: ='4. Billing Det. for Def-Var'!C21 -> kW | D23: ='4. Billing Det. for Def-Var'!D21 -> 0 | E23: ='4. Billing Det. for Def-Var'!E21 -> 0 | F23: ='6. GA Calculation'!E21 -> 0 | H23: ='6. GA Calculation'!G21 -> 0 | K23: ='4. Billing Det. for Def-Var'!H21 -> 0 | L23: ='4. Billing Det. for Def-Var'!I21 -> 0 | M23: 0 | N23: 0
B24: ='4. Billing Det. for Def-Var'!B22 -> SENTINEL LIGHTING SERVICE CLASSIFICATION | C24: ='4. Billing Det. for Def-Var'!C22 -> kW | D24: ='4. Billing Det. for Def-Var'!D22 -> 0 | E24: ='4. Billing Det. for Def-Var'!E22 -> 0 | F24: ='6. GA Calculation'!E22 -> 0 | H24: ='6. GA Calculation'!G22 -> 0 | K24: ='4. Billing Det. for Def-Var'!H22 -> 0 | L24: ='4. Billing Det. for Def-Var'!I22 -> 0 | M24: 0 | N24: 0
B25: ='4. Billing Det. for Def-Var'!B23 -> STREET LIGHTING SERVICE CLASSIFICATION | C25: ='4. Billing Det. for Def-Var'!C23 -> kWh | D25: ='4. Billing Det. for Def-Var'!D23 -> 0 | E25: ='4. Billing Det. for Def-Var'!E23 -> 0 | F25: ='6. GA Calculation'!E23 -> 0 | H25: ='6. GA Calculation'!G23 -> 0 | K25: ='4. Billing Det. for Def-Var'!H23 -> 0 | L25: ='4. Billing Det. for Def-Var'!I23 -> 0 | M25: 0 | N25: 0 | P25: =IFERROR(IF(N25=0,O25/M25,O25/N25),"") ->  | S25: =S19 -> does not result in a rdier (move to Account 1595 for dispostion?)
B26: ='4. Billing Det. for Def-Var'!B24 -> 0 | C26: ='4. Billing Det. for Def-Var'!C24 -> 0 | D26: ='4. Billing Det. for Def-Var'!D24 -> 0 | E26: ='4. Billing Det. for Def-Var'!E24 -> 0 | F26: ='6. GA Calculation'!E24 -> 0 | H26: ='6. GA Calculation'!G24 -> 0 | K26: ='4. Billing Det. for Def-Var'!H24 -> 0 | L26: ='4. Billing Det. for Def-Var'!I24 -> 0 | M26: 0 | N26: 0
B27: ='4. Billing Det. for Def-Var'!B25 -> 0 | C27: ='4. Billing Det. for Def-Var'!C25 -> 0 | D27: ='4. Billing Det. for Def-Var'!D25 -> 0 | E27: ='4. Billing Det. for Def-Var'!E25 -> 0 | F27: ='6. GA Calculation'!E25 -> 0 | H27: ='6. GA Calculation'!G25 -> 0 | K27: ='4. Billing Det. for Def-Var'!H25 -> 0 | L27: ='4. Billing Det. for Def-Var'!I25 -> 0 | M27: 0 | N27: 0 | S27: =S19 -> does not result in a rdier (move to Account 1595 for dispostion?)
B28: ='4. Billing Det. for Def-Var'!B26 -> 0 | C28: ='4. Billing Det. for Def-Var'!C26 -> 0 | D28: ='4. Billing Det. for Def-Var'!D26 -> 0 | E28: ='4. Billing Det. for Def-Var'!E26 -> 0 | F28: ='6. GA Calculation'!E26 -> 0 | H28: ='6. GA Calculation'!G26 -> 0 | K28: ='4. Billing Det. for Def-Var'!H26 -> 0 | L28: ='4. Billing Det. for Def-Var'!I26 -> 0 | M28: 0 | N28: 0 | S28: =S19 -> does not result in a rdier (move to Account 1595 for dispostion?)
B29: ='4. Billing Det. for Def-Var'!B27 -> 0 | C29: ='4. Billing Det. for Def-Var'!C27 -> 0 | D29: ='4. Billing Det. for Def-Var'!D27 -> 0 | E29: ='4. Billing Det. for Def-Var'!E27 -> 0 | F29: ='6. GA Calculation'!E27 -> 0 | H29: ='6. GA Calculation'!G27 -> 0 | K29: ='4. Billing Det. for Def-Var'!H27 -> 0 | L29: ='4. Billing Det. for Def-Var'!I27 -> 0 | M29: 0 | N29: 0
B32: Total | D32: =SUM(D19:D31) -> 0 | E32: =SUM(E19:E31) -> 0 | F32: 0 | G32: 0 | H32: 0 | I32: 0 | J32: =SUM(J20:J26) ->  | K32: =SUM(K19:K31) -> 0 | L32: =SUM(L19:L31) -> 0 | M32: 0 | N32: 0 | O32: =SUM(O19:O31) ->  | Q32: =SUM(Q19:Q31) ->  | S32: Total to be recovered
N33: Total Account 1580 Variance WMS – Sub-account CBR Class B balance | O33: =O32+J32 ->  | R33: =SUM(R19:R30) ->  | S33: Variance (Account 1595?)
O34: =O33-C16 -> 
D36: Total Class B kWh in 2016
D37: =D32-F32-K21 -> 0
D38: Former Class B kWh in 2016 | E38: % of Former B kWh | F38: CBR balance to Former B
D39: =H32 -> 0 | E39: =D39/D37 ->  | F39: =E39*C16 -> 
B42: Allocation of CBR Balances to Former Class B Customers
B44: This table allocates the CBR balance to former Class B customers who contributed to the current CBR balance but are now Class A customers. he tables below calculate specific amounts for each customer who made the change. Consistent with both decisions for 2016 rates and EDDVAR, distributors are generally expected to settle the amount through 12 equal adjustments to bills. A one-time settlement is acceptable if the affected customer has expressed a clear preference for this approach. (see Filing Requirements section 3.2.5.2)
B48: # of Former Class B customer(s)
B49: Class B (half of 2016) kWh | D49: Total Adj. kWh Class B before switch to Class A | E49: % of kWh | F49: Customer specific CBR allocation for the period prior to becoming Class A | G49: Monthly Equal Payments
F50: =J32 -> 
B51: Customer 1 | D51: ='6A. GA Allocation_Class A'!D32 -> 0 | E51: =IFERROR(D51/D$53,"") ->  | F51: =IFERROR($F$50*E51,"") ->  | G51: =IFERROR(F51/12,"") -> 
B52: Customer 2 | D52: ='6A. GA Allocation_Class A'!D33 -> 0 | E52: =IFERROR(D52/D$53,"") ->  | F52: =IFERROR($F$50*E52,"") ->  | G52: =IFERROR(F52/12,"") -> 
B53: TOTAL | D53: =SUM(D51:D52) -> 0 | E53: =SUM(E51:E52) -> 0 | F53: =SUM(F51:F52) -> 0

Sheet Horizon Utilities Rate Zone
A1: Back to Index
A2: Alectra Utilities Corporation
A3: Horizon Utilities Rate Zone
A4: TARIFF OF RATES AND CHARGES
A5: Effective Date January 1, 2019
A6: Implementation Date February 1, 2019
A7: This schedule supersedes and replaces all previously
A8: approved schedules of Rates, Charges and Loss Factors
C9: EB-2018-0016
A11: RESIDENTIAL SERVICE CLASSIFICATION
A12: This classification refers to all residential services including, without limitation, single family or single unit dwellings, multifamily dwellings, row-type dwellings and subdivision developments. Energy is supplied in single phase, 3-wire, or three phase, 4 wire, having a nominal voltage of 120/240 volts. There shall be only one delivery point to a dwelling. Class B consumers are defined in accordance with O. Reg. 429/04. Further servicing details are available in the distributor’s Conditions of Service.
A14: APPLICATION
A16: The application of these rates and charges shall be in accordance with the Licence of the Distributor and any Code or Order of the Ontario Energy Board, and amendments thereto as approved by the Ontario Energy Board, which may be applicable to the administration of this schedule.
A17: No rates and charges for the distribution of electricity and charges to meet the costs of any work or service done or furnished for the purpose of the distribution of electricity shall be made except as permitted by this schedule, unless required by the Distributor’s Licence or a Code or Order of the Ontario Energy Ontario Energy Board, and amendments thereto as approved by the Ontario Energy Board, or as specified herein.
A18: Unless specifically noted, this schedule does not contain any charges for the electricity commodity, be it under the Regulated Price Plan, a contract with a retailer or the wholesale market price, as applicable. In addition, the charges in the MONTHLY RATES AND CHARGES - Regulatory Component of this schedule do not apply to a customer that is an embedded wholesale market participant.
A19: It should be noted that this schedule does not list any charges, assessments, or credits that are required by law to be invoiced by a distributor and that are not subject to Ontario Energy Board approval, such as the Debt Retirement Charge, the Global Adjustment and the HST.
A21: MONTHLY RATES AND CHARGES – Delivery Component
A23: Service Charge | B23: $ | C23: 26.7
A24: Smart Metering Entity Charge - effective until December 31, 2022 | B24: $ | C24: 0.57
A25: Rate Rider for Disposition of 2016 Earnings Sharing - effective until April 30, 2019 | B25: $ | C25: -0.16
A26: Rate Rider for Recovery of 2019 Foregone Revenue - effective February 1, 2019 until December 31, 2019 | B26: $ | C26: 0.05
A27: Low Voltage Service Rate | B27: $/kWh | C27: 6e-05
A28: Rate Rider for Disposition of Global Adjustment Account (2018) - effective until April 30, 2019 Applicable only for Non-RPP Customers | B28: $/kWh | C28: -0.0029
A29: Rate Rider for Disposition of Global Adjustment Account (2019) - effective February 1, 2019 until December 31, 2019 Applicable only for Non-RPP Customers | B29: $/kWh | C29: -0.0002142565073
A30: Rate Rider for Disposition of Deferral/Variance Accounts (2018) - effective until April 30, 2019 | B30: $/kWh | C30: -0.0005574544117
A31: Rate Rider for Disposition of Deferral/Variance Accounts (2019) - effective February 1, 2019 until December 31, 2019 | B31: $/kWh | C31: -0.0021
A32: Rate Rider for Disposition of Capacity Based Recovery Account (2018) - effective until April 30, 2019 Applicable Only for Class B Customers | B32: $/kWh | C32: -4.802217843e-05
A33: Rate Rider for Disposition of Lost Revenue Adjustment Mechanism Variance Account (LRAMVA) (2018) - effective until April 30, 2019 | B33: $/kWh | C33: 0.0003423584074
A34: Rate Rider for Disposition of Lost Revenue Adjustment Mechanism Variance Account (LRAMVA) (2019) - effective February 1, 2019 until December 31, 2019 | B34: $/kWh | C34: 0.0003
A35: Retail Transmission Rate - Network Service Rate | B35: $/kWh | C35: 0.0072
A36: Retail Transmission Rate - Line and Transformation Connection Service Rate | B36: $/kWh | C36: 0.0066
A38: MONTHLY RATES AND CHARGES – Regulatory Component
A40: Wholesale Market Service Rate (WMS) - not including CBR | B40: $/kWh | C40: 0.003
A41: Capacity Based Recovery (CBR) - Applicable for Class B Customers | B41: $/kWh | C41: 0.0004
A42: Rural or Remote Electricity Rate Protection Charge (RRRP) | B42: $/kWh | C42: 0.0005
A43: Standard Supply Service - Administrative Charge (if applicable) | B43: $ | C43: 0.25
A47: GENERAL SERVICE LESS THAN 50 kW SERVICE CLASSIFICATION
A49: This classification refers to a non-residential account whose monthly average peak demand is less than, or is forecast to be less than, 50 kW. Class B consumers are defined in accordance with O. Reg. 429/04. Further servicing details are available in the distributor’s Conditions of Service.
A51: APPLICATION
A53: The application of these rates and charges shall be in accordance with the Licence of the Distributor and any Code or Order of the Ontario Energy Board, and amendments thereto as approved by the Ontario Energy Board, which may be applicable to the administration of this schedule.
A54: No rates and charges for the distribution of electricity and charges to meet the costs of any work or service done or furnished for the purpose of the distribution of electricity shall be made except as permitted by this schedule, unless required by the Distributor’s Licence or a Code or Order of the Ontario Energy Board, and amendments thereto as approved by the Ontario Energy Board, or as specified herein.
A55: Unless specifically noted, this schedule does not contain any charges for the electricity commodity, be it under the Regulated Price Plan, a contract with a retailer or the wholesale market price, as applicable. In addition, the charges in the MONTHLY RATES AND CHARGES - Regulatory Component of this schedule do not apply to a customer that is an embedded wholesale market participant.
A56: It should be noted that this schedule does not list any charges, assessments, or credits that are required by law to be invoiced by a distributor and that are not subject to Ontario Energy Board approval, such as the Debt Retirement Charge, the Global Adjustment and the HST.
A58: MONTHLY RATES AND CHARGES – Delivery Component
A60: Service Charge | B60: $ | C60: 42.29
A61: Smart Metering Entity Charge - effective until December 31, 2022 | B61: $ | C61: 0.57
A62: Rate Rider for Disposition of 2016 Earnings Sharing - effective until April 30, 2019 | B62: $ | C62: -0.25
A63: Rate Rider for Recovery of 2019 Foregone Revenue - effective February 1, 2019 until December 31, 2019 | B63: $ | C63: 0.17
A64: Distribution Volumetric Rate | B64: $/kWh | C64: 0.0109
A65: Low Voltage Service Rate | B65: $/kWh | C65: 6e-05
A66: Rate Rider for Disposition of Global Adjustment Account (2018) - effective until April 30, 2019 Applicable only for Non-RPP Customers | B66: $/kWh | C66: -0.0029
A67: Rate Rider for Disposition of Global Adjustment Account (2019) - effective February 1, 2019 until December 31, 2019 Applicable only for Non-RPP Customers | B67: $/kWh | C67: -0.0002142565073
A68: Rate Rider for Disposition of Deferral/Variance Accounts (2018) - effective until April 30, 2019 | B68: $/kWh | C68: -0.0005470605898
A69: Rate Rider for Disposition of Deferral/Variance Accounts (2019) - effective February 1, 2019 until December 31, 2019 | B69: $/kWh | C69: -0.002
A70: Rate Rider for Disposition of Capacity Based Recovery Account (2018) - effective until April 30, 2019 Applicable Only for Class B Customers | B70: $/kWh | C70: -4.802217843e-05
A71: Rate Rider for Disposition of 2016 Earnings Sharing - effective until April 30, 2019 | B71: $/kWh | C71: -0.0001
A72: Rate Rider for Disposition of Lost Revenue Adjustment Mechanism Variance Account (LRAMVA) (2018) - effective until April 30, 2019 | B72: $/kWh | C72: 0.0005061084916
A73: Rate Rider for Disposition of Lost Revenue Adjustment Mechanism Variance Account (LRAMVA) (2019) - effective February 1, 2019 until December 31, 2019 | B73: $/kWh | C73: 0.0006
A74: Retail Transmission Rate - Network Service Rate | B74: $/kWh | C74: 0.0063
A75: Retail Transmission Rate - Line and Transformation Connection Service Rate | B75: $/kWh | C75: 0.0059
A77: MONTHLY RATES AND CHARGES – Regulatory Component
A79: Wholesale Market Service Rate (WMS) - not including CBR | B79: $/kWh | C79: 0.003
A80: Capacity Based Recovery (CBR) - Applicable for Class B Customers | B80: $/kWh | C80: 0.0004
A81: Rural or Remote Electricity Rate Protection Charge (RRRP) | B81: $/kWh | C81: 0.0005
A82: Standard Supply Service - Administrative Charge (if applicable) | B82: $ | C82: 0.25
A85: GENERAL SERVICE 50 to 4,999 kW SERVICE CLASSIFICATION
A87: This classification refers to a non-residential account whose monthly average peak demand is equal to or greater than, or is forecast to be equal to or greater than, 50 kW but less than 5,000 kW, both regular and interval metered. Class A and Class B consumers are defined in accordance with O. Reg. 429/04. Further servicing details are available in the distributor’s Conditions of Service.
A89: APPLICATION
A91: The application of these rates and charges shall be in accordance with the Licence of the Distributor and any Code or Order of the Ontario Energy Board, and amendments thereto as approved by the Ontario Energy Board, which may be applicable to the administration of this schedule.
A92: No rates and charges for the distribution of electricity and charges to meet the costs of any work or service done or furnished for the purpose of the distribution of electricity shall be made except as permitted by this schedule, unless required by the Distributor’s Licence or a Code or Order of the Ontario Energy Board, and amendments thereto as approved by the Ontario Energy Board, or as specified herein.
A93: Unless specifically noted, this schedule does not contain any charges for the electricity commodity, be it under the Regulated Price Plan, a contract with a retailer or the wholesale market price, as applicable. In addition, the charges in the MONTHLY RATES AND CHARGES – Regulatory Component of this schedule do not apply to a customer that is an embedded wholesale market participant.
A94: It should be noted that this schedule does not list any charges, assessments or credits that are required by law to be invoiced by a distributor and that are not subject to Ontario Energy Board approval, such as the Debt Retirement Charge, the Global Adjustment and the HST.
A97: MONTHLY RATES AND CHARGES – Delivery Component
A99: Service Charge | B99: $ | C99: 389.4
A100: Rate Rider for Disposition of 2016 Earnings Sharing - effective until April 30, 2019 | B100: $ | C100: -2.27
A101: Rate Rider for Recovery of 2019 Foregone Revenue - effective February 1, 2019 until December 31, 2019 | B101: $ | C101: 1.9
A102: Distribution Volumetric Rate | B102: $/kW | C102: 2.615
A103: Low Voltage Service Rate | B103: $/kW | C103: 0.02169
A104: Rate Rider for Disposition of Global Adjustment Account (2018) - effective until April 30, 2019 Applicable only for Non-RPP Customers Non-Wholesale Market Participants | B104: $/kWh | C104: -0.0029
A105: Rate Rider for Disposition of Global Adjustment Account (2019) - effective May 1, 2019 until December 31, 2019 Applicable only for Non-RPP Customers Non-Wholesale Market Participants | B105: $/kWh | C105: -0.0003
A106: Rate Rider for Disposition of Deferral/Variance Accounts (2018) - effective until April 30, 2019 | B106: $/kW | C106: 0.1080394209
A107: Rate Rider for Disposition of Deferral/Variance Accounts (2018) - effective until April 30, 2019 Applicable only for Non-Wholesale Market Participants | B107: $/kW | C107: -0.3086262689
A108: Rate Rider for Disposition of Deferral/Variance Accounts (2019) - effective February 1, 2019 until December 31, 2019 | B108: $/kW | C108: -0.7411
A109: Rate Rider for Disposition of Capacity Based Recovery Account (2018) - effective until April 30, 2019 Applicable Only for Class B Customers | B109: $/kW | C109: -0.01729915518
A110: Rate Rider for Disposition of 2016 Earnings Sharing - effective until April 30, 2019 | B110: $/kW | C110: -0.0153
A111: Rate Rider for Disposition of Lost Revenue Adjustment Mechanism Variance Account (LRAMVA) (2018) - effective until April 30, 2019 | B111: $/kW | C111: 0.0575
A112: Rate Rider for Disposition of Lost Revenue Adjustment Mechanism Variance Account (LRAMVA) (2019) - effective February 1, 2019 until December 31, 2019 | B112: $/kW | C112: 0.0066
A113: Retail Transmission Rate - Network Service Rate | B113: $/kW | C113: 2.5204
A114: Retail Transmission Rate - Line and Transformation Connection Service Rate | B114: $/kW | C114: 2.3873
A116: MONTHLY RATES AND CHARGES – Regulatory Component
A118: Wholesale Market Service Rate (WMS) - not including CBR | B118: $/kWh | C118: 0.003
A119: Capacity Based Recovery (CBR) - Applicable for Class B Customers | B119: $/kWh | C119: 0.0004
A120: Rural or Remote Electricity Rate Protection Charge (RRRP) | B120: $/kWh | C120: 0.0005
A121: Standard Supply Service - Administrative Charge (if applicable) | B121: $ | C121: 0.25
A124: LARGE USE SERVICE CLASSIFICATION
A126: This classification refers to an account whose monthly average peak demand is equal to or greater than, or is forecast to be equal to or greater than, 5,000 kW. Class A and Class B consumers are defined in accordance with O. Reg. 429/04. Further servicing details are available in the distributor’s Conditions of Service.
A128: APPLICATION
A130: The application of these rates and charges shall be in accordance with the Licence of the Distributor and any Code or Order of the Ontario Energy Board, and amendments thereto as approved by the Ontario Energy Board, which may be applicable to the administration of this schedule.
A131: No rates and charges for the distribution of electricity and charges to meet the costs of any work or service done or furnished for the purpose of the distribution of electricity shall be made except as permitted by this schedule, unless required by the Distributor’s Licence or a Code or Order of the Ontario Energy Board, and amendments thereto as approved by the Ontario Energy Board, or as specified herein.
A132: Unless specifically noted, this schedule does not contain any charges for the electricity commodity, be it under the Regulated Price Plan, a contract with a retailer or the wholesale market price, as applicable. In addition, the charges in the MONTHLY RATES AND CHARGES – Regulatory Component of this schedule do not apply to a customer that is an embedded wholesale market participant.
A133: It should be noted that this schedule does not list any charges, assessments or credits that are required by law to be invoiced by a distributor and that are not subject to Ontario Energy Board approval, such as the Debt Retirement Charge, the Global Adjustment and the HST.
A135: MONTHLY RATES AND CHARGES – Delivery Component
A137: Service Charge | B137: $ | C137: 24279.37
A138: Rate Rider for Disposition of 2016 Earnings Sharing - effective until April 30, 2019 | B138: $ | C138: -142.57
A139: Rate Rider for Recovery of 2019 Foregone Revenue - effective February 1, 2019 until December 31, 2019 | B139: $ | C139: 73.3
A140: Distribution Volumetric Rate | B140: $/kW | C140: 1.4325
A141: Low Voltage Service Rate | B141: $/kW | C141: 0.02492
A142: Rate Rider for Disposition of Global Adjustment Account (2018) - effective until April 30, 2019 Applicable only for Non-RPP Customers Non-Wholesale Market Participants | B142: $/kWh | C142: -0.0029
A143: Rate Rider for Disposition of Deferral/Variance Accounts (2018) - effective until April 30, 2019 | B143: $/kW | C143: 0.1418089204
A144: Rate Rider for Disposition of Deferral/Variance Accounts (2018) - effective until April 30, 2019 Applicable only for Non-Wholesale Market Participants | B144: $/kW | C144: -0.4568818938
A145: Rate Rider for Disposition of Deferral/Variance Accounts (2019) - effective February 1, 2019 until December 31, 2019 | B145: $/kW | C145: 0.0873
A146: Rate Rider for Disposition of Deferral/Variance Accounts (2019) - effective February 1, 2019 until December 31, 2019 Applicable only for Non-Wholesale Market Participants | B146: $/kW | C146: -1.2184
A147: Rate Rider for Disposition of Capacity Based Recovery Account (2018) - effective until April 30, 2019 Applicable Only for Class B Customers | B147: $/kW | C147: -0.02611067875
A148: Rate Rider for Disposition of 2016 Earnings Sharing - effective until April 30, 2019 | B148: $/kW | C148: -0.0084
A149: Rate Rider for Disposition of Lost Revenue Adjustment Mechanism Variance Account (LRAMVA) (2018) - effective until April 30, 2019 | B149: $/kW | C149: 0.2337735807
A150: Rate Rider for Disposition of Lost Revenue Adjustment Mechanism Variance Account (LRAMVA) (2019) - effective February 1, 2019 until December 31, 2019 | B150: $/kW | C150: 0.0205
A151: Retail Transmission Rate - Network Service Rate | B151: $/kW | C151: 2.8791
A152: Retail Transmission Rate - Line and Transformation Connection Service Rate | B152: $/kW | C152: 2.7433
A154: MONTHLY RATES AND CHARGES – Regulatory Component
A156: Wholesale Market Service Rate (WMS) - not including CBR | B156: $/kWh | C156: 0.003
A157: Capacity Based Recovery (CBR) - Applicable for Class B Customers | B157: $/kWh | C157: 0.0004
A158: Rural or Remote Electricity Rate Protection Charge (RRRP) | B158: $/kWh | C158: 0.0005
A159: Standard Supply Service - Administrative Charge (if applicable) | B159: $ | C159: 0.25
A162: LARGE USE WITH DEDICATED ASSETS SERVICE CLASSIFICATION
A164: This classification applies to an account where average monthly maximum demand used for billing purposes is equal to or greater than, or is forecast to be equal to or greater than, 5,000 kW and using dedicated assets. Class A and Class B consumers are defined in accordance with O. Reg. 429/04. Further servicing details are available in the distributor’s Conditions of Service.
A166: APPLICATION
A168: The application of these rates and charges shall be in accordance with the Licence of the Distributor and any Code or Order of the Ontario Energy Board, and amendments thereto as approved by the Ontario Energy Board, which may be applicable to the administration of this schedule.
A169: No rates and charges for the distribution of electricity and charges to meet the costs of any work or service done or furnished for the purpose of the distribution of electricity shall be made except as permitted by this schedule, unless required by the Distributor’s Licence or a Code or Order of the Ontario Energy Board, and amendments thereto as approved by the Ontario Energy Board, or as specified herein.
A170: Unless specifically noted, this schedule does not contain any charges for the electricity commodity, be it under the Regulated Price Plan, a contract with a retailer or the wholesale market price, as applicable. In addition, the charges in the MONTHLY RATES AND CHARGES – Regulatory Component of this schedule do not apply to a customer that is an embedded wholesale market participant.
A171: It should be noted that this schedule does not list any charges, assessments or credits that are required by law to be invoiced by a distributor and that are not subject to Ontario Energy Board approval, such as the Debt Retirement Charge, the Global Adjustment and the HST.
A173: MONTHLY RATES AND CHARGES – Delivery Component
A175: Service Charge | B175: $ | C175: 5755.85
A176: Rate Rider for Disposition of 2016 Earnings Sharing - effective until April 30, 2019 | B176: $ | C176: -33.55
A177: Rate Rider for Recovery of 2019 Foregone Revenue - effective February 1, 2019 until December 31, 2019 | B177: $ | C177: 30.84
A178: Distribution Volumetric Rate | B178: $/kW | C178: 0.3396
A179: Low Voltage Service Rate | B179: $/kW | C179: 0.02492
A180: Rate Rider for Disposition of Deferral/Variance Accounts (2018) - effective until April 30, 2019 | B180: $/kW | C180: 0.1635188669
A181: Rate Rider for Disposition of Deferral/Variance Accounts (2018) - effective until April 30, 2019 Applicable only for Non-Wholesale Market Participants | B181: $/kW | C181: -0.3761280106
A182: Rate Rider for Disposition of Deferral/Variance Accounts (2019) - effective February 1, 2019 until December 31, 2019 | B182: $/kW | C182: 0.0957
A183: Rate Rider for Disposition of Deferral/Variance Accounts (2019) - effective February 1, 2019 until December 31, 2019 Applicable only for Non-Wholesale Market Participants | B183: $/kW | C183: -0.864
A184: Rate Rider for Disposition of 2016 Earnings Sharing - effective until April 30, 2019 | B184: $/kW | C184: -0.002
A185: Rate Rider for Disposition of Lost Revenue Adjustment Mechanism Variance Account (LRAMVA) (2018) - effective until April 30, 2019 | B185: $/kW | C185: 0.004879617355
A186: Rate Rider for Disposition of Lost Revenue Adjustment Mechanism Variance Account (LRAMVA) (2019) - effective February 1, 2019 until December 31, 2019 | B186: $/kW | C186: 0.0065
A187: Retail Transmission Rate - Network Service Rate | B187: $/kW | C187: 2.8791
A188: Retail Transmission Rate - Line and Transformation Connection Service Rate | B188: $/kW | C188: 2.7433
A190: MONTHLY RATES AND CHARGES – Regulatory Component
A192: Wholesale Market Service Rate (WMS) - not including CBR | B192: $/kWh | C192: 0.003
A193: Capacity Based Recovery (CBR) - Applicable for Class B Customers | B193: $/kWh | C193: 0.0004
A194: Rural or Remote Electricity Rate Protection Charge (RRRP) | B194: $/kWh | C194: 0.0005
A195: Standard Supply Service - Administrative Charge (if applicable) | B195: $ | C195: 0.25
A198: STANDBY POWER SERVICE CLASSIFICATION
A200: This classification refers to an account that has Load Displacement Generation and requires the distributor to provide back-up service. Further servicing details are available in the distributor’s Conditions of Service.
A202: APPLICATION
A204: The application of these rates and charges shall be in accordance with the Licence of the Distributor and any Code or Order of the Ontario Energy Board, and amendments thereto as approved by the Ontario Energy Board, which may be applicable to the administration of this schedule.
A205: No rates and charges for the distribution of electricity and charges to meet the costs of any work or service done or furnished for the purpose of the distribution of electricity shall be made except as permitted by this schedule, unless required by the Distributor’s Licence or a Code or Order of the Ontario Energy Board, and amendments thereto as approved by the Ontario Energy Board, or as specified herein.
A206: Unless specifically noted, this schedule does not contain any charges for the electricity commodity, be it under the Regulated Price Plan, a contract with a retailer or the wholesale market price, as applicable.
A207: It should be noted that this schedule does not list any charges, assessments or credits that are required by law to be invoiced by a distributor and that are not subject to Ontario Energy Board approval, such as the Debt Retirement Charge, the Global Adjustment and the HST.
A209: MONTHLY RATES AND CHARGES – Delivery Component - APPROVED ON AN INTERIM BASIS
A211: GS>50 Standby Charge - for a month where standby power is not provided. The charge is applied to the amount of reserved load transfer capacity contracted or the amount of monthly peak load displaced by a generating facility. | B211: $/kW | C211: 2.615
A212: Large Use Standby Charge - for a month where standby power is not provided. The charge is applied to the amount of reserved load transfer capacity contracted or the amount of monthly peak load displaced by a generating facility. | B212: $/kW | C212: 1.4325
A213: Large Use with Dedicated Assets Standby Charge - for a month where standby power is not provided. The charge is applied to the amount of reserved load transfer capacity contracted or the amount of monthly peak load displaced by a generating facility. | B213: $/kW | C213: 0.3396
A216: UNMETERED SCATTERED LOAD SERVICE CLASSIFICATION
A218: This classification applies to safety/security lighting with a Residential, General Service or Large Use customer. This is typically exterior lighting, and often unmetered. Consumption is estimated based on the equipment rating and estimated hours of use. Class B consumers are defined in accordance with O. Reg. 429/04. Further servicing details are available in the distributor’s Conditions of Service.
A220: APPLICATION
A221: The application of these rates and charges shall be in accordance with the Licence of the Distributor and any Code or Order of the Ontario Energy Board, and amendments thereto as approved by the Ontario Energy Board, which may be applicable to the administration of this schedule.
A222: No rates and charges for the distribution of electricity and charges to meet the costs of any work or service done or furnished for the purpose of the distribution of electricity shall be made except as permitted by this schedule, unless required by the Distributor’s Licence or a Code or Order of the Ontario Energy Board, and amendments thereto as approved by the Ontario Energy Board, or as specified herein.
A223: Unless specifically noted, this schedule does not contain any charges for the electricity commodity, be it under the Regulated Price Plan, a contract with a retailer or the wholesale market price, as applicable. In addition, the charges in the MONTHLY RATES AND CHARGES – Regulatory Component of this schedule do not apply to a customer that is an embedded wholesale market participant.
A225: MONTHLY RATES AND CHARGES – Delivery Component
A227: Service Charge | B227: $ | C227: 8.63
A228: Rate Rider for Disposition of 2016 Earnings Sharing - effective until April 30, 2019 | B228: $ | C228: -0.05
A229: Rate Rider for Recovery of 2019 Foregone Revenue - effective February 1, 2019 until December 31, 2019 | B229: $ | C229: 0.03
A230: Distribution Volumetric Rate | B230: $/kWh | C230: 0.0134
A231: Low Voltage Service Rate | B231: $/kWh | C231: 6e-05
A232: Rate Rider for Disposition of Global Adjustment Account (2018) - effective until April 30, 2019 Applicable only for Non-RPP Customers Non-Wholesale Market Participants | B232: $/kWh | C232: -0.0029
A233: Rate Rider for Disposition of Global Adjustment Account (2019) - effective February 1, 2019 until December 31, 2019 Applicable only for Non-RPP Customers Non-Wholesale Market Participants | B233: $/kWh | C233: -0.0002142565073
A234: Rate Rider for Disposition of Deferral/Variance Accounts (2018) - effective until April 30, 2019 | B234: $/kWh | C234: -0.0005439072096
A235: Rate Rider for Disposition of Deferral/Variance Accounts (2019) - effective February 1, 2019 until December 31, 2019 | B235: $/kWh | C235: -0.002
A236: Rate Rider for Disposition of Capacity Based Recovery Account (2018) - effective until April 30, 2019 Applicable Only for Class B Customers | B236: $/kWh | C236: -4.802217843e-05
A237: Rate Rider for Disposition of 2016 Earnings Sharing - effective until April 30, 2019 | B237: $/kWh | C237: -0.0001
A238: Retail Transmission Rate - Network Service Rate | B238: $/kWh | C238: 0.0064
A239: Retail Transmission Rate - Line and Transformation Connection Service Rate | B239: $/kWh | C239: 0.006
A241: MONTHLY RATES AND CHARGES – Regulatory Component
A243: Wholesale Market Service Rate (WMS) - not including CBR | B243: $/kWh | C243: 0.003
A244: Capacity Based Recovery (CBR) - Applicable for Class B Customers | B244: $/kWh | C244: 0.0004
A245: Rural or Remote Electricity Rate Protection Charge (RRRP) | B245: $/kWh | C245: 0.0005
A246: Standard Supply Service - Administrative Charge (if applicable) | B246: $ | C246: 0.25
A249: SENTINEL LIGHTING SERVICE CLASSIFICATION
A251: This classification refers to an unmetered lighting load supplied to a sentinel light. Class B consumers are defined in accordance with O. Reg. 429/04. Further servicing details are available in the distributor’s Conditions of Service.
A253: APPLICATION
A255: The application of these rates and charges shall be in accordance with the Licence of the Distributor and any Code or Order of the Ontario Energy Board, and amendments thereto as approved by the Ontario Energy Board, which may be applicable to the administration of this schedule.
A256: No rates and charges for the distribution of electricity and charges to meet the costs of any work or service done or furnished for the purpose of the distribution of electricity shall be made except as permitted by this schedule, unless required by the Distributor’s Licence or a Code or Order of the Ontario Energy Board, and amendments thereto as approved by the Ontario Energy Board, or as specified herein.
A257: Unless specifically noted, this schedule does not contain any charges for the electricity commodity, be it under the Regulated Price Plan, a contract with a retailer or the wholesale market price, as applicable. In addition, the charges in the MONTHLY RATES AND CHARGES – Regulatory Component of this schedule do not apply to a customer that is an embedded wholesale market participant.
A258: It should be noted that this schedule does not list any charges, assessments or credits that are required by law to be invoiced by a distributor and that are not subject to Ontario Energy Board approval, such as the Debt Retirement Charge, the Global Adjustment and the HST.
A260: MONTHLY RATES AND CHARGES – Delivery Component
A262: Service Charge (per Connection) | B262: $ | C262: 5.63
A263: Rate Rider for Disposition of 2016 Earnings Sharing - effective until April 30, 2019 | B263: $ | C263: -0.03
A264: Rate Rider for Recovery of 2019 Foregone Revenue - effective February 1, 2019 until December 31, 2019 | B264: $ | C264: 0.02
A265: Distribution Volumetric Rate | B265: $/kW | C265: 15.4416
A266: Low Voltage Service Rate | B266: $/kW | C266: 0.01745
A267: Rate Rider for Disposition of Global Adjustment Account (2018) - effective until April 30, 2019 Applicable only for Non-RPP Customers Non-Wholesale Market Participants | B267: $/kWh | C267: -0.0029
... 118 more rows

Sheet Final Tariff Schedule (hidden)
A1: Back to Index
B2: INCENTIVE REGULATION MODEL FOR 2019 FILERS
B10: Alectra Utilities Corpoation
B11: Horizon Rate Zone
B12: TARIFF OF RATES AND CHARGES
B13: Effective Date January 1, 2019
B14: Implementation Date January 1, 2019
B16: This schedule supersedes and replaces all previously
B17: approved schedules of Rates, Charges and Loss Factors
C18: EB-2018-0016
B21: RESIDENTIAL SERVICE CLASSIFICATION
B22: This classification refers to all residential services including, without limitation, single family or single unit dwellings, multifamily dwellings, row-type dwellings and subdivision developments. Energy is supplied in single phase, 3-wire, or three phase, 4 wire, having a nominal voltage of 120/240 volts. There shall be only one delivery point to a dwelling. Class B consumers are defined in accordance with O. Reg. 429/04. Further servicing details are available in the distributor’s Conditions of Service.
B24: APPLICATION
B26: The application of these rates and charges shall be in accordance with the Licence of the Distributor and any Code or Order of the Ontario Energy Board, and amendments thereto as approved by the Ontario Energy Board, which may be applicable to the administration of this schedule.
B28: No rates and charges for the distribution of electricity and charges to meet the costs of any work or service done or furnished for the purpose of the distribution of electricity shall be made except as permitted by this schedule, unless required by the Distributor’s Licence or a Code or Order of the Ontario Energy Ontario Energy Board, and amendments thereto as approved by the Ontario Energy Board, or as specified herein.
B30: Unless specifically noted, this schedule does not contain any charges for the electricity commodity, be it under the Regulated Price Plan, a contract with a retailer or the wholesale market price, as applicable. In addition, the charges in the MONTHLY RATES AND CHARGES - Regulatory Component of this schedule do not apply to a customer that is an embedded wholesale market participant.
B32: It should be noted that this schedule does not list any charges, assessments, or credits that are required by law to be invoiced by a distributor and that are not subject to Ontario Energy Board approval, such as the Debt Retirement Charge, the Global Adjustment and the HST.
B34: MONTHLY RATES AND CHARGES – Delivery Component
A36: R_F | B36: Service Charge | C36: $ | D36: =VLOOKUP(A36,#REF!,9,FALSE) ->  | H36: =IF(D36="",1,IF(D36=0,0,1)) -> 
A37: R_SME | B37: Smart Metering Entity Charge - effective until December 31, 2022 | C37: $ | D37: =VLOOKUP(A37,#REF!,9,FALSE) ->  | H37: =IF(D37="",1,IF(D37=0,0,1)) -> 
A38: R_ESMF | B38: Rate Rider for Disposition of 2016 Earnings Sharing - effective until April 30, 2019 | C38: $ | D38: =VLOOKUP(A38,#REF!,9,FALSE) -> 
A39: R_FGF | B39: Rate Rider for Recovery of 2019 Foregone Revenue - effective February 1, 2019 until December 31, 2019 | C39: $ | D39: =VLOOKUP(A39,#REF!,9,FALSE) -> 
A40: R_V | B40: Distribution Volumetric Rate | C40: $/kWh | D40: =VLOOKUP(A40,#REF!,9,FALSE) -> 
A41: R_LV | B41: Low Voltage Service Rate | C41: $/kWh | D41: =VLOOKUP(A41,#REF!,9,FALSE) -> 
A42: R_GA18 | B42: Rate Rider for Disposition of Global Adjustment Account (2018) - effective until April 30, 2019 Applicable only for Non-RPP Customers | C42: $/kWh | D42: =VLOOKUP(A42,#REF!,9,FALSE) -> 
A43: R_GA19 | B43: Rate Rider for Disposition of Global Adjustment Account (2019) - effective until December 31, 2019 Applicable only for Non-RPP Customers | C43: $/kWh | D43: =VLOOKUP(A43,#REF!,9,FALSE) -> 
A44: R_DVA18 | B44: Rate Rider for Disposition of Deferral/Variance Accounts (2018) - effective until April 30, 2019 | C44: $/kWh | D44: =VLOOKUP(A44,#REF!,9,FALSE) -> 
A45: R_DVA19 | B45: Rate Rider for Disposition of Deferral/Variance Accounts (2019) - effective until December 31, 2019 | C45: $/kWh | D45: =VLOOKUP(A45,#REF!,9,FALSE) -> 
A46: R_CBR18 | B46: Rate Rider for Disposition of Capacity Based Recovery Account (2018) - effective until April 30, 2019 Applicable Only for Class B Customers | C46: $/kWh | D46: =VLOOKUP(A46,#REF!,9,FALSE) -> 
A47: R_CBR19 | B47: Rate Rider for Disposition of Capacity Based Recovery Account (2019) - effective until December 31, 2019 Applicable Only for Class B Customers | C47: $/kWh | D47: =VLOOKUP(A47,#REF!,9,FALSE) -> 
A48: R_ESMV19 | B48: Rate Rider for Disposition of 2017 Earnings Sharing - effective until December 31, 2019 | C48: $/kWh | D48: =VLOOKUP(A48,#REF!,9,FALSE) -> 
A49: R_LRVA18 | B49: Rate Rider for Disposition of Lost Revenue Adjustment Mechanism Variance Account (LRAMVA) (2018) - effective until April 30, 2019 | C49: $/kWh | D49: =VLOOKUP(A49,#REF!,9,FALSE) -> 
A50: R_LRVA19 | B50: Rate Rider for Disposition of Lost Revenue Adjustment Mechanism Variance Account (LRAMVA) (2019) - effective until December 31, 2019 | C50: $/kWh | D50: =VLOOKUP(A50,#REF!,9,FALSE) -> 
A51: R_TN | B51: Retail Transmission Rate - Network Service Rate | C51: $/kWh | D51: =VLOOKUP(A51,#REF!,9,FALSE) -> 
A52: R_TC | B52: Retail Transmission Rate - Line and Transformation Connection Service Rate | C52: $/kWh | D52: =VLOOKUP(A52,#REF!,9,FALSE) -> 
H53: 1
B54: MONTHLY RATES AND CHARGES – Regulatory Component | H54: 1
H55: 1
B56: Wholesale Market Service Rate (WMS) - not including CBR | C56: $/kWh | D56: 0.003 | H56: 1
B57: Capacity Based Recovery (CBR) - Applicable for Class B Customers | C57: $/kWh | D57: 0.0004 | H57: 1
B58: Rural or Remote Electricity Rate Protection Charge (RRRP) | C58: $/kWh | D58: 0.0005 | H58: 1
B59: Standard Supply Service - Administrative Charge (if applicable) | C59: $ | D59: 0.25 | H59: 1
H60: 1
H61: 1
B62: GENERAL SERVICE LESS THAN 50 kW SERVICE CLASSIFICATION | H62: 1
H63: 1
B64: This classification refers to a non-residential account whose monthly average peak demand is less than, or is forecast to be less than, 50 kW. Class B consumers are defined in accordance with O. Reg. 429/04. Further servicing details are available in the distributor’s Conditions of Service. | H64: 1
H65: 1
B66: APPLICATION | H66: 1
H67: 1
B68: The application of these rates and charges shall be in accordance with the Licence of the Distributor and any Code or Order of the Ontario Energy Board, and amendments thereto as approved by the Ontario Energy Board, which may be applicable to the administration of this schedule. | H68: 1
H69: 1
B70: No rates and charges for the distribution of electricity and charges to meet the costs of any work or service done or furnished for the purpose of the distribution of electricity shall be made except as permitted by this schedule, unless required by the Distributor’s Licence or a Code or Order of the Ontario Energy Board, and amendments thereto as approved by the Ontario Energy Board, or as specified herein. | H70: 1
H71: 1
B72: Unless specifically noted, this schedule does not contain any charges for the electricity commodity, be it under the Regulated Price Plan, a contract with a retailer or the wholesale market price, as applicable. In addition, the charges in the MONTHLY RATES AND CHARGES - Regulatory Component of this schedule do not apply to a customer that is an embedded wholesale market participant. | H72: 1
H73: 1
B74: It should be noted that this schedule does not list any charges, assessments, or credits that are required by law to be invoiced by a distributor and that are not subject to Ontario Energy Board approval, such as the Debt Retirement Charge, the Global Adjustment and the HST. | H74: 1
H75: 1
B76: MONTHLY RATES AND CHARGES – Delivery Component | H76: 1
H77: 1
A78: GSL_F | B78: Service Charge | C78: $ | D78: =VLOOKUP(A78,#REF!,9,FALSE) -> 
A79: GSL_SME | B79: Smart Metering Entity Charge - effective until December 31, 2022 | C79: $ | D79: =VLOOKUP(A79,#REF!,9,FALSE) -> 
A80: GSL_ESMF | B80: Rate Rider for Disposition of 2016 Earnings Sharing - effective until April 30, 2019 | C80: $ | D80: =VLOOKUP(A80,#REF!,9,FALSE) -> 
A81: GSL_FGF | B81: Rate Rider for Recovery of 2019 Foregone Revenue - effective February 1, 2019 until December 31, 2019 | C81: $ | D81: =VLOOKUP(A81,#REF!,9,FALSE) -> 
A82: GSL_V | B82: Distribution Volumetric Rate | C82: $/kWh | D82: =VLOOKUP(A82,#REF!,9,FALSE) -> 
A83: GSL_LV | B83: Low Voltage Service Rate | C83: $/kWh | D83: =VLOOKUP(A83,#REF!,9,FALSE) -> 
A84: GSL_GA18 | B84: Rate Rider for Disposition of Global Adjustment Account (2018) - effective until April 30, 2019 Applicable only for Non-RPP Customers | C84: $/kWh | D84: =VLOOKUP(A84,#REF!,9,FALSE) -> 
A85: GSL_GA19 | B85: Rate Rider for Disposition of Global Adjustment Account (2019) - effective until December 31, 2019 Applicable only for Non-RPP Customers | C85: $/kWh | D85: =VLOOKUP(A85,#REF!,9,FALSE) -> 
A86: GSL_DVA18 | B86: Rate Rider for Disposition of Deferral/Variance Accounts (2018) - effective until April 30, 2019 | C86: $/kWh | D86: =VLOOKUP(A86,#REF!,9,FALSE) -> 
A87: GSL_DVA19 | B87: Rate Rider for Disposition of Deferral/Variance Accounts (2019) - effective until December 31, 2019 | C87: $/kWh | D87: =VLOOKUP(A87,#REF!,9,FALSE) -> 
A88: GSL_CBR18 | B88: Rate Rider for Disposition of Capacity Based Recovery Account (2018) - effective until April 30, 2019 Applicable Only for Class B Customers | C88: $/kWh | D88: =VLOOKUP(A88,#REF!,9,FALSE) -> 
A89: GSL_CBR19 | B89: Rate Rider for Disposition of Capacity Based Recovery Account (2019) - effective until December 31, 2019 Applicable Only for Class B Customers | C89: $/kWh | D89: =VLOOKUP(A89,#REF!,9,FALSE) -> 
A90: GSL_ESMV | B90: Rate Rider for Disposition of 2016 Earnings Sharing - effective until April 30, 2019 | C90: $/kWh | D90: =VLOOKUP(A90,#REF!,9,FALSE) -> 
A91: GSl_ESMV19 | B91: Rate Rider for Disposition of 2017 Earnings Sharing - effective until December 31, 2019 | C91: $/kWh | D91: =VLOOKUP(A91,#REF!,9,FALSE) -> 
A92: GSL_LRVA18 | B92: Rate Rider for Disposition of Lost Revenue Adjustment Mechanism Variance Account (LRAMVA) (2018) - effective until April 30, 2019 | C92: $/kWh | D92: =VLOOKUP(A92,#REF!,9,FALSE) -> 
A93: GSL_LRVA19 | B93: Rate Rider for Disposition of Lost Revenue Adjustment Mechanism Variance Account (LRAMVA) (2019) - effective until December 31, 2019 | C93: $/kWh | D93: =VLOOKUP(A93,#REF!,9,FALSE) -> 
A94: GSL_TN | B94: Retail Transmission Rate - Network Service Rate | C94: $/kWh | D94: =VLOOKUP(A94,#REF!,9,FALSE) -> 
A95: GSL_TC | B95: Retail Transmission Rate - Line and Transformation Connection Service Rate | C95: $/kWh | D95: =VLOOKUP(A95,#REF!,9,FALSE) -> 
H96: 1
B97: MONTHLY RATES AND CHARGES – Regulatory Component | H97: 1
H98: 1
B99: Wholesale Market Service Rate (WMS) - not including CBR | C99: $/kWh | D99: 0.003 | H99: =IF(D99="",1,IF(D99=0,0,1)) -> 1
B100: Capacity Based Recovery (CBR) - Applicable for Class B Customers | C100: $/kWh | D100: 0.0004 | H100: 1
B101: Rural or Remote Electricity Rate Protection Charge (RRRP) | C101: $/kWh | D101: 0.0005 | H101: 1
B102: Standard Supply Service - Administrative Charge (if applicable) | C102: $ | D102: 0.25 | H102: 1
H103: 1
B104: GENERAL SERVICE 50 to 4,999 kW SERVICE CLASSIFICATION | H104: 1
H105: 1
B106: This classification refers to a non-residential account whose monthly average peak demand is equal to or greater than, or is forecast to be equal to or greater than, 50 kW but less than 5,000 kW, both regular and interval metered. Class A and Class B consumers are defined in accordance with O. Reg. 429/04. Further servicing details are available in the distributor’s Conditions of Service. | H106: 1
H107: 1
B108: APPLICATION | H108: 1
H109: 1
B110: The application of these rates and charges shall be in accordance with the Licence of the Distributor and any Code or Order of the Ontario Energy Board, and amendments thereto as approved by the Ontario Energy Board, which may be applicable to the administration of this schedule. | H110: 1
H111: 1
B112: No rates and charges for the distribution of electricity and charges to meet the costs of any work or service done or furnished for the purpose of the distribution of electricity shall be made except as permitted by this schedule, unless required by the Distributor’s Licence or a Code or Order of the Ontario Energy Board, and amendments thereto as approved by the Ontario Energy Board, or as specified herein. | H112: 1
H113: 1
B114: Unless specifically noted, this schedule does not contain any charges for the electricity commodity, be it under the Regulated Price Plan, a contract with a retailer or the wholesale market price, as applicable. In addition, the charges in the MONTHLY RATES AND CHARGES – Regulatory Component of this schedule do not apply to a customer that is an embedded wholesale market participant. | H114: 1
H115: 1
B116: It should be noted that this schedule does not list any charges, assessments or credits that are required by law to be invoiced by a distributor and that are not subject to Ontario Energy Board approval, such as the Debt Retirement Charge, the Global Adjustment and the HST. | H116: 1
H117: 1
H118: 1
B119: MONTHLY RATES AND CHARGES – Delivery Component | H119: 1
H120: 1
A121: GSG_F | B121: Service Charge | C121: $ | D121: =VLOOKUP(A121,#REF!,9,FALSE) -> 
A122: GSG_ESMF | B122: Rate Rider for Disposition of 2016 Earnings Sharing - effective until April 30, 2019 | C122: $ | D122: =VLOOKUP(A122,#REF!,9,FALSE) -> 
A123: GSG_FGF | B123: Rate Rider for Recovery of 2019 Foregone Revenue - effective February 1, 2019 until December 31, 2019 | C123: $ | D123: =VLOOKUP(A123,#REF!,9,FALSE) -> 
A124: GSG_V | B124: Distribution Volumetric Rate | C124: $/kW | D124: =VLOOKUP(A124,#REF!,9,FALSE) -> 
A125: GSG_LV | B125: Low Voltage Service Rate | C125: $/kW | D125: =VLOOKUP(A125,#REF!,9,FALSE) -> 
A126: GSG_GA18 | B126: Rate Rider for Disposition of Global Adjustment Account (2018) - effective until April 30, 2019 Applicable only for Non-RPP Customers | C126: $/kWh | D126: =VLOOKUP(A126,#REF!,9,FALSE) -> 
A127: GSG_GA19 | B127: Rate Rider for Disposition of Global Adjustment Account (2019) - effective until December 31, 2019 Applicable only for Non-RPP Customers | C127: $/kWh | D127: =VLOOKUP(A127,#REF!,9,FALSE) -> 
A128: GSG_DVA18 | B128: Rate Rider for Disposition of Deferral/Variance Accounts (2018) - effective until April 30, 2019 | C128: $/kW | D128: =VLOOKUP(A128,#REF!,9,FALSE) -> 
A129: GSG_RAL18_non | B129: Rate Rider for Disposition of Deferral/Variance Accounts (2018) - effective until April 30, 2019 Applicable only for Non-Wholesale Market Participants | C129: $/kW | D129: =VLOOKUP(A129,#REF!,9,FALSE) -> 
A130: GSG_DVA19 | B130: Rate Rider for Disposition of Deferral/Variance Accounts (2019) - effective until December 31, 2019 | C130: $/kW | D130: =VLOOKUP(A130,#REF!,9,FALSE) -> 
A131: GSG_DVA19_nonWMP | B131: Rate Rider for Disposition of Deferral/Variance Accounts (2019) - effective until December 31, 2019 Applicable only for Non-Wholesale Market Participants | C131: $/kW | D131: =VLOOKUP(A131,#REF!,9,FALSE) -> 
A132: GSG_CBR18 | B132: Rate Rider for Disposition of Capacity Based Recovery Account (2018) - effective until April 30, 2019 Applicable Only for Class B Customers | C132: $/kW | D132: =VLOOKUP(A132,#REF!,9,FALSE) -> 
A133: GSG_CBR19 | B133: Rate Rider for Disposition of Capacity Based Recovery Account (2019) - effective until December 31, 2019 Applicable Only for Class B Customers | C133: $/kW | D133: =VLOOKUP(A133,#REF!,9,FALSE) -> 
A134: GSG_ESMV | B134: Rate Rider for Disposition of 2016 Earnings Sharing - effective until April 30, 2019 | C134: $/kW | D134: =VLOOKUP(A134,#REF!,9,FALSE) -> 
A135: GSG_ESMV19 | B135: Rate Rider for Disposition of 2017 Earnings Sharing - effective until December 31, 2019 | C135: $/kW | D135: =VLOOKUP(A135,#REF!,9,FALSE) -> 
A136: GSG_LRVA18 | B136: Rate Rider for Disposition of Lost Revenue Adjustment Mechanism Variance Account (LRAMVA) (2018) - effective until April 30, 2019 | C136: $/kW | D136: =VLOOKUP(A136,#REF!,9,FALSE) -> 
A137: GSG_LRVA19 | B137: Rate Rider for Disposition of Lost Revenue Adjustment Mechanism Variance Account (LRAMVA) (2019) - effective until December 31, 2019 | C137: $/kW | D137: =VLOOKUP(A137,#REF!,9,FALSE) -> 
A138: GSG_TN | B138: Retail Transmission Rate - Network Service Rate | C138: $/kW | D138: =VLOOKUP(A138,#REF!,9,FALSE) -> 
A139: GSG_TC | B139: Retail Transmission Rate - Line and Transformation Connection Service Rate | C139: $/kW | D139: =VLOOKUP(A139,#REF!,9,FALSE) -> 
H140: 1
B141: MONTHLY RATES AND CHARGES – Regulatory Component | H141: 1
H142: 1
B143: Wholesale Market Service Rate (WMS) - not including CBR | C143: $/kWh | D143: 0.003 | H143: 1
B144: Capacity Based Recovery (CBR) - Applicable for Class B Customers | C144: $/kWh | D144: 0.0004 | H144: 1
B145: Rural or Remote Electricity Rate Protection Charge (RRRP) | C145: $/kWh | D145: 0.0005 | H145: 1
B146: Standard Supply Service - Administrative Charge (if applicable) | C146: $ | D146: 0.25 | H146: 1
H147: 1
B148: LARGE USE SERVICE CLASSIFICATION | H148: 1
H149: 1
B150: This classification refers to an account whose monthly average peak demand is equal to or greater than, or is forecast to be equal to or greater than, 5,000 kW. Class A and Class B consumers are defined in accordance with O. Reg. 429/04. Further servicing details are available in the distributor’s Conditions of Service. | H150: 1
H151: 1
B152: APPLICATION | H152: 1
H153: 1
B154: The application of these rates and charges shall be in accordance with the Licence of the Distributor and any Code or Order of the Ontario Energy Board, and amendments thereto as approved by the Ontario Energy Board, which may be applicable to the administration of this schedule. | H154: 1
H155: 1
B156: No rates and charges for the distribution of electricity and charges to meet the costs of any work or service done or furnished for the purpose of the distribution of electricity shall be made except as permitted by this schedule, unless required by the Distributor’s Licence or a Code or Order of the Ontario Energy Board, and amendments thereto as approved by the Ontario Energy Board, or as specified herein. | H156: 1
H157: 1
B158: Unless specifically noted, this schedule does not contain any charges for the electricity commodity, be it under the Regulated Price Plan, a contract with a retailer or the wholesale market price, as applicable. In addition, the charges in the MONTHLY RATES AND CHARGES – Regulatory Component of this schedule do not apply to a customer that is an embedded wholesale market participant. | H158: 1
H159: 1
B160: It should be noted that this schedule does not list any charges, assessments or credits that are required by law to be invoiced by a distributor and that are not subject to Ontario Energy Board approval, such as the Debt Retirement Charge, the Global Adjustment and the HST. | H160: =IF(D160="",1,IF(D160=0,0,1)) -> 1
H161: 1
B162: MONTHLY RATES AND CHARGES – Delivery Component | H162: 1
H163: 1
A164: LU_F | B164: Service Charge | C164: $ | D164: =VLOOKUP(A164,#REF!,9,FALSE) -> 
A165: LU_ESMF | B165: Rate Rider for Disposition of 2016 Earnings Sharing - effective until April 30, 2019 | C165: $ | D165: =VLOOKUP(A165,#REF!,9,FALSE) -> 
A166: LU_FGF | B166: Rate Rider for Recovery of 2019 Foregone Revenue - effective February 1, 2019 until December 31, 2019 | C166: $ | D166: =VLOOKUP(A166,#REF!,9,FALSE) -> 
A167: LU_V | B167: Distribution Volumetric Rate | C167: $/kW | D167: =VLOOKUP(A167,#REF!,9,FALSE) -> 
A168: LU_LV | B168: Low Voltage Service Rate | C168: $/kW | D168: =VLOOKUP(A168,#REF!,9,FALSE) -> 
A169: LU_GA18 | B169: Rate Rider for Disposition of Global Adjustment Account (2018) - effective until April 30, 2019 Applicable only for Non-RPP Customers | C169: $/kWh | D169: =VLOOKUP(A169,#REF!,9,FALSE) -> 
A170: LU_DVA18 | B170: Rate Rider for Disposition of Deferral/Variance Accounts (2018) - effective until April 30, 2019 | C170: $/kW | D170: =VLOOKUP(A170,#REF!,9,FALSE) -> 
A171: LU_RAL18_non | B171: Rate Rider for Disposition of Deferral/Variance Accounts (2018) - effective until April 30, 2019 Applicable only for Non-Wholesale Market Participants | C171: $/kW | D171: =VLOOKUP(A171,#REF!,9,FALSE) -> 
A172: LU_DVA19 | B172: Rate Rider for Disposition of Deferral/Variance Accounts (2019) - effective until December 31, 2019 | C172: $/kW | D172: =VLOOKUP(A172,#REF!,9,FALSE) -> 
A173: LU_DVA19_nonWMP | B173: Rate Rider for Disposition of Deferral/Variance Accounts (2019) - effective until December 31, 2019 Applicable only for Non-Wholesale Market Participants | C173: $/kW | D173: =VLOOKUP(A173,#REF!,9,FALSE) -> 
A174: LU_CBR18 | B174: Rate Rider for Disposition of Capacity Based Recovery Account (2018) - effective until April 30, 2019 Applicable Only for Class B Customers | C174: $/kW | D174: =VLOOKUP(A174,#REF!,9,FALSE) -> 
A175: LU_CBR19 | B175: Rate Rider for Disposition of Capacity Based Recovery Account (2019) - effective until December 31, 2019 Applicable Only for Class B Customers | C175: $/kW | D175: =VLOOKUP(A175,#REF!,9,FALSE) -> 
A176: LU_ESMV | B176: Rate Rider for Disposition of 2016 Earnings Sharing - effective until April 30, 2019 | C176: $/kW | D176: =VLOOKUP(A176,#REF!,9,FALSE) -> 
A177: LU_ESMV19 | B177: Rate Rider for Disposition of 2017 Earnings Sharing - effective until December 31, 2019 | C177: $/kW | D177: =VLOOKUP(A177,#REF!,9,FALSE) -> 
A178: LU_LRVA18 | B178: Rate Rider for Disposition of Lost Revenue Adjustment Mechanism Variance Account (LRAMVA) (2018) - effective until April 30, 2019 | C178: $/kW | D178: =VLOOKUP(A178,#REF!,9,FALSE) -> 
A179: LU_LRVA19 | B179: Rate Rider for Disposition of Lost Revenue Adjustment Mechanism Variance Account (LRAMVA) (2019) - effective until December 31, 2019 | C179: $/kW | D179: =VLOOKUP(A179,#REF!,9,FALSE) -> 
A180: LU_TN | B180: Retail Transmission Rate - Network Service Rate | C180: $/kW | D180: =VLOOKUP(A180,#REF!,9,FALSE) -> 
A181: LU_TC | B181: Retail Transmission Rate - Line and Transformation Connection Service Rate | C181: $/kW | D181: =VLOOKUP(A181,#REF!,9,FALSE) -> 
H182: 1
B183: MONTHLY RATES AND CHARGES – Regulatory Component | H183: 1
H184: 1
B185: Wholesale Market Service Rate (WMS) - not including CBR | C185: $/kWh | D185: 0.003 | H185: 1
B186: Capacity Based Recovery (CBR) - Applicable for Class B Customers | C186: $/kWh | D186: 0.0004 | H186: 1
B187: Rural or Remote Electricity Rate Protection Charge (RRRP) | C187: $/kWh | D187: 0.0005 | H187: 1
B188: Standard Supply Service - Administrative Charge (if applicable) | C188: $ | D188: 0.25 | H188: 1
B189: LARGE USE WITH DEDICATED ASSETS SERVICE CLASSIFICATION | H189: 1
H190: 1
B191: This classification applies to an account where average monthly maximum demand used for billing purposes is equal to or greater than, or is forecast to be equal to or greater than, 5,000 kW and using dedicated assets. Class A and Class B consumers are defined in accordance with O. Reg. 429/04. Further servicing details are available in the distributor’s Conditions of Service. | H191: 1
H192: 1
B193: APPLICATION | H193: 1
H194: 1
B195: The application of these rates and charges shall be in accordance with the Licence of the Distributor and any Code or Order of the Ontario Energy Board, and amendments thereto as approved by the Ontario Energy Board, which may be applicable to the administration of this schedule. | H195: 1
H196: 1
B197: No rates and charges for the distribution of electricity and charges to meet the costs of any work or service done or furnished for the purpose of the distribution of electricity shall be made except as permitted by this schedule, unless required by the Distributor’s Licence or a Code or Order of the Ontario Energy Board, and amendments thereto as approved by the Ontario Energy Board, or as specified herein. | H197: 1
H198: 1
B199: Unless specifically noted, this schedule does not contain any charges for the electricity commodity, be it under the Regulated Price Plan, a contract with a retailer or the wholesale market price, as applicable. In addition, the charges in the MONTHLY RATES AND CHARGES – Regulatory Component of this schedule do not apply to a customer that is an embedded wholesale market participant. | H199: 1
H200: 1
B201: It should be noted that this schedule does not list any charges, assessments or credits that are required by law to be invoiced by a distributor and that are not subject to Ontario Energy Board approval, such as the Debt Retirement Charge, the Global Adjustment and the HST. | H201: 1
H202: 1
B203: MONTHLY RATES AND CHARGES – Delivery Component | H203: 1
H204: 1
A205: LUDA_F | B205: Service Charge | C205: $ | D205: =VLOOKUP(A205,#REF!,9,FALSE) -> 
A206: LUDA_ESMF | B206: Rate Rider for Disposition of 2016 Earnings Sharing - effective until April 30, 2019 | C206: $ | D206: =VLOOKUP(A206,#REF!,9,FALSE) -> 
A207: LUDA_FGF | B207: Rate Rider for Recovery of 2019 Foregone Revenue - effective February 1, 2019 until December 31, 2019 | C207: $ | D207: =VLOOKUP(A207,#REF!,9,FALSE) -> 
A208: LUDA_V | B208: Distribution Volumetric Rate | C208: $/kW | D208: =VLOOKUP(A208,#REF!,9,FALSE) -> 
A209: LUDA_LV | B209: Low Voltage Service Rate | C209: $/kW | D209: =VLOOKUP(A209,#REF!,9,FALSE) -> 
A210: LUDA_DVA18 | B210: Rate Rider for Disposition of Deferral/Variance Accounts (2018) - effective until April 30, 2019 | C210: $/kW | D210: =VLOOKUP(A210,#REF!,9,FALSE) -> 
A211: LUDA_RAL18_non | B211: Rate Rider for Disposition of Deferral/Variance Accounts (2018) - effective until April 30, 2019 Applicable only for Non-Wholesale Market Participants | C211: $/kW | D211: =VLOOKUP(A211,#REF!,9,FALSE) -> 
A212: LUDA_DVA19 | B212: Rate Rider for Disposition of Deferral/Variance Accounts (2019) - effective until December 31, 2019 | C212: $/kW | D212: =VLOOKUP(A212,#REF!,9,FALSE) -> 
A213: LUDA_DVA19_nonWMP | B213: Rate Rider for Disposition of Deferral/Variance Accounts (2019) - effective until December 31, 2019 Applicable only for Non-Wholesale Market Participants | C213: $/kW | D213: =VLOOKUP(A213,#REF!,9,FALSE) -> 
A214: LUDA_CBR19 | B214: Rate Rider for Disposition of Capacity Based Recovery Account (2019) - effective until December 31, 2019 Applicable Only for Class B Customers | C214: $/kW | D214: =VLOOKUP(A214,#REF!,9,FALSE) -> 
A215: LUDA_ESMV | B215: Rate Rider for Disposition of 2016 Earnings Sharing - effective until April 30, 2019 | C215: $/kW | D215: =VLOOKUP(A215,#REF!,9,FALSE) -> 
A216: LUDA_ESMV19 | B216: Rate Rider for Disposition of 2017 Earnings Sharing - effective until December 31, 2019 | C216: $/kW | D216: =VLOOKUP(A216,#REF!,9,FALSE) -> 
A217: LUDA_LRVA18 | B217: Rate Rider for Disposition of Lost Revenue Adjustment Mechanism Variance Account (LRAMVA) (2018) - effective until April 30, 2019 | C217: $/kW | D217: =VLOOKUP(A217,#REF!,9,FALSE) -> 
... 257 more rows
